Business Unit Description,Expense Code,Expense Code Description,GL Date,Document No.,Invoice No.,Invoiced Value,Supplier Name,Address Book No.,Proclass Details Level 1,Thomson Classification Description
LEAVING CARE                  ,9270,CARELEAVERS ACCOMMODATION     ,01/10/2013,3525041,440,2600.00,FUTURE 19                               ,587046,Unclassified Non Trade,OUT OF SCOPE FOR SIC MONITORIN
EMTAS                         ,8440,FEE EXPENSES                  ,01/10/2013,3525426,ERS INVOICE90667         ,380.00,LINDSEY SCOTT                           ,567670,Medical ,LIFE COACHING                 
TRANSPORT FLEET MANAGEMENT    ,7030,VEHICLE EXCISE DUTY/OP LICENCE,01/10/2013,3525428,ERS INVOICE90671         ,820.00,VOSA                                    ,416211,Unclassified Non Trade,CENTRAL GOVERNMENT            
EXECUTOR SERVICES             ,8090,BEREAVEMENT SUPPLIES          ,01/10/2013,3525429,ERS INVOICE90672         ,3035.73,REDACTED PERSONAL DATA,587889,Unclassified Non Trade,OUT OF SCOPE FOR SIC MONITORIN
EXECUTOR SERVICES             ,8090,BEREAVEMENT SUPPLIES          ,01/10/2013,3525430,ERS INVOICE90673         ,1473.33,REDACTED PERSONAL DATA,587899,Unclassified Non Trade,OUT OF SCOPE FOR SIC MONITORIN
SKINNERTHORPE SCC (EAST)      ,1143,COMPENSATION                  ,01/10/2013,3525431,ERS INVOICE90674         ,20000.00,LUPTON FAWCETT LEE & PRIESTLEY          ,548443,Legal Services,SOLICITORS                    
HULL - HUMBER SUB REGION HAL  ,1194,OTHER FEES                    ,01/10/2013,3525442,ERS INVOICE90686         ,1800.00,CLASSICAL GAS LTD                       ,546540,Construction,GAS INSTALLERS                
NORFOLK PARK DRAINAGE SCHEME  ,1164,NC&A LANDSCAPING              ,01/10/2013,3525453,ERS INVOICE90698         ,2168.09,E W BREWIN                              ,335301,Consultancy,SITE INVESTIGATION CONSULTANTS
VSP DELIVER                   ,9140,PRIVATE CONTRACTORS           ,01/10/2013,3525460,ERS INVOICE90705         ,285.75,ENDEAVOUR TRAINING                      ,347945,Human Resources,TRAINING SERVICES             
INDEPENDENT RES BLOCK PLACEMEN,9270,INDEPENDENT RESIDENTIAL PMENT ,01/10/2013,3525042,6099,3257.14,PROGRESSIVE CARE LTD                    ,343548,Social Community Care,CHILDREN'S HOMES              
VSP DELIVER                   ,9140,PRIVATE CONTRACTORS           ,01/10/2013,3525461,ERS INVOICE90706         ,317.50,IN2CHANGE SOUTH YORKS LTD               ,558793,Unclassified Non Trade,CHARITIES & VOLUNTARY ORGANISA
VSP DELIVER                   ,9140,PRIVATE CONTRACTORS           ,01/10/2013,3525462,ERS INVOICE90707         ,381.00,SHEFFIELD INDUSTRIAL MUSEUMS TRUST LTD  ,307272,Leisure Services,MUSEUMS                       
MCA SUPPORT TEAM              ,8440,FEE EXPENSES                  ,01/10/2013,3525465,ERS INVOICE90712         ,255.00,DR V SIVAKUMAR                          ,345375,Unclassified Non Trade,HOSPITALS                     
CLAIMS                        ,8740,PUBLIC LIABILITY              ,01/10/2013,3525589,ERS INVOICE90719         ,14500.00,REDACTED PERSONAL DATA,584595,Unclassified Non Trade,OUT OF SCOPE FOR SIC MONITORIN
OFF THE SHELF                 ,8440,FEE EXPENSES                  ,01/10/2013,3525591,ERS INVOICE90721         ,2500.00,LESLEY VICTORIA MORRIS                  ,463184,Stationery ,PROMOTIONAL ITEMS             
CLAIMS                        ,8740,PUBLIC LIABILITY              ,01/10/2013,3525592,ERS INVOICE90722         ,13000.00,WIXTED & CO SOLICITORS                  ,479668,Legal Services,SOLICITORS                    
VSP DELIVER                   ,9120,OTHER AGENCIES                ,01/10/2013,3525593,ERS INVOICE90723         ,1143.00,WHIRLOW HALL FARM TRUST LTD             ,318019,Unclassified Non Trade,CHARITIES & VOLUNTARY ORGANISA
VSP DELIVER                   ,9120,OTHER AGENCIES                ,01/10/2013,3525594,ERS INVOICE90724         ,2059.89,SHEFFIELD COLLEGE                       ,394141,Unclassified Non Trade,SCHOOLS & COLLEGES - FURTHER E
VSP DELIVER                   ,9120,OTHER AGENCIES                ,01/10/2013,3525595,ERS INVOICE90725         ,1003.98,THE SHEFFIELD COLLEGE                   ,297611,Unclassified Non Trade,SCHOOLS & COLLEGES - FURTHER E
VSP DELIVER                   ,9120,OTHER AGENCIES                ,01/10/2013,3525596,ERS INVOICE90726         ,1500.00,THE SOURCE AT MEADOWHALL                ,350485,Human Resources,TRAINING CENTRES              
VSP DELIVER                   ,9120,OTHER AGENCIES                ,01/10/2013,3525597,ERS INVOICE90727         ,1666.88,WHIRLOW HALL FARM TRUST LTD             ,318019,Unclassified Non Trade,CHARITIES & VOLUNTARY ORGANISA
VSP DELIVER                   ,9140,PRIVATE CONTRACTORS           ,01/10/2013,3525598,ERS INVOICE90729         ,875.00,A MIND APART THEATRE COMPANY LTD        ,508180,Education,DRAMA SCHOOLS                 
VSP DELIVER                   ,9140,PRIVATE CONTRACTORS           ,01/10/2013,3525599,ERS INVOICE90730         ,1270.00,SHEFFIELD INDUSTRIAL MUSEUMS TRUST LTD  ,307272,Leisure Services,MUSEUMS                       
VSP DELIVER                   ,9140,PRIVATE CONTRACTORS           ,01/10/2013,3525600,ERS INVOICE90731         ,2032.00,HEELEY CITY FARM                        ,301277,Unclassified Non Trade,CHARITIES & VOLUNTARY ORGANISA
VSP DELIVER                   ,9140,PRIVATE CONTRACTORS           ,01/10/2013,3525601,ERS INVOICE90732         ,1492.25,HEELEY DEVELOPMENT TRUST                ,363241,Unclassified Non Trade,CHARITIES & VOLUNTARY ORGANISA
VSP DELIVER                   ,9140,PRIVATE CONTRACTORS           ,01/10/2013,3525602,ERS INVOICE90733         ,1875.00,SHEFFIELD TEACHING HOSPITALS NHS TRUST  ,299675,Unclassified Non Trade,HOSPITALS - POST MORTEM       
VSP DELIVER                   ,9140,PRIVATE CONTRACTORS           ,01/10/2013,3525603,ERS INVOICE90734         ,937.50,MANOR AND CASTLE DEVELOPMENT TRUST      ,486881,Unclassified Non Trade,YOUTH ORGANISATIONS & CENTRES 
VSP DELIVER                   ,9140,PRIVATE CONTRACTORS           ,01/10/2013,3525604,ERS INVOICE90735         ,1250.00,HEELEY DEVELOPMENT TRUST                ,363241,Unclassified Non Trade,CHARITIES & VOLUNTARY ORGANISA
VSP DELIVER                   ,9140,PRIVATE CONTRACTORS           ,01/10/2013,3525605,ERS INVOICE90736         ,2476.50,WHIRLOW HALL FARM TRUST LTD             ,318019,Unclassified Non Trade,CHARITIES & VOLUNTARY ORGANISA
MCA SUPPORT TEAM              ,8440,FEE EXPENSES                  ,01/10/2013,3525606,ERS INVOICE90738         ,900.00,REDACTED PERSONAL DATA,584366,Unclassified Non Trade,OUT OF SCOPE FOR SIC MONITORIN
MCA SUPPORT TEAM              ,8440,FEE EXPENSES                  ,01/10/2013,3525608,ERS INVOICE90744         ,551.28,DR ROSEMARY LETHEM                      ,584362,Medical ,Doctors
MCA SUPPORT TEAM              ,8440,FEE EXPENSES                  ,01/10/2013,3525609,ERS INVOICE90746         ,373.20,DR CATRIONA MURRAY                      ,570269,Medical ,DOCTORS                       
ADULT SOCIAL CARE PURCHASING  ,9190,DIRECT PAYMENTS               ,01/10/2013,3525610,ERS INVOICE90750         ,250.00,HC ONE (HEAD OFFICE)                    ,208451,Social Community Care,NURSING HOMES                 
MCA SUPPORT TEAM              ,8440,FEE EXPENSES                  ,01/10/2013,3525611,ERS INVOICE90751         ,730.88,REDACTED PERSONAL DATA,585545,Unclassified Non Trade,OUT OF SCOPE FOR SIC MONITORIN
CORONIAL SERVICES             ,8440,PATHOLOGIST INVOICE           ,01/10/2013,3525612,ERS INVOICE90754         ,1056.50,DR MINI C VARGHESE                      ,567541,Medical ,DOCTORS                       
CORONIAL SERVICES             ,8440,PATHOLOGIST INVOICE           ,01/10/2013,3525613,ERS INVOICE90755         ,1064.80,REDACTED PERSONAL DATA,579914,Unclassified Non Trade,OUT OF SCOPE FOR SIC MONITORIN
PLANNING & PERFORMANCE        ,7140,PUBLIC TRANSPORT COSTS        ,01/10/2013,3514403,01/4339358               ,309.00,CO-OPERATIVE TRAVEL MANAGEMENT          ,202987,Facilities Management,TRAVEL AGENTS & HOLIDAY COMPAN
LA MUSIC SERVICES             ,8040,LEARNING RESOURCES            ,01/10/2013,3514440,ETIN2405                 ,618.00,ENHANCEMENT TRAINING LTD                ,470353,Human Resources,TRAINING SERVICES             
VISION SUPPORT SERVICE        ,8040,LEARNING RESOURCES            ,01/10/2013,3516450,OP/I422033               ,552.01,RNIB SERVICES LTD                       ,340080,Unclassified Non Trade,CHARITIES & VOLUNTARY ORGANISA
RIVELIN VALLEY PARK           ,8550,OTHER SERVICES                ,01/10/2013,3518455,8639,1100.00,H2O SERVICING LIMITED                   ,374161,Construction,"SWIMMING POOL CONTRACTORS, REP"
FSSG                          ,8620,COMPUTER SOFTWARE LICENCES    ,01/10/2013,3518792,97067742,1100.00,MICRO FOCUS LIMITED                     ,541055,Consultancy,COMPUTER SYSTEMS & SOFTWARE (D
WINTER GARDEN                 ,6370,GROUNDS MTCE AND ARBORICULTURE,01/10/2013,3520335,45785,1422.95,TILLAGE SPECIALIST GROWERS              ,454097,Horticultural,NURSERIES - WHOLESALE         
BOOKS & OTHER MATERIALS       ,8080,LIBRARY MATERIALS             ,01/10/2013,3520383,1793781,985.17,BERTRAM LIBRARY SERVICES                ,418929,Education,EDUCATIONAL EQUIPMENT & SUPPLI
CRYSTAL PEAKS                 ,8010,EQUIPMENT PURCHASE AND REPAIR ,01/10/2013,3522327,3837302,402.25,CONNEXIONS PR & MARKETING LTD           ,537096,Facilities Management,ADVERTISING - AGENCIES        
MILLENNIUM SQUARE             ,8060,MATERIALS AND SUPPLIES GENERAL,01/10/2013,3522596,17578,359.43,TOTAL POOL CHEMICALS LTD                ,552673,Unclassified Trade,CHEMICALS - DISTRIBUTORS & WHO
TREE TEAM                     ,6370,GROUNDS MTCE AND ARBORICULTURE,01/10/2013,3522597,84,2160.00,J B HIBBERD LIMITED                     ,510434,Environmental Services,TREE WORK & FORESTRY SERVICES 
SF GRNI LIABILITY TAKEN       ,8060,MATERIALS AND SUPPLIES GENERAL,01/10/2013,3522881,3600000665NR             ,536.79,CEMEX PAVING SOLUTIONS LTD              ,385471,Building Construction Materials,CONCRETE & MORTAR READY MIXED 
CRYSTAL PEAKS                 ,8020,EQUIPMENT LEASE/ RENTAL/ HIRE ,01/10/2013,3522908,466150,1196.00,BANNER PLANT  LTD                       ,203248,Vehicles Not Buses,PLANT & MACHINERY HIRE & LEASI
CASTLE MARKET                 ,8010,EQUIPMENT PURCHASE AND REPAIR ,01/10/2013,3522910,129329653,289.42,NEWEY & EYRE LTD                        ,207097,Building Construction Materials,ELECTRICAL WHOLESALERS        
LOCAL ASSISTANCE SCHEME       ,8010,EQUIPMENT PURCHASE AND REPAIR ,01/10/2013,3522926,GR133                    ,719.75,SHEFFIELD CREDIT UNION                  ,400397,Financial Services,CREDIT UNIONS                 
CATERING PREMISES & EQUIPMENT ,8030,EQUIPMENT MAINTENANCE CONTRACT,01/10/2013,3522940,50543,268.68,BARNSLEY CATERING SERVICES LTD          ,203262,Catering,CATERING EQUIPMENT            
CATERING PREMISES & EQUIPMENT ,8030,EQUIPMENT MAINTENANCE CONTRACT,01/10/2013,3522942,50542,279.00,BARNSLEY CATERING SERVICES LTD          ,203262,Catering,CATERING EQUIPMENT            
VACANTS                       ,8420,ADVERTISING AND PUBLICITY     ,01/10/2013,3522966,58621129,1685.04,LOCAL WORLD LTD (FORMERLY NORTHCLIFFE ME,477885,Education,NEWSPAPER & MAGAZINE PUBLISHER
LOCAL ASSISTANCE SCHEME       ,8010,EQUIPMENT PURCHASE AND REPAIR ,01/10/2013,3522968,GR147                    ,982.00,SHEFFIELD CREDIT UNION                  ,400397,Financial Services,CREDIT UNIONS                 
LOCAL ASSISTANCE SCHEME       ,8010,EQUIPMENT PURCHASE AND REPAIR ,01/10/2013,3522970,GR130                    ,498.00,SHEFFIELD CREDIT UNION                  ,400397,Financial Services,CREDIT UNIONS                 
WYBOURNE MR PARK PHILL & WDTHO,9030,HEALTH                        ,01/10/2013,3523079,167,4125.75,MANOR & CASTLE - HEALTHY LIVING/PHS     ,376896,Unclassified Non Trade,DEVELOPMENT AGENCIES          
HEALTH TRAINERS               ,9030,HEALTH                        ,01/10/2013,3523081,168,2759.87,MANOR & CASTLE - HEALTHY LIVING/PHS     ,376896,Unclassified Non Trade,DEVELOPMENT AGENCIES          
TINSLEY GREEN SURE START      ,6030,REPAIRS AND MTCE - RESPONSIVE ,01/10/2013,3523381,9001,395.00,ACCESS TESTING                          ,443706,Clothing,SAFETY EQUIPMENT & CLOTHING   
REGISTRATION & REGULATION     ,8350,MISCELLANEOUS EXPENSES        ,01/10/2013,3523420,PSH060708/13             ,832.30,PAKISTAN ADVICE & COMMUNITY ASSOCIATION ,342669,Unclassified Non Trade,CHARITIES & VOLUNTARY ORGANISA
SUPPORTED HOUSING             ,8050,FURNITURE PURCHASES           ,01/10/2013,3523434,SIN064561                ,3025.00,WHITELEAF FURNITURE LTD                 ,441448,Furniture,FURNITURE MNFRS - HOME & OFFIC
SCHOOLS ACCESS INITIATIVE     ,1183,PURCHASE OF EQUIPMENT         ,01/10/2013,3523452,IN01540734               ,2145.00,BT BUSINESS DIRECT LTD                  ,324105,ICT,COMPUTER SYSTEMS & SOFTWARE (S
CASTLE MARKET                 ,6090,WASTE DISPOSAL                ,01/10/2013,3523485,232,300.00,R L DEAR (WASTE MERCHANTS) LTD          ,360135,Environmental Services,WASTE MERCHANTS               
CASTLE MARKET                 ,6090,WASTE DISPOSAL                ,01/10/2013,3523486,233,300.00,R L DEAR (WASTE MERCHANTS) LTD          ,360135,Environmental Services,WASTE MERCHANTS               
OFF STREET CAR PARKS          ,6280,HIRE OF PREMISES              ,01/10/2013,3523505,FINI01043                ,5768.51,SHEFFIELD HALLAM UNIVERSITY             ,501783,Unclassified Non Trade,UNIVERSITIES & MEDICAL SCHOOLS
BOOKS & OTHER MATERIALS       ,8080,LIBRARY MATERIALS             ,01/10/2013,3523532,1795802,531.14,BERTRAM LIBRARY SERVICES                ,418929,Education,EDUCATIONAL EQUIPMENT & SUPPLI
MARKETING SHEFFIELD           ,8270,SUBSCRIPTIONS                 ,01/10/2013,3523909,342,1700.00,HOSPITALITY SHEFFIELD LIMITED           ,482786,Leisure Services,CORPORATE AND BUSINESS HOSPITA
BANNERDALE                    ,6330,PREMISES SECURITY SERVICES    ,01/10/2013,3523995,INV063739                ,730.05,CONSTANT SECURITY SERVICES LIMITED      ,571090,Facilities Management,SECURITY SERVICES             
BANNERDALE                    ,6330,PREMISES SECURITY SERVICES    ,01/10/2013,3523996,INV063146                ,1262.28,CONSTANT SECURITY SERVICES LIMITED      ,571090,Facilities Management,SECURITY SERVICES             
BANNERDALE                    ,8410,GENERAL OFFICE EXPENSES       ,01/10/2013,3524038,177831,1458.80,AQUAID (SOUTH YORKSHIRE)                ,203007,Catering,WATER COOLERS                 
REGISTRATION & REGULATION     ,8270,SUBSCRIPTIONS                 ,01/10/2013,3524139,4500408896,913.00, THOMSON REUTERS                        ,340190,Human Resources,INFORMATION SERVICES          
PROVIDER CONTRACT AUG12-JUL13 ,9120,OTHER AGENCIES                ,01/10/2013,3524163,46/386                   ,370.31,WOODTHORPE DEVELOPMENT TRUST            ,419565,Unclassified Non Trade,CHARITIES & VOLUNTARY ORGANISA
PFI 4                         ,8350,MISCELLANEOUS EXPENSES        ,01/10/2013,3524185,185,1981.27,PARADIGM (SHEFFIELD BSF) LIMITED        ,472691,Facilities Management,FACILITIES MANAGEMENT         
29) COMM ST SMOK - BURNGREAVE ,9030,HEALTH                        ,01/10/2013,3524409,236/F13                  ,4659.00,FURNIVAL BURNGREAVE COMMUNITY PROJECTS  ,296257,Unclassified Non Trade,CHARITIES & VOLUNTARY ORGANISA
PROVIDER CONTRACT AUG12-JUL13 ,9120,OTHER AGENCIES                ,01/10/2013,3524420,INV001650                ,700.00,FIRSHILL COMM PRIMARY SCHOOL FUND       ,394542,Unclassified Non Trade,SCHOOLS - LOCAL AUTHORITY     
GRAFITTI REMOVAL              ,8060,MATERIALS AND SUPPLIES GENERAL,01/10/2013,3524422,1266,695.00,PRECISION BLAST SYSTEMS LTD             ,580298,Cleaning and Janitorial,BLAST CLEANING                
STRATEGY AND SKILLS           ,8550,OTHER SERVICES                ,01/10/2013,3524440,SLF01/13                 ,150000.00,DONBAC LIMITED                          ,580672,Consultancy,BUSINESS & MANAGEMENT CONSULTA
SCHOOLS ACCESS INITIATIVE     ,1183,PURCHASE OF EQUIPMENT         ,01/10/2013,3524441,93051,457.50,CRICK SOFTWARE LIMITED                  ,326469,Consultancy,COMPUTER SYSTEMS & SOFTWARE (D
DISTRICT HEATING GENERAL      ,6170,COMBINED HEAT AND POWER       ,01/10/2013,3524456,INVA010009               ,725.00,ENER-G SWITCH2 LTD                      ,546534,Unclassified Non Trade,INSTRUMENTATION ENGINEERS     
STREET SPORTS                 ,8490,COACHING FEES                 ,01/10/2013,3524457,MA003                    ,1840.00,OLYMPIC STYLE BOXING                    ,557825,Leisure Services,SPORTS COACHING & INSTRUCTION 
72 GREGG HOUSE ROAD           ,6210,RENTS                         ,01/10/2013,3524463,SHA020774                ,360.20,SANCTUARY GROUP                         ,351140,Unclassified Non Trade,"HOUSING ASSOCIATIONS, SOCIETIE"
GRAVES PARK - ANIMAL FARM INC ,8110,"CLOTHING, UNIFORM AND LAUNDRY ",01/10/2013,3524521,920201788,312.18,ARCO LTD                                ,203022,Clothing,SAFETY EQUIPMENT & CLOTHING   
EXECUTIVE                     ,7140,PUBLIC TRANSPORT COSTS        ,01/10/2013,3524732,01/4385789               ,412.00,CO-OPERATIVE TRAVEL MANAGEMENT          ,202987,Facilities Management,TRAVEL AGENTS & HOLIDAY COMPAN
STANIFORTH ROAD WORKSHOPS     ,7010,ROUTINE VEHICLE REPAIR & MTCE ,01/10/2013,3524817,92694,8070.34,ATS EUROMASTER LTD                      ,545966,Vehicles Not Buses,TYRE DEALERS                  
COMMERCIAL TEAM               ,8010,EQUIPMENT PURCHASE AND REPAIR ,01/10/2013,3524818,122883,820.03,TOYS R US LTD                           ,387668,Education,TOY SHOPS                     
CARILLION CONTROL ACCOUNT     ,9620,FINANCIAL PROCESSES           ,01/10/2013,3524823,131205,41618.79,CARILLION (AMBS) LTD                    ,541917,Facilities Management,FACILITIES MANAGEMENT         
OBSOLETE HEATING              ,1157,DWELLINGS MAIN CONTRACT       ,01/10/2013,3524827,13030054,80640.00,KIER SHEFFIELD LLP                      ,352687,Construction,PROPERTY MAINTENANCE & REPAIRS
HEATING BREAKDOWNS            ,1157,DWELLINGS MAIN CONTRACT       ,01/10/2013,3524828,13030055,12600.00,KIER SHEFFIELD LLP                      ,352687,Construction,PROPERTY MAINTENANCE & REPAIRS
PLAYGROUND MAINTENANCE & INSPE,8060,MATERIALS AND SUPPLIES GENERAL,01/10/2013,3524844,5/912/25LM/40813         ,466.98,WILDSCAPES LTD                          ,472494,Consultancy,LANDSCAPE ARCHITECTS & DESIGNE
PROVIDER CONTRACT AUG12-JUL13 ,9120,OTHER AGENCIES                ,01/10/2013,3524860,20,540.00,BRIGHT STARS MOBILE CRECHE SERVICES     ,402718,Social Community Care,NURSERIES & CRECHES           
PROVIDER CONTRACT AUG12-JUL13 ,9120,OTHER AGENCIES                ,01/10/2013,3524862,INV001227                ,350.00,BIRLEY  COMMUNITY PRIMARY SCHOOL        ,402925,Unclassified Non Trade,SCHOOLS - LOCAL AUTHORITY     
YOUTH JUSTICE SERVICE         ,9120,OTHER AGENCIES                ,01/10/2013,3525118,SSYJS004                 ,2201.92,THE MUSICAL WORKS                       ,368576,Unclassified Non Trade,COMMUNITY PROJECTS            
CAPITA CONTROL A/C            ,9620,FINANCIAL PROCESSES           ,01/10/2013,3525126,93197056,597131.59,CAPITA BUSINESS SERVICES LTD            ,505663,Human Resources,BUSINESS INFORMATION SERVICES 
COMMUNICATIONS                ,9120,OTHER AGENCIES                ,01/10/2013,3525327,260973,641.70,OTW IMAGING LTD.                        ,303282,Facilities Management,PRINTERS                      
BENTS GREEN                   ,1161,NC&A MAIN CONTRACT            ,01/10/2013,3525405,1207,15324.14,SHEFFIELD LEP LTD                       ,482230,Unclassified Non Trade,LOCAL GOVERNMENT              
NLDC (AUG 12 - JULY 13)       ,9120,OTHER AGENCIES                ,01/10/2013,3525406,SOARCO/941               ,3780.00,SOAR WORKS ENTERPRISE CENTRE            ,449096,Unclassified Non Trade,COMMUNITY NETWORKS            
YOUTH JUSTICE SERVICE         ,9120,OTHER AGENCIES                ,01/10/2013,3525407,54,35162.50,REMEDI                                  ,329612,Unclassified Non Trade,CHARITIES & VOLUNTARY ORGANISA
TRANSPORT FLEET MANAGEMENT    ,8070,STOCKS AND STORES             ,01/10/2013,3525409,1183313,25013.01,CARLTON FUELS                           ,466741,Vehicles Not Buses,FUEL DEALERS                  
BOOKS & OTHER MATERIALS       ,8080,LIBRARY MATERIALS             ,01/10/2013,3525420,1798594,544.23,BERTRAM LIBRARY SERVICES                ,418929,Education,EDUCATIONAL EQUIPMENT & SUPPLI
BOOKS & OTHER MATERIALS       ,8080,LIBRARY MATERIALS             ,01/10/2013,3525422,1798996,529.53,BERTRAM LIBRARY SERVICES                ,418929,Education,EDUCATIONAL EQUIPMENT & SUPPLI
BOOKS & OTHER MATERIALS       ,8080,LIBRARY MATERIALS             ,01/10/2013,3525423,1798342,750.55,BERTRAM LIBRARY SERVICES                ,418929,Education,EDUCATIONAL EQUIPMENT & SUPPLI
BOOKS & OTHER MATERIALS       ,8080,LIBRARY MATERIALS             ,01/10/2013,3525424,1797766,289.69,BERTRAM LIBRARY SERVICES                ,418929,Education,EDUCATIONAL EQUIPMENT & SUPPLI
BOOKS & OTHER MATERIALS       ,8080,LIBRARY MATERIALS             ,01/10/2013,3525499,1799150,836.25,BERTRAM LIBRARY SERVICES                ,418929,Education,EDUCATIONAL EQUIPMENT & SUPPLI
BOOKS & OTHER MATERIALS       ,8080,LIBRARY MATERIALS             ,01/10/2013,3525501,1800193,621.53,BERTRAM LIBRARY SERVICES                ,418929,Education,EDUCATIONAL EQUIPMENT & SUPPLI
BOOKS & OTHER MATERIALS       ,8080,LIBRARY MATERIALS             ,01/10/2013,3525502,1799044,420.60,BERTRAM LIBRARY SERVICES                ,418929,Education,EDUCATIONAL EQUIPMENT & SUPPLI
BOOKS & OTHER MATERIALS       ,8080,LIBRARY MATERIALS             ,01/10/2013,3525505,1801563,368.41,BERTRAM LIBRARY SERVICES                ,418929,Education,EDUCATIONAL EQUIPMENT & SUPPLI
BOOKS & OTHER MATERIALS       ,8080,MEDIA                         ,01/10/2013,3525535,1805107,323.95,BERTRAM LIBRARY SERVICES                ,418929,Education,EDUCATIONAL EQUIPMENT & SUPPLI
BOOKS & OTHER MATERIALS       ,8080,LIBRARY MATERIALS             ,01/10/2013,3525538,1800715,382.55,BERTRAM LIBRARY SERVICES                ,418929,Education,EDUCATIONAL EQUIPMENT & SUPPLI
CITY WIDE ALARM - GENERAL     ,8590,LANDLINE TELEPHONES           ,01/10/2013,3525127,VP79239170M1410152       ,913.63,BRITISH TELECOMMUNICATIONS PLC          ,295860,ICT,TELECOMMUNICATION SERVICES    
PURCHASING LEARNING DISABILITI,4260,DIRECT PAYMENTS               ,01/10/2013,3525048,J711995                  ,3638.08,REDACTED PERSONAL DATA,483029,Social Community Care,CAREFIRST DIRECT PAYMENTS     
ADULT SOCIAL CARE PURCHASING  ,9190,DIRECT PAYMENTS               ,01/10/2013,3525049,J711995                  ,281.62,REDACTED PERSONAL DATA,558152,Social Community Care,CAREFIRST DIRECT PAYMENTS     
ADULT SOCIAL CARE PURCHASING  ,9190,DIRECT PAYMENTS               ,01/10/2013,3525050,J711995                  ,5666.50,IBK INITIATIVES                         ,561085,Social Community Care,CAREFIRST DIRECT PAYMENTS     
ADULT SOCIAL CARE PURCHASING  ,9190,DIRECT PAYMENTS               ,01/10/2013,3525051,J711995                  ,720.00,REDACTED PERSONAL DATA,563890,Social Community Care,CAREFIRST DIRECT PAYMENTS     
PURCHASING                    ,9190,DIRECT PAYMENTS               ,01/10/2013,3525053,J711995                  ,1059.04,REDACTED PERSONAL DATA,587630,Social Community Care,CAREFIRST DIRECT PAYMENTS     
PURCHASING                    ,9190,DIRECT PAYMENTS               ,01/10/2013,3525054,J711995                  ,1190.01,REDACTED PERSONAL DATA,587820,Social Community Care,CAREFIRST DIRECT PAYMENTS     
ADULT SOCIAL CARE PURCHASING  ,9190,DIRECT PAYMENTS               ,01/10/2013,3525055,J711995                  ,353.75,REDACTED PERSONAL DATA,587862,Social Community Care,CAREFIRST DIRECT PAYMENTS     
CARERS SPECIAL GRANT          ,9190,DIRECT PAYMENTS               ,01/10/2013,3525056,J711995                  ,544.37,REDACTED PERSONAL DATA,587907,Social Community Care,CAREFIRST DIRECT PAYMENTS     
ADULT SOCIAL CARE PURCHASING  ,9190,SUPPORT PLANNING COSTS        ,01/10/2013,3525058,J711996                  ,276.75,SMART SUPPORT SERVICES (SHEFFIELD) LTD  ,565200,Social Community Care,CAREFIRST DIRECT PAYMENTS     
DRUG & ALCOHOL MH -PURCHASING ,9250,INDEPENDENT DAY CARE          ,01/10/2013,3525060,S13-1270                 ,6500.00,TTP COUNSELLING CENTRE LTD              ,534399,Medical ,DRUG ABUSE - ADVICE & COUNSELL
DRUG & ALCOHOL MH -PURCHASING ,9250,INDEPENDENT DAY CARE          ,01/10/2013,3525061,S13-1287                 ,2357.19,TTP COUNSELLING CENTRE LTD              ,534399,Medical ,DRUG ABUSE - ADVICE & COUNSELL
PURCHASING LEARNING DISABILITI,9250,INDEPENDENT DAY CARE          ,01/10/2013,3525062,SB1310                   ,420.00,ORCHARD CARE RESIDENTIAL HOME           ,362100,Social Community Care,NURSING HOMES                 
PURCHASING LEARNING DISABILITI,9190,CITYWIDE SPOT                 ,01/10/2013,3525065,402,1040.00,ITS MY LIFE LTD                         ,558028,Social Community Care,HOME HELP SERVICES - PRIVATE  
PURCHASING LEARNING DISABILITI,9190,CITYWIDE SPOT                 ,01/10/2013,3525066,454,754.00,DOMUS HEALTHCARE (ROTHERHAM) LIMITED    ,574392,Social Community Care,RESIDENTIAL CARE HOMES        
PURCHASING                    ,9190,CITYWIDE SPOT                 ,01/10/2013,3525067,100765,372.78,TOGETHER                                ,453139,Unclassified Non Trade,CHARITIES & VOLUNTARY ORGANISA
PURCHASING LEARNING DISABILITI,9190,CITYWIDE SPOT                 ,01/10/2013,3525068,514,754.00,DOMUS HEALTHCARE (ROTHERHAM) LIMITED    ,574392,Social Community Care,RESIDENTIAL CARE HOMES        
PURCHASING LEARNING DISABILITI,9190,CITYWIDE SPOT                 ,01/10/2013,3525069,554,565.50,DOMUS HEALTHCARE (ROTHERHAM) LIMITED    ,574392,Social Community Care,RESIDENTIAL CARE HOMES        
PURCHASING LEARNING DISABILITI,9190,CITYWIDE SPOT                 ,01/10/2013,3525070,A05411                   ,7260.00,AUTISM PLUS LTD                         ,330606,Unclassified Non Trade,CHARITIES & VOLUNTARY ORGANISA
PURCHASING LEARNING DISABILITI,9210,FUNDED NURSING CARE (INCOME)  ,01/10/2013,3525071,A05433                   ,279.36,AUTISM PLUS LTD                         ,330606,Unclassified Non Trade,CHARITIES & VOLUNTARY ORGANISA
PURCHASING                    ,9190,CITYWIDE SPOT                 ,01/10/2013,3525072,100766,367.04,TOGETHER                                ,453139,Unclassified Non Trade,CHARITIES & VOLUNTARY ORGANISA
INDEPENDENT FOSTERING PLACEMEN,9270,INDEPENDENT FOSTERING         ,01/10/2013,3525032,15501,2813.96,THE FOSTER CARE CO-OPERATIVE LTD.       ,433761,Social Community Care,ADOPTION & FOSTERING          
INDEPENDENT FOSTERING PLACEMEN,9270,INDEPENDENT FOSTERING         ,01/10/2013,3525033,16232,3158.40,FOSTERING PEOPLE LIMITED                ,329839,Social Community Care,ADOPTION & FOSTERING          
INDEPENDENT FOSTERING PLACEMEN,9270,INDEPENDENT FOSTERING         ,01/10/2013,3525034,4591,11784.92,TREEHOUSE CARE FOSTERING SOLUTIONS LTD  ,452499,Social Community Care,ADOPTION & FOSTERING          
INDEPENDENT FOSTERING PLACEMEN,9270,INDEPENDENT FOSTERING         ,01/10/2013,3525035,116451,3514.84,CAPSTONE FOSTER CARE (NORTH) LTD        ,586224,Social Community Care,ADOPTION & FOSTERING          
INDEPENDENT FOSTERING PLACEMEN,9270,INDEPENDENT FOSTERING         ,01/10/2013,3525036,135879,874.00,SWIIS FOSTER CARE LTD.                  ,349291,Social Community Care,ADOPTION & FOSTERING          
INDEPENDENT FOSTERING PLACEMEN,9270,INDEPENDENT FOSTERING         ,01/10/2013,3525037,135880,830.00,SWIIS FOSTER CARE LTD.                  ,349291,Social Community Care,ADOPTION & FOSTERING          
LEAVING CARE                  ,9270,CARELEAVERS ACCOMMODATION     ,01/10/2013,3525038,14885,2000.00,REDACTED PERSONAL DATA,519053,Social Community Care,CHILDCARE SERVICES            
INDEPENDENT RES BLOCK PLACEMEN,9270,INDEPENDENT RESIDENTIAL PMENT ,01/10/2013,3525040,25991,9636.76,THE KEYS GROUP                          ,328876,Social Community Care,CHILDREN'S HOMES              
LEAVING CARE                  ,9270,CARELEAVERS ACCOMMODATION     ,01/10/2013,3525043,A1423                    ,453.30,JUST ONE RECRUITMENT & TRAINING LTD     ,583918,Human Resources,EMPLOYMENT & RECRUITMENT AGENC
INDEPENDENT RES BLOCK PLACEMEN,9270,INDEPENDENT RESIDENTIAL PMENT ,01/10/2013,3525044,121107,7499.94,QUALITY TIME CARE LTD                   ,505285,Social Community Care,CHILDCARE SERVICES            
INDEPENDENT RES BLOCK PLACEMEN,9270,INDEPENDENT RESIDENTIAL PMENT ,01/10/2013,3525045,121116,11071.34,QUALITY TIME CARE LTD                   ,505285,Social Community Care,CHILDCARE SERVICES            
LEAVING CARE                  ,9270,CARELEAVERS ACCOMMODATION     ,01/10/2013,3525046,14853-                   ,405.74,REDACTED PERSONAL DATA,573543,Social Community Care,ADOPTION & FOSTERING          
EAST SA - CIN S17             ,9270,CARELEAVERS INDEPENDENT LIVING,01/10/2013,3525047,EAST/105                 ,756.00,REDACTED PERSONAL DATA,536243,Unclassified Non Trade,OUT OF SCOPE FOR SIC MONITORIN
 LUNCH CLUB GRANT             ,8180,GRANTS                        ,01/10/2013,3525174,MPA20131001161 1         ,958.50,BANNER CROSS LUNCHEON & FRIENDSHIP CLUB ,326250,Unclassified Non Trade,PLACES OF WORSHIP             
 LUNCH CLUB GRANT             ,8180,GRANTS                        ,01/10/2013,3525175,MPA20131001161 10        ,901.00,GREYSTONES LUNCH CLUB                   ,295226,Unclassified Non Trade,CHARITIES & VOLUNTARY ORGANISA
 LUNCH CLUB GRANT             ,8180,GRANTS                        ,01/10/2013,3525177,MPA20131001161 12        ,544.75,ADLINGTON LUNCHEON CLUB                 ,295201,Unclassified Non Trade,CHARITIES & VOLUNTARY ORGANISA
 LUNCH CLUB GRANT             ,8180,GRANTS                        ,01/10/2013,3525178,MPA20131001161 13        ,1299.50,DARNALL LUNCH CLUB                      ,295216,Unclassified Non Trade,CHARITIES & VOLUNTARY ORGANISA
 LUNCH CLUB GRANT             ,8180,GRANTS                        ,01/10/2013,3525180,MPA20131001161 15        ,565.50,GLEADLESS VALLEY LUNCHEON CLUB          ,295224,Unclassified Non Trade,CHARITIES & VOLUNTARY ORGANISA
 LUNCH CLUB GRANT             ,8180,GRANTS                        ,01/10/2013,3525181,MPA20131001161 16        ,668.00,DUKE STREET COMMUNITY CENTRE            ,375030,Unclassified Non Trade,COMMUNITY CENTRES             
 LUNCH CLUB GRANT             ,8180,GRANTS                        ,01/10/2013,3525182,MPA20131001161 17        ,1563.25,ST OSWALDS LUNCHEON CLUB                ,385325,Unclassified Non Trade,CHARITIES & VOLUNTARY ORGANISA
 LUNCH CLUB GRANT             ,8180,GRANTS                        ,01/10/2013,3525183,MPA20131001161 18        ,278.25,DORE & TOTLEY DAY CENTRE LUNCHEON CLUB  ,295218,Unclassified Non Trade,CHARITIES & VOLUNTARY ORGANISA
 LUNCH CLUB GRANT             ,8180,GRANTS                        ,01/10/2013,3525184,MPA20131001161 19        ,1945.00,BIRLEY SPA LUNCH CLUB                   ,295206,Unclassified Non Trade,CHARITIES & VOLUNTARY ORGANISA
 LUNCH CLUB GRANT             ,8180,GRANTS                        ,01/10/2013,3525185,MPA20131001161 2         ,713.50,CHRIST CHURCH PITSMOOR LUNCH CLUB       ,321910,Unclassified Non Trade,CHARITIES & VOLUNTARY ORGANISA
 LUNCH CLUB GRANT             ,8180,GRANTS                        ,01/10/2013,3525187,MPA20131001161 21        ,405.75,MICHAEL CHURCH LOWEDGES THURS LUNCH CLUB,295189,Unclassified Non Trade,CHARITIES & VOLUNTARY ORGANISA
 LUNCH CLUB GRANT             ,8180,GRANTS                        ,01/10/2013,3525188,MPA20131001161 22        ,661.50,ST JOHN'S ABBEYDALE LUNCH CLUB          ,385324,Unclassified Non Trade,CHARITIES & VOLUNTARY ORGANISA
 LUNCH CLUB GRANT             ,8180,GRANTS                        ,01/10/2013,3525189,MPA20131001161 23        ,544.50,GRAPEVINE CENTRE LUNCHEON CLUB          ,295190,Unclassified Non Trade,CHARITIES & VOLUNTARY ORGANISA
 LUNCH CLUB GRANT             ,8180,GRANTS                        ,01/10/2013,3525190,MPA20131001161 24        ,1439.50,PITSMOOR LUNCH CLUB                     ,295194,Unclassified Non Trade,CHARITIES & VOLUNTARY ORGANISA
 LUNCH CLUB GRANT             ,8180,GRANTS                        ,01/10/2013,3525191,MPA20131001161 25        ,1193.75,THE SALVATION ARMY SHEFFIELD CASTLE     ,327783,Unclassified Non Trade,"HOUSING ASSOCIATIONS, SOCIETIE"
 LUNCH CLUB GRANT             ,8180,GRANTS                        ,01/10/2013,3525193,MPA20131001161 27        ,486.75,WADSLEY CHURCH LUNCH CLUB               ,295167,Unclassified Non Trade,CHARITIES & VOLUNTARY ORGANISA
 LUNCH CLUB GRANT             ,8180,GRANTS                        ,01/10/2013,3525194,MPA20131001161 28        ,870.25,SHIREGREEN UNITED REFORMED CHURCH       ,295203,Unclassified Non Trade,PLACES OF WORSHIP             
 LUNCH CLUB GRANT             ,8180,GRANTS                        ,01/10/2013,3525195,MPA20131001161 29        ,583.00,ST TIMOTHY'S LUNCH CLUB                 ,295163,Unclassified Non Trade,CHARITIES & VOLUNTARY ORGANISA
 LUNCH CLUB GRANT             ,8180,GRANTS                        ,01/10/2013,3525196,MPA20131001161 3         ,1014.25,CROSSPOOL LUNCH CLUB                    ,321911,Unclassified Non Trade,CHARITIES & VOLUNTARY ORGANISA
 LUNCH CLUB GRANT             ,8180,GRANTS                        ,01/10/2013,3525197,MPA20131001161 30        ,749.00,MEERSBROOK PARK LUNCH CLUB              ,363027,Unclassified Non Trade,CHARITIES & VOLUNTARY ORGANISA
 LUNCH CLUB GRANT             ,8180,GRANTS                        ,01/10/2013,3525198,MPA20131001161 31        ,2008.00,ST BARTHOLOMEWS LUNCH CLUB              ,384447,Unclassified Non Trade,CHARITIES & VOLUNTARY ORGANISA
 LUNCH CLUB GRANT             ,8180,GRANTS                        ,01/10/2013,3525199,MPA20131001161 32        ,829.00,ST LEONARD'S LUNCH CLUB                 ,296991,Unclassified Non Trade,CHARITIES & VOLUNTARY ORGANISA
 LUNCH CLUB GRANT             ,8180,GRANTS                        ,01/10/2013,3525200,MPA20131001161 33        ,847.00,ST MARY'S LUNCH CLUB                    ,322012,Unclassified Non Trade,CHARITIES & VOLUNTARY ORGANISA
 LUNCH CLUB GRANT             ,8180,GRANTS                        ,01/10/2013,3525201,MPA20131001161 34        ,577.50,TINSLEY COMMUNITY CENTRE LUNCH CLUB     ,297105,Unclassified Non Trade,CHARITIES & VOLUNTARY ORGANISA
 LUNCH CLUB GRANT             ,8180,GRANTS                        ,01/10/2013,3525203,MPA20131001161 36        ,1325.00,ST MARY'S HANDSWORTH LUNCH CLUB         ,300780,Unclassified Non Trade,CHARITIES & VOLUNTARY ORGANISA
 LUNCH CLUB GRANT             ,8180,GRANTS                        ,01/10/2013,3525204,MPA20131001161 37        ,698.50,WILLIAM TEMPLE LUNCH CLUB               ,299806,Unclassified Non Trade,CHARITIES & VOLUNTARY ORGANISA
 LUNCH CLUB GRANT             ,8180,GRANTS                        ,01/10/2013,3525206,MPA20131001161 39        ,700.00,FOXHILL & BIRLEY CARR LIVE AT HOME SCHEM,349900,Unclassified Non Trade,CHARITIES & VOLUNTARY ORGANISA
 LUNCH CLUB GRANT             ,8180,GRANTS                        ,01/10/2013,3525208,MPA20131001161 40        ,482.00,LOWER SHIREGREEN LUNCH CLUB             ,299896,Unclassified Non Trade,CHARITIES & VOLUNTARY ORGANISA
 LUNCH CLUB GRANT             ,8180,GRANTS                        ,01/10/2013,3525209,MPA20131001161 41        ,288.50,ST MARKS LUNCH & FRIENDSHIP CLUB        ,301346,Unclassified Non Trade,PLACES OF WORSHIP             
 LUNCH CLUB GRANT             ,8180,GRANTS                        ,01/10/2013,3525212,MPA20131001161 44        ,416.75,LOWEDGES LUNCH CLUB                     ,353522,Unclassified Non Trade,CHARITIES & VOLUNTARY ORGANISA
 LUNCH CLUB GRANT             ,8180,GRANTS                        ,01/10/2013,3525213,MPA20131001161 45        ,1110.50,FRECHEVILLE PARISH DAY CENTRE           ,348612,Unclassified Non Trade,LOCAL GOVERNMENT              
 LUNCH CLUB GRANT             ,8180,GRANTS                        ,01/10/2013,3525215,MPA20131001161 47        ,353.25,ANGEL LUNCH CLUB                        ,481463,Unclassified Non Trade,CHARITIES & VOLUNTARY ORGANISA
 LUNCH CLUB GRANT             ,8180,GRANTS                        ,01/10/2013,3525216,MPA20131001161 48        ,646.50,WESLEY HALL LUNCH CLUB                  ,511866,Unclassified Non Trade,CHARITIES & VOLUNTARY ORGANISA
 LUNCH CLUB GRANT             ,8180,GRANTS                        ,01/10/2013,3525217,MPA20131001161 49        ,973.75,MOSBOROUGH LUNCH & SOCIAL CLUB          ,510333,Leisure Services,"CLUBS & ASSOCIATIONS - SOCIAL,"
 LUNCH CLUB GRANT             ,8180,GRANTS                        ,01/10/2013,3525218,MPA20131001161 5         ,431.75,HALLAM METHODIST LUNCH CLUB             ,321917,Unclassified Non Trade,CHARITIES & VOLUNTARY ORGANISA
 LUNCH CLUB GRANT             ,8180,GRANTS                        ,01/10/2013,3525219,MPA20131001161 50        ,932.75,THE THURSDAY CLUB                       ,451641,Unclassified Non Trade,CHARITIES & VOLUNTARY ORGANISA
 LUNCH CLUB GRANT             ,8180,GRANTS                        ,01/10/2013,3525221,MPA20131001161 52        ,548.50,MANOR LODGE LUNCHEON CLUB               ,545135,Unclassified Non Trade,CHARITIES & VOLUNTARY ORGANISA
 LUNCH CLUB GRANT             ,8180,GRANTS                        ,01/10/2013,3525222,MPA20131001161 53        ,335.75,MADINA ASIAN ELDERLY WOMEN'S LUNCH CLUB ,549528,Unclassified Non Trade,CHARITIES & VOLUNTARY ORGANISA
 LUNCH CLUB GRANT             ,8180,GRANTS                        ,01/10/2013,3525223,MPA20131001161 54        ,625.00,MADINA ELDERLY DAY CARE CENTRE (MEN'S LU,549532,Unclassified Non Trade,CHARITIES & VOLUNTARY ORGANISA
 LUNCH CLUB GRANT             ,8180,GRANTS                        ,01/10/2013,3525225,MPA20131001161 56        ,264.00,PARSON CROSS COMMUNITY DEVELOPMENT FORUM,385089,Unclassified Non Trade,CHARITIES & VOLUNTARY ORGANISA
 LUNCH CLUB GRANT             ,8180,GRANTS                        ,01/10/2013,3525226,MPA20131001161 6         ,278.25,OUGHTIBRIDGE & DISTRICT LUNCH CLUB      ,325339,Unclassified Non Trade,CHARITIES & VOLUNTARY ORGANISA
 LUNCH CLUB GRANT             ,8180,GRANTS                        ,01/10/2013,3525228,MPA20131001161 8         ,942.00,ST SAVIOURS LUNCH CLUB                  ,384448,Unclassified Non Trade,CHARITIES & VOLUNTARY ORGANISA
 LUNCH CLUB GRANT             ,8180,GRANTS                        ,01/10/2013,3525229,MPA20131001161 9         ,955.25,WOODSEATS METHODIST LUNCH CLUB          ,325667,Unclassified Non Trade,CHARITIES & VOLUNTARY ORGANISA
ADULT SOCIAL CARE PURCHASING  ,9200,CONTINUING RESIDENTIAL CARE   ,01/10/2013,3525011,J679927 150913           ,1608.00,HAVEN LODGE CARE HOME                   ,582721,Social Community Care,RESIDENTIAL CARE HOMES        
ADULT SOCIAL CARE PURCHASING  ,9200,CONTINUING RESIDENTIAL CARE   ,01/10/2013,3525012,J680171 150913           ,3485.88,MALLARD COURT CARE HOME                 ,511603,Social Community Care,NURSING HOMES                 
ADULT SOCIAL CARE PURCHASING  ,9200,CONTINUING RESIDENTIAL CARE   ,01/10/2013,3525013,J701352 131013           ,1608.00,HAVEN LODGE CARE HOME                   ,582721,Social Community Care,RESIDENTIAL CARE HOMES        
ADULT SOCIAL CARE PURCHASING  ,9200,CONTINUING RESIDENTIAL CARE   ,01/10/2013,3525014,J701436 131013           ,4448.00,MOORLAND HOUSE                          ,361905,Social Community Care,RESIDENTIAL CARE HOMES        
ADULT SOCIAL CARE PURCHASING  ,9200,CONTINUING RESIDENTIAL CARE   ,01/10/2013,3525015,J701437 131013           ,2080.00,QUEENSWOOD METHODIST RES HOME           ,361934,Social Community Care,RESIDENTIAL CARE HOMES        
ADULT SOCIAL CARE PURCHASING  ,9200,CONTINUING RESIDENTIAL CARE   ,01/10/2013,3525016,J701546 131013           ,1449.52,METHODIST HOMES FOR THE AGED            ,415177,Social Community Care,RESIDENTIAL CARE HOMES        
ADULT SOCIAL CARE PURCHASING  ,9200,CONTINUING RESIDENTIAL CARE   ,01/10/2013,3525017,J701591 131013           ,3485.88,MALLARD COURT CARE HOME                 ,511603,Social Community Care,NURSING HOMES                 
ADULT SOCIAL CARE PURCHASING  ,9200,CONTINUING RESIDENTIAL CARE   ,01/10/2013,3525018,J701612 131013           ,50944.00,SANCTUARY CARE LIMITED                  ,560422,Social Community Care,NURSING HOMES                 
ADULT SOCIAL CARE PURCHASING  ,9210,CONTINUING NURSING CARE       ,01/10/2013,3525019,J707639 131013           ,15124.00,HOLMWOOD CARE HOME                      ,331238,Social Community Care,NURSING HOMES                 
ADULT SOCIAL CARE PURCHASING  ,9200,CONTINUING RESIDENTIAL CARE   ,01/10/2013,3525020,J710792 131013           ,8633.57,LEAHYRST RESIDENTIAL CARE HOME          ,361842,Social Community Care,RESIDENTIAL CARE HOMES        
ADULT SOCIAL CARE PURCHASING  ,9200,CONTINUING RESIDENTIAL CARE   ,01/10/2013,3525021,J710793 131013           ,1918.57,HADDON COURT NURSING HOME               ,361916,Social Community Care,NURSING HOMES                 
ADULT SOCIAL CARE PURCHASING  ,9210,CONTINUING NURSING CARE       ,01/10/2013,3525022,J711475 131013           ,3910.00,CRAEGMOOR  - RICHMOND HEIGHTS           ,361933,Social Community Care,NURSING HOMES                 
ADULT SOCIAL CARE PURCHASING  ,9200,CONTINUING RESIDENTIAL CARE   ,01/10/2013,3525023,J711991 131013           ,19893.00,ROSEBERRY CARE CENTRES GB LTD           ,362099,Social Community Care,RESIDENTIAL CARE HOMES        
ADULT SOCIAL CARE PURCHASING  ,9200,CONTINUING RESIDENTIAL CARE   ,01/10/2013,3525024,J711992 131013           ,4788.00,ROSEBERRY CARE CENTRES GB LTD           ,361904,Social Community Care,NURSING HOMES                 
ADULT SOCIAL CARE PURCHASING  ,9200,CONTINUING RESIDENTIAL CARE   ,01/10/2013,3525025,J711993 131013           ,3550.00,ROSEBERRY CARE CENTRES GB LTD           ,368334,Social Community Care,NURSING HOMES                 
ADULT SOCIAL CARE PURCHASING  ,9210,CONTINUING NURSING CARE       ,01/10/2013,3525025,J711993 131013           ,4537.15,ROSEBERRY CARE CENTRES GB LTD           ,368334,Social Community Care,NURSING HOMES                 
ADULT SOCIAL CARE PURCHASING  ,9200,SHORT TERM RESIDENTIAL CARE   ,01/10/2013,3525027,J693087 180813           ,3192.00,SANCTUARY CARE LIMITED                  ,560422,Social Community Care,NURSING HOMES                 
ADULT SOCIAL CARE PURCHASING  ,9200,SHORT TERM RESIDENTIAL CARE   ,01/10/2013,3525028,J707311 150913           ,2035.14,SANCTUARY CARE LIMITED                  ,560422,Social Community Care,NURSING HOMES                 
ADULT SOCIAL CARE PURCHASING  ,9200,SHORT TERM RESIDENTIAL CARE   ,01/10/2013,3525029,J711906 150913           ,1128.57,TAPTON COURT NURSING HOME               ,362076,Social Community Care,NURSING HOMES                 
ADULT SOCIAL CARE PURCHASING  ,9200,SHORT TERM RESIDENTIAL CARE   ,01/10/2013,3525030,J711907 150913           ,504.29,REGAL CARE TRADING LTD                  ,344721,Social Community Care,RESIDENTIAL CARE HOMES        
ADULT SOCIAL CARE PURCHASING  ,9200,SHORT TERM RESIDENTIAL CARE   ,01/10/2013,3525031,J711908 150913           ,741.00,ROSEBERRY CARE CENTRES GB LTD           ,361904,Social Community Care,NURSING HOMES                 
PUBLIC HEALTH - DPH           ,9120,OTHER AGENCIES                ,02/10/2013,3526140,ERS INVOICE90756         ,2130.00,DARNALL HEALTH CNTRE/RICHMOND RD SURGERY,585887,Unclassified Trade,PUBLIC HEALTH SUPPLIERS       
ADOPTION SERVICE              ,8550,OTHER SERVICES                ,02/10/2013,3526141,ERS INVOICE90757         ,480.00,REDACTED PERSONAL DATA,579678,Unclassified Non Trade,OUT OF SCOPE FOR SIC MONITORIN
SHORT BREAKS FUNDING FOR DISAB,8440,FEE EXPENSES                  ,02/10/2013,3526142,ERS INVOICE90758         ,400.00,REDACTED PERSONAL DATA,542928,Unclassified Non Trade,OUT OF SCOPE FOR SIC MONITORIN
SHORT BREAKS FUNDING FOR DISAB,8440,FEE EXPENSES                  ,02/10/2013,3526143,ERS INVOICE90759         ,400.00,REDACTED PERSONAL DATA,541189,Unclassified Non Trade,OUT OF SCOPE FOR SIC MONITORIN
SHORT BREAKS FUNDING FOR DISAB,8440,FEE EXPENSES                  ,02/10/2013,3526144,ERS INVOICE90760         ,400.00,REDACTED PERSONAL DATA,587962,Unclassified Non Trade,OUT OF SCOPE FOR SIC MONITORIN
SHORT BREAKS FUNDING FOR DISAB,8440,FEE EXPENSES                  ,02/10/2013,3526145,ERS INVOICE90761         ,400.00,REDACTED PERSONAL DATA,543581,Unclassified Non Trade,OUT OF SCOPE FOR SIC MONITORIN
WORK CHOICE                   ,8440,FEE EXPENSES                  ,02/10/2013,3526146,ERS INVOICE90762         ,506.00, LOVE2REWARD                            ,568717,Financial Services,FINANCIAL SERVICES            
VSP DELIVER                   ,9120,OTHER AGENCIES                ,02/10/2013,3526147,ERS INVOICE90764         ,8509.00,DIMENSIONS TRAINING SOLUTIONS           ,433070,Education,HAIRDRESSING SCHOOLS          
VSP DELIVER                   ,9120,OTHER AGENCIES                ,02/10/2013,3526148,ERS INVOICE90765         ,7699.38,DONCASTER ROTH & DIST (MOTOR TRADES)GTA ,204434,Human Resources,TRAINING CENTRES              
VSP DELIVER                   ,9120,OTHER AGENCIES                ,02/10/2013,3526149,ERS INVOICE90766         ,5760.00,WHITE ROSE SCHOOLS LTD                  ,334662,Education,BEAUTY SCHOOLS                
VSP DELIVER                   ,9140,PRIVATE CONTRACTORS           ,02/10/2013,3526150,ERS INVOICE90767         ,7812.50,THE SHEFFIELD COLLEGE                   ,297611,Unclassified Non Trade,SCHOOLS & COLLEGES - FURTHER E
VSP DELIVER                   ,9140,PRIVATE CONTRACTORS           ,02/10/2013,3526151,ERS INVOICE90772         ,3218.75,SOUTH YORKSHIRE & HALLAMSHIRE CYP       ,431967,Unclassified Non Trade,YOUTH ORGANISATIONS & CENTRES 
VSP DELIVER                   ,9140,PRIVATE CONTRACTORS           ,02/10/2013,3526152,ERS INVOICE90773         ,2890.63,SHEFFIELD WEDNESDAY ACADEMY             ,461589,Leisure Services,SPORTS CLUBS & ASSOCIATIONS   
VSP DELIVER                   ,9140,PRIVATE CONTRACTORS           ,02/10/2013,3526153,ERS INVOICE90774         ,2953.13,SYTG LTD                                ,306547,Human Resources,TRAINING CENTRES              
VSP DELIVER                   ,9140,PRIVATE CONTRACTORS           ,02/10/2013,3526154,ERS INVOICE90777         ,4750.00,Y A S Y                                 ,306981,Unclassified Non Trade,YOUTH ORGANISATIONS & CENTRES 
SHORT BREAKS FUNDING FOR DISAB,8440,FEE EXPENSES                  ,02/10/2013,3526156,ERS INVOICE90781         ,400.00,REDACTED PERSONAL DATA,556914,Unclassified Non Trade,OUT OF SCOPE FOR SIC MONITORIN
SHORT BREAKS FUNDING FOR DISAB,8440,FEE EXPENSES                  ,02/10/2013,3526157,ERS INVOICE90782         ,400.00,REDACTED PERSONAL DATA,571582,Unclassified Non Trade,OUT OF SCOPE FOR SIC MONITORIN
NATIONAL ASSISTANCE CONTRACT  ,6210,RENTS                         ,02/10/2013,3526158,ERS INVOICE90783         ,375.00,TAPTON ESTATES PROPERTIES LTD           ,449360,Unclassified Trade,PROPERTY & ESTATE MANAGEMENT  
NATIONAL ASSISTANCE CONTRACT  ,6210,RENTS                         ,02/10/2013,3526159,ERS INVOICE90784         ,330.00,TAPTON ESTATES PROPERTIES LTD           ,449360,Unclassified Trade,PROPERTY & ESTATE MANAGEMENT  
NATIONAL ASSISTANCE CONTRACT  ,6210,RENTS                         ,02/10/2013,3526160,ERS INVOICE90785         ,363.00,SANCTUARY MIDLANDS                      ,437596,Unclassified Non Trade,"HOUSING ASSOCIATIONS, SOCIETIE"
SHORT BREAKS FUNDING FOR DISAB,8440,FEE EXPENSES                  ,02/10/2013,3526161,ERS INVOICE90786         ,400.00,REDACTED PERSONAL DATA,546901,Unclassified Non Trade,OUT OF SCOPE FOR SIC MONITORIN
NATIONAL ASSISTANCE CONTRACT  ,6210,RENTS                         ,02/10/2013,3526162,ERS INVOICE90787         ,350.00,CAPITAL PROPERTIES                      ,478220,Unclassified Trade,LETTING AGENTS                
NATIONAL ASSISTANCE CONTRACT  ,6210,RENTS                         ,02/10/2013,3526163,ERS INVOICE90788         ,390.00,MU PROPERTIES                           ,583024,Unclassified Trade,LETTING AGENTS                
NATIONAL ASSISTANCE CONTRACT  ,6210,RENTS                         ,02/10/2013,3526164,ERS INVOICE90789         ,390.00,MU PROPERTIES                           ,583024,Unclassified Trade,LETTING AGENTS                
CORONIAL SERVICES             ,8440,DOCTORS ATTENDANCE            ,02/10/2013,3526165,ERS INVOICE90790         ,791.85,DR J S GRENVILLE                        ,587898,Medical ,DOCTORS                       
BUS PASSES HARDSHIP FUND      ,9120,OTHER AGENCIES                ,02/10/2013,3498012,SL0065007                ,7513.70,SYPTE                                   ,208757,Transport,BUS & COACH OPERATORS & STATIO
100 APPRENTICES               ,9120,OTHER AGENCIES                ,02/10/2013,3504763,SCC019                   ,260.00,BUSINESS MARKETING SOLUTIONS LTD        ,564253,Facilities Management,MARKETING CONSULTANTS & SERVIC
100 APPRENTICES               ,9120,OTHER AGENCIES                ,02/10/2013,3505413,130,1196.00,PLANS FOR EXTENSIONS LTD                ,467218,Consultancy,ARCHITECTURAL SERVICES        
BUS PASSES HARDSHIP FUND      ,9120,OTHER AGENCIES                ,02/10/2013,3510033,SL0065613                ,7511.40,SYPTE                                   ,208757,Transport,BUS & COACH OPERATORS & STATIO
PUBLIC RIGHTS OF WAY          ,1173,INFR MAIN CONTRACT            ,02/10/2013,3511680,5/875/25LM/40813         ,15553.66,WILDSCAPES LTD                          ,472494,Consultancy,LANDSCAPE ARCHITECTS & DESIGNE
OUTDOOR EDUCATION             ,6370,GROUNDS MTCE AND ARBORICULTURE,02/10/2013,3514396,40,599.50,DALE FARM                               ,330054,Unclassified Trade,DAIRY FARMERS                 
ENERGY -SCHEME                ,6150,ELECTRICITY - INVOICE         ,02/10/2013,3517061,2714-018                 ,106381.40,NPOWER                                  ,578562,Utilities,GAS SUPPLIERS                 
WOODLAND GATEWAY BUILDING     ,1194,OTHER FEES                    ,02/10/2013,3517177,HSDSCC090913             ,4000.00,HANDSPRING DESIGN LIMITED               ,502130,Building Construction Materials,WOODTURNING & MACHINING       
ENERGY -SCHEME                ,6150,ELECTRICITY - INVOICE         ,02/10/2013,3517649,2714-019                 ,179319.19,NPOWER                                  ,578562,Utilities,GAS SUPPLIERS                 
"LIASON, DE-ESCALATION & GOV SE",8270,SUBSCRIPTIONS                 ,02/10/2013,3519224,25789,288.00,NATIONAL GOVERNORS' ASSOCIATION         ,336961,Unclassified Non Trade,CHARITIES & VOLUNTARY ORGANISA
ENERGY -SCHEME                ,6160,GAS - INVOICE                 ,02/10/2013,3519877,A3931833/MSAM80196       ,125001.38,BRITISH GAS TRADING LTD                 ,204677,Utilities,GAS SUPPLIERS                 
BS HUB MOORFOOT               ,8350,MISCELLANEOUS EXPENSES        ,02/10/2013,3519903,3087127,3805.00,CIPFA BUSINESS LTD                      ,321601,Human Resources,INSTITUTES - PROFESSIONAL     
CITY WIDE ALARMS SERVICE      ,8440,FEE EXPENSES                  ,02/10/2013,3519974,INV/70062444             ,12040.00,TUNSTALL RESPONSE LTD                   ,574413,ICT,TELECOMMUNICATIONS EQUIPMENT &
SUPPORTED HOUSING             ,8050,SOFT FURNISHINGS              ,02/10/2013,3521663,16179,494.40,ALLEN UPHOLSTERY                        ,295763,Furniture,FURNITURE MNFRS - HOME & OFFIC
GROUNDS MAINTENANCE           ,8550,OTHER SERVICES                ,02/10/2013,3521758,8520576646,359.52,VEOLIA ENVIRONMENTAL SERVICES           ,464059,Environmental Services,WASTE DISPOSAL SERVICES       
BRT NORTH                     ,1194,OTHER FEES                    ,02/10/2013,3521776,60276277_A-1             ,17610.00,AECOM LTD                               ,580256,Construction,BUILDING SERVICES             
CYCLE REPAIR AND RECYCLE      ,8440,FEE EXPENSES                  ,02/10/2013,3522290,3226,25000.00,HEELEY DEVELOPMENT TRUST                ,472941,Unclassified Non Trade,CHARITIES & VOLUNTARY ORGANISA
CCRAC RADIOS                  ,8010,EQUIPMENT PURCHASE AND REPAIR ,02/10/2013,3522295,181957,310.00,D C R S                                 ,310853,ICT,RADIO COMMUNICATION EQUIPMENT 
CYCLE REPAIR AND RECYCLE      ,8440,FEE EXPENSES                  ,02/10/2013,3522306,3227,14000.00,HEELEY DEVELOPMENT TRUST                ,472941,Unclassified Non Trade,CHARITIES & VOLUNTARY ORGANISA
GROUNDS MAINTENANCE           ,8060,MATERIALS AND SUPPLIES GENERAL,02/10/2013,3522620,1/487605                 ,258.36,BUILDERS CENTRE (SHEFFIELD) LTD         ,203585,Building Construction Materials,BUILDERS' MERCHANTS           
ARCHITECTS - SCHEME           ,8350,MISCELLANEOUS EXPENSES        ,02/10/2013,3523019,1174,6600.00,1ST HORIZON SURVEYING & ENGINEERING LTD ,574691,Consultancy,SURVEYORS - LAND              
HOSPITAL SOCIAL WORK - GENERAL,8390,STATIONERY                    ,02/10/2013,3523054,SINV00256736             ,252.80,R A ROBERTS (OFFICE EQUIPMENT) LTD      ,207777,Furniture,OFFICE FURNITURE & EQUIPMENT  
PARENTING STRATEGY            ,5750,TRAINING EXPENDITURE          ,02/10/2013,3523312,3990,450.00,FAMILY RIGHTS GROUP                     ,449796,Medical ,COUNSELLING & ADVICE SERVICES 
100 APPRENTICES               ,9120,OTHER AGENCIES                ,02/10/2013,3523539,884,457.00,FLOOR TO CEILING FITTED DESIGNS LTD     ,566301,Furniture,FURNITURE - RETAIL            
CITY DEAL                     ,9120,OTHER AGENCIES                ,02/10/2013,3523560,3817,5391.00,FERN GLOBAL LTD                         ,517222,Human Resources,EMPLOYMENT & RECRUITMENT AGENC
CITY DEAL                     ,9120,OTHER AGENCIES                ,02/10/2013,3523583,911,5391.00,THE SOURCE AT MEADOWHALL                ,350485,Human Resources,TRAINING CENTRES              
CITY DEAL                     ,9120,OTHER AGENCIES                ,02/10/2013,3523584,912,5391.00,THE SOURCE AT MEADOWHALL                ,350485,Human Resources,TRAINING CENTRES              
HRS BUSINESS SUPPORT TEAM     ,8490,TRANSLATN/SIGN/INTERPRET FEES ,02/10/2013,3523588,3158844,889.97,LANGUAGELINE SOLUTIONS                  ,206348,Human Resources,TRANSLATORS & INTERPRETERS    
HRS BUSINESS SUPPORT TEAM     ,8490,TRANSLATN/SIGN/INTERPRET FEES ,02/10/2013,3523589,3176527,845.60,LANGUAGELINE SOLUTIONS                  ,206348,Human Resources,TRANSLATORS & INTERPRETERS    
HRS BUSINESS SUPPORT TEAM     ,8490,TRANSLATN/SIGN/INTERPRET FEES ,02/10/2013,3523590,3194187,751.75,LANGUAGELINE SOLUTIONS                  ,206348,Human Resources,TRANSLATORS & INTERPRETERS    
INDEPENDENT FOSTERING PLACEMEN,9270,INDEPENDENT FOSTERING         ,02/10/2013,3525643,101310498,4328.22,BARNARDO'S                              ,328396,Unclassified Non Trade,CHARITIES & VOLUNTARY ORGANISA
HRS BUSINESS SUPPORT TEAM     ,8490,TRANSLATN/SIGN/INTERPRET FEES ,02/10/2013,3523592,3211939,680.20,LANGUAGELINE SOLUTIONS                  ,206348,Human Resources,TRANSLATORS & INTERPRETERS    
HRS BUSINESS SUPPORT TEAM     ,8400,PUBLICATIONS AND PERIODICALS  ,02/10/2013,3523594,I161599                  ,1511.00,CITIZENS ADVICE                         ,415620,Medical ,COUNSELLING & ADVICE SERVICES 
CITY DEAL                     ,8440,FEE EXPENSES                  ,02/10/2013,3523595,100399,1350.00,BW CONSULTANTS                          ,586227,Consultancy,BUSINESS & MANAGEMENT CONSULTA
BUSINESS INTELLIGENCE         ,8550,OTHER SERVICES                ,02/10/2013,3524204,WWB1051887               ,1085.75,SGS UNITED KINGDOM LTD                  ,316296,Environmental Services,"TESTING, INSPECTION & CALIBRAT"
ACCOMMODATION                 ,6210,RENTS                         ,02/10/2013,3524232,SOARCO/1082              ,8400.00,SOAR - THE LEARNING ZONE                ,557728,Unclassified Non Trade,CHARITIES & VOLUNTARY ORGANISA
ALDINE HOUSE                  ,5750,TRAINING EXPENDITURE          ,02/10/2013,3524423,CUKI31503                ,1107.72,CRISIS PREVENTION INSTITUTE             ,328692,Human Resources,TRAINING CONSULTANTS          
ALDINE HOUSE                  ,5750,TRAINING EXPENDITURE          ,02/10/2013,3524424,CUKI31504                ,1107.72,CRISIS PREVENTION INSTITUTE             ,328692,Human Resources,TRAINING CONSULTANTS          
OTHER REPAIRS & FEES          ,6030,BURGLAR ALARM REPAIRS         ,02/10/2013,3524434,ISG/SERV/009/13          ,15674.22,TELSTAR SECURITY                        ,299814,Facilities Management,SECURITY EQUIPMENT            
RESPONSIVE HM&E               ,6020,LEGIONELLA MONITORING         ,02/10/2013,3524744,10733668,333.66,RENTOKIL INITIAL UK LTD                 ,437082,Cleaning and Janitorial,CLEANING SERVICES - COMMERCIAL
SURVEYS                       ,5750,TRAINING EXPENDITURE          ,02/10/2013,3524745,7003870,1620.00,LEGIONELLA CONTROL INTERNATIONAL LTD    ,489689,Consultancy,ENVIRONMENTAL CONSULTANTS     
MONTGOMERY TERRACE            ,6370,GROUNDS MTCE AND ARBORICULTURE,02/10/2013,3524747,3IN/20127661             ,963.43,TUNSTALL HEALTHCARE (UK) LIMITED        ,209178,ICT,TELECOMMUNICATIONS EQUIPMENT &
ALDINE HOUSE                  ,8130,CATERING SUPPLIES             ,02/10/2013,3524784,256567928,600.89,YORKSHIRE PURCHASING ORGANISATION       ,295997,Unclassified Trade,PURCHASING SERVICES           
DELEGATED BUDGETS             ,8470,LEGAL FEES                    ,02/10/2013,3524812,880255,350.00,MRS K E HAYES                           ,472119,Legal Services,BARRISTERS                    
CITY DEAL                     ,9120,OTHER AGENCIES                ,02/10/2013,3524829,T112                     ,5391.00,THE EMPLOYERS FORUM                     ,353566,Unclassified Non Trade,CHARITIES & VOLUNTARY ORGANISA
DELEGATED BUDGETS             ,8470,LEGAL FEES                    ,02/10/2013,3524836,208803,1300.00,REDACTED PERSONAL DATA,580594,Unclassified Non Trade,OUT OF SCOPE FOR SIC MONITORIN
BIKE LEASING                  ,8440,FEE EXPENSES                  ,02/10/2013,3525009,1638,10000.00,GET CYCLING CIC                         ,441765,Leisure Services,CYCLING                       
BIKE LEASING                  ,8440,FEE EXPENSES                  ,02/10/2013,3525010,1615,2637.50,GET CYCLING CIC                         ,441765,Leisure Services,CYCLING                       
HME                           ,6030,REPAIRS TO TENANTED PROPERTIES,02/10/2013,3525086,SSH/CAPPROGRESP/223/13/14,5229.21,TELSTAR SECURITY                        ,299814,Facilities Management,SECURITY EQUIPMENT            
COMMUNITY ENGAGE & GOVERNANCE ,5790,EMPLOYEE EXPENSES             ,02/10/2013,3525244,IN00274363               ,625.00,MOTT MACDONALD LTD                      ,206975,Consultancy,ENGINEERS - CONSULTING        
SCHOOL SWIMMING SERVICE       ,6280,HIRE OF PREMISES              ,02/10/2013,3525333,285,504.00,MYLNHURST SPORTS EDUCATION AND LEISURE  ,518580,Unclassified Non Trade,SCHOOLS - LOCAL AUTHORITY     
SCHOOL SWIMMING SERVICE       ,6280,HIRE OF PREMISES              ,02/10/2013,3525335,265,648.00,MYLNHURST SPORTS EDUCATION AND LEISURE  ,518580,Unclassified Non Trade,SCHOOLS - LOCAL AUTHORITY     
SCHOOL SWIMMING SERVICE       ,6280,HIRE OF PREMISES              ,02/10/2013,3525336,254,540.00,MYLNHURST SPORTS EDUCATION AND LEISURE  ,518580,Unclassified Non Trade,SCHOOLS - LOCAL AUTHORITY     
CLAIMS                        ,8470,LEGAL FEES                    ,02/10/2013,3525373,01-13-0031654/1/SHEF02   ,627.25,KENNEDYS LAW LLP                        ,543971,Legal Services,SOLICITORS                    
CLAIMS                        ,8470,LEGAL FEES                    ,02/10/2013,3525378,01-13-0031651/1/SHEF03   ,950.00,KENNEDYS LAW LLP                        ,543971,Legal Services,SOLICITORS                    
CLAIMS                        ,8470,LEGAL FEES                    ,02/10/2013,3525380,01-13-0031653/1/SHEF03   ,950.00,KENNEDYS LAW LLP                        ,543971,Legal Services,SOLICITORS                    
CLAIMS                        ,8470,LEGAL FEES                    ,02/10/2013,3525381,01-13-0031650/1/SHEF03   ,1100.00,KENNEDYS LAW LLP                        ,543971,Legal Services,SOLICITORS                    
CLAIMS                        ,8470,LEGAL FEES                    ,02/10/2013,3525383,01-13-0031649/1/SHEF03   ,350.00,KENNEDYS LAW LLP                        ,543971,Legal Services,SOLICITORS                    
CLAIMS                        ,8470,LEGAL FEES                    ,02/10/2013,3525384,01-13-0031647/1/SHEF03   ,700.00,KENNEDYS LAW LLP                        ,543971,Legal Services,SOLICITORS                    
ALDINE HOUSE                  ,9120,OTHER AGENCIES                ,02/10/2013,3525396,600635,843.57,VOICE                                   ,328689,Unclassified Non Trade,CHARITIES & VOLUNTARY ORGANISA
CLAIMS                        ,8470,LEGAL FEES                    ,02/10/2013,3525412,01-13-0030678/1/SHEF03   ,700.00,KENNEDYS LAW LLP                        ,543971,Legal Services,SOLICITORS                    
CLAIMS                        ,8470,LEGAL FEES                    ,02/10/2013,3525413,01-13-0031655/1/SHEF03   ,602.00,KENNEDYS LAW LLP                        ,543971,Legal Services,SOLICITORS                    
CLAIMS                        ,8470,LEGAL FEES                    ,02/10/2013,3525414,01-13-0031658/1/SHEF03   ,1402.50,KENNEDYS LAW LLP                        ,543971,Legal Services,SOLICITORS                    
CLAIMS                        ,8470,LEGAL FEES                    ,02/10/2013,3525416,01-13-0031657/1/SHEF03   ,264.50,KENNEDYS LAW LLP                        ,543971,Legal Services,SOLICITORS                    
CLAIMS                        ,8470,LEGAL FEES                    ,02/10/2013,3525470,01-13-0031648/1/SHEF03   ,700.00,KENNEDYS LAW LLP                        ,543971,Legal Services,SOLICITORS                    
CLAIMS                        ,8470,LEGAL FEES                    ,02/10/2013,3525481,01-13-0031652/1/SHEF03   ,288.00,KENNEDYS LAW LLP                        ,543971,Legal Services,SOLICITORS                    
CLAIMS                        ,8470,LEGAL FEES                    ,02/10/2013,3525483,01-13-0031659/1/SHE114   ,1117.50,KENNEDYS LAW LLP                        ,543971,Legal Services,SOLICITORS                    
BOOKS & OTHER MATERIALS       ,8080,LIBRARY MATERIALS             ,02/10/2013,3525539,116643,868.75,ISUBSCRIBE LTD                          ,554704,Education,NEWSPAPER & MAGAZINE PUBLISHER
NEW MARKET DEVELOPMENT        ,1193,CONSULTANTS FEES              ,02/10/2013,3525552,MSM/6239                 ,10000.00,GARDINER & THEOBALD LLP                 ,480727,Consultancy,QUANTITY SURVEYORS            
BOOKS & OTHER MATERIALS       ,8080,LIBRARY MATERIALS             ,02/10/2013,3525553,1797778,1046.46,BERTRAM LIBRARY SERVICES                ,418929,Education,EDUCATIONAL EQUIPMENT & SUPPLI
BOOKS & OTHER MATERIALS       ,8080,LIBRARY MATERIALS             ,02/10/2013,3525556,1799847,737.76,BERTRAM LIBRARY SERVICES                ,418929,Education,EDUCATIONAL EQUIPMENT & SUPPLI
BOOKS & OTHER MATERIALS       ,8080,LIBRARY MATERIALS             ,02/10/2013,3525558,1796462,879.06,BERTRAM LIBRARY SERVICES                ,418929,Education,EDUCATIONAL EQUIPMENT & SUPPLI
BOOKS & OTHER MATERIALS       ,8080,LIBRARY MATERIALS             ,02/10/2013,3525560,1796460,490.59,BERTRAM LIBRARY SERVICES                ,418929,Education,EDUCATIONAL EQUIPMENT & SUPPLI
BUSINESS SUPPORT              ,8390,STATIONERY                    ,02/10/2013,3525562,SINV00257261             ,305.35,R A ROBERTS (OFFICE EQUIPMENT) LTD      ,207777,Furniture,OFFICE FURNITURE & EQUIPMENT  
NEW MARKET DEVELOPMENT        ,1193,CONSULTANTS FEES              ,02/10/2013,3525567,MSM/6238                 ,286.00,GARDINER & THEOBALD LLP                 ,480727,Consultancy,QUANTITY SURVEYORS            
BOOKS & OTHER MATERIALS       ,8080,LIBRARY MATERIALS             ,02/10/2013,3525958,1799652,393.65,BERTRAM LIBRARY SERVICES                ,418929,Education,EDUCATIONAL EQUIPMENT & SUPPLI
VACANT REPAIRS                ,6150,ELECTRICITY                   ,02/10/2013,3525769,151213543,569.45,NPOWER                                  ,437215,Utilities,ELECTRICITY COMPANIES         
CONSTRUCTION DESIGN CENTRE    ,8590,LANDLINE TELEPHONES           ,02/10/2013,3525997,286000000000,288.75,VIRGIN MEDIA PAYMENTS LIMITED           ,489482,ICT,TELECOMMUNICATION SERVICES    
STANIFORTH ROAD WORKSHOPS     ,8070,STOCKS AND STORES             ,02/10/2013,3526012,14438093,1021.30,LOOKERS FORD                            ,474939,Vehicles Not Buses,CAR DEALERS                   
STANIFORTH ROAD WORKSHOPS     ,8070,STOCKS AND STORES             ,02/10/2013,3526015,14437922,876.88,LOOKERS FORD                            ,474939,Vehicles Not Buses,CAR DEALERS                   
STANIFORTH ROAD WORKSHOPS     ,7010,ROUTINE VEHICLE REPAIR & MTCE ,02/10/2013,3526018,7316,400.00,SIGNSHOP YORKSHIRE                      ,326971,Building Construction Materials,SIGNS & NAMEPLATES            
PURCHASING LEARNING DISABILITI,9190,DIRECT PAYMENTS               ,02/10/2013,3525660,J713189                  ,2406.84,REDACTED PERSONAL DATA,503884,Social Community Care,CAREFIRST DIRECT PAYMENTS     
CARERS SPECIAL GRANT          ,9190,DIRECT PAYMENTS               ,02/10/2013,3525661,J713189                  ,1068.49,A4E                                     ,547567,Human Resources,TRAINING SERVICES             
PURCHASING LEARNING DISABILITI,9190,DIRECT PAYMENTS               ,02/10/2013,3525662,J713189                  ,547.16,PENDERELS TRUST                         ,556454,Social Community Care,CAREFIRST DIRECT PAYMENTS     
PURCHASING LEARNING DISABILITI,9190,DIRECT PAYMENTS               ,02/10/2013,3525663,J713189                  ,405.57,SPECTRUM SOCIAL CARE                    ,557844,Social Community Care,CAREFIRST DIRECT PAYMENTS     
ADULT SOCIAL CARE PURCHASING  ,9190,DIRECT PAYMENTS               ,02/10/2013,3525665,J713189                  ,700.00,REDACTED PERSONAL DATA,577586,Social Community Care,CAREFIRST DIRECT PAYMENTS     
ADULT SOCIAL CARE PURCHASING  ,9190,DIRECT PAYMENTS               ,02/10/2013,3525669,J713189                  ,450.32,REDACTED PERSONAL DATA,587812,Social Community Care,CAREFIRST DIRECT PAYMENTS     
PREVENTION & SUPPORT - CDT    ,9190,DIRECT PAYMENTS               ,02/10/2013,3525670,J713189                  ,984.00,REDACTED PERSONAL DATA,587902,Social Community Care,CAREFIRST DIRECT PAYMENTS     
PURCHASING LEARNING DISABILITI,9250,INDEPENDENT DAY CARE          ,02/10/2013,3525672,VARIOUS//                ,2574.00,SPECTRUM ACTIVE (NOT FOR PROFIT)        ,533308,Human Resources,TRAINING CENTRES              
PURCHASING LEARNING DISABILITI,9250,INDEPENDENT DAY CARE          ,02/10/2013,3525673,4173,376.00,BURTON STREET PROJECT                   ,342774,Unclassified Non Trade,CHARITIES & VOLUNTARY ORGANISA
PURCHASING LEARNING DISABILITI,9250,INDEPENDENT DAY CARE          ,02/10/2013,3525674,4174,564.00,BURTON STREET PROJECT                   ,342774,Unclassified Non Trade,CHARITIES & VOLUNTARY ORGANISA
PURCHASING LEARNING DISABILITI,9250,INDEPENDENT DAY CARE          ,02/10/2013,3525675,4176,564.00,BURTON STREET PROJECT                   ,342774,Unclassified Non Trade,CHARITIES & VOLUNTARY ORGANISA
ADULT SOCIAL CARE PURCHASING  ,9190,CITYWIDE SPOT                 ,02/10/2013,3525680,7590,650.58,INTERCARE SERVICES DIRECT               ,530605,Social Community Care,HOME CARE SERVICES            
ADULT SOCIAL CARE PURCHASING  ,9190,CITYWIDE SPOT                 ,02/10/2013,3525681,7592,916.38,INTERCARE SERVICES DIRECT               ,530605,Social Community Care,HOME CARE SERVICES            
ADULT SOCIAL CARE PURCHASING  ,9190,CITYWIDE SPOT                 ,02/10/2013,3525682,7593,783.60,INTERCARE SERVICES DIRECT               ,530605,Social Community Care,HOME CARE SERVICES            
ADULT SOCIAL CARE PURCHASING  ,9190,CITYWIDE SPOT                 ,02/10/2013,3525683,7594,2288.43,INTERCARE SERVICES DIRECT               ,530605,Social Community Care,HOME CARE SERVICES            
ADULT SOCIAL CARE PURCHASING  ,9190,CITYWIDE SPOT                 ,02/10/2013,3525684,7596,546.59,INTERCARE SERVICES DIRECT               ,530605,Social Community Care,HOME CARE SERVICES            
ADULT SOCIAL CARE PURCHASING  ,9190,CITYWIDE SPOT                 ,02/10/2013,3525685,7597,890.55,INTERCARE SERVICES DIRECT               ,530605,Social Community Care,HOME CARE SERVICES            
ADULT SOCIAL CARE PURCHASING  ,9190,CITYWIDE SPOT                 ,02/10/2013,3525686,7598,1983.72,INTERCARE SERVICES DIRECT               ,530605,Social Community Care,HOME CARE SERVICES            
PURCHASING LEARNING DISABILITI,9190,CITYWIDE SPOT                 ,02/10/2013,3525687,AB/6/227301              ,2800.04,H F TRUST LIMITED                       ,362078,Unclassified Non Trade,CHARITIES & VOLUNTARY ORGANISA
PURCHASING                    ,9190,CITYWIDE SPOT                 ,02/10/2013,3525689,1201,860.00,DIRECT HEALTH UK LIMITED                ,204388,Social Community Care,HOME CARE SERVICES            
PURCHASING LEARNING DISABILITI,9230,CCSP TRANSPORT                ,02/10/2013,3525690,SEN043806                ,807.72,SENSE                                   ,361885,Unclassified Non Trade,CHARITIES & VOLUNTARY ORGANISA
PDSI PURCHASING               ,9190,CITYWIDE SPOT                 ,02/10/2013,3525691,VARIOUS/                 ,588.48,SSP CARE SERVICES T/A COMMUNITY CARE SER,362000,Social Community Care,HOME CARE SERVICES            
ADULT SOCIAL CARE PURCHASING  ,9190,CITYWIDE SPOT                 ,02/10/2013,3525691,VARIOUS/                 ,2108.72,SSP CARE SERVICES T/A COMMUNITY CARE SER,362000,Social Community Care,HOME CARE SERVICES            
PURCHASING LEARNING DISABILITI,9190,CITYWIDE SPOT                 ,02/10/2013,3525691,VARIOUS/                 ,688.32,SSP CARE SERVICES T/A COMMUNITY CARE SER,362000,Social Community Care,HOME CARE SERVICES            
ADULT SOCIAL CARE PURCHASING  ,9210,FUNDED NURSING CARE (INCOME)  ,02/10/2013,3525691,VARIOUS/                 ,981.60,SSP CARE SERVICES T/A COMMUNITY CARE SER,362000,Social Community Care,HOME CARE SERVICES            
PURCHASING LEARNING DISABILITI,9210,FUNDED NURSING CARE (INCOME)  ,02/10/2013,3525691,VARIOUS/                 ,3522.96,SSP CARE SERVICES T/A COMMUNITY CARE SER,362000,Social Community Care,HOME CARE SERVICES            
PURCHASING LEARNING DISABILITI,9190,CITYWIDE SPOT                 ,02/10/2013,3525692,VARIOUS/                 ,570.00,SPECTRUM ACTIVE (NOT FOR PROFIT)        ,533308,Human Resources,TRAINING CENTRES              
PURCHASING LEARNING DISABILITI,9190,CITYWIDE SPOT                 ,02/10/2013,3525725,22904,2357.24,CITIZENSHIP FIRST                       ,329379,Unclassified Non Trade,CHARITIES & VOLUNTARY ORGANISA
PURCHASING LEARNING DISABILITI,9190,CITYWIDE SPOT                 ,02/10/2013,3525727,24000,1143.24,CITIZENSHIP FIRST                       ,329379,Unclassified Non Trade,CHARITIES & VOLUNTARY ORGANISA
PURCHASING LEARNING DISABILITI,9190,CITYWIDE SPOT                 ,02/10/2013,3525728,24365,725.76,CITIZENSHIP FIRST                       ,329379,Unclassified Non Trade,CHARITIES & VOLUNTARY ORGANISA
PURCHASING LEARNING DISABILITI,9190,CITYWIDE SPOT                 ,02/10/2013,3525729,25096,907.20,CITIZENSHIP FIRST                       ,329379,Unclassified Non Trade,CHARITIES & VOLUNTARY ORGANISA
PURCHASING                    ,9190,CITYWIDE SPOT                 ,02/10/2013,3525732,26922,1923.92,CITIZENSHIP FIRST                       ,329379,Unclassified Non Trade,CHARITIES & VOLUNTARY ORGANISA
PURCHASING LEARNING DISABILITI,9190,CITYWIDE SPOT                 ,02/10/2013,3525733,27287,1348.00,CITIZENSHIP FIRST                       ,329379,Unclassified Non Trade,CHARITIES & VOLUNTARY ORGANISA
PURCHASING LEARNING DISABILITI,9210,FUNDED NURSING CARE (INCOME)  ,02/10/2013,3525734,27652,1905.40,CITIZENSHIP FIRST                       ,329379,Unclassified Non Trade,CHARITIES & VOLUNTARY ORGANISA
ADULT SOCIAL CARE PURCHASING  ,9190,CITYWIDE SPOT                 ,02/10/2013,3525735,28383,979.92,CITIZENSHIP FIRST                       ,329379,Unclassified Non Trade,CHARITIES & VOLUNTARY ORGANISA
ADULT SOCIAL CARE PURCHASING  ,9190,CITYWIDE SPOT                 ,02/10/2013,3525740,17436,945.20,CAREWATCH (SHEFFIELD)                   ,328494,Social Community Care,HOME CARE SERVICES            
PURCHASING                    ,9250,INDEPENDENT DAY CARE          ,02/10/2013,3525742,2060,492.00,WORK LTD                                ,350089,Horticultural,GARDEN CENTRES & NURSERIES    
PURCHASING                    ,9190,CITYWIDE SPOT                 ,02/10/2013,3525744,2100081886,18545.00,COMMUNITY HEALTH SHEFFIELD              ,361895,Unclassified Non Trade,HOSPITALS                     
PURCHASING LEARNING DISABILITI,9210,FUNDED NURSING CARE (INCOME)  ,02/10/2013,3525745,21606+7                  ,10272.36,AFFINITY TRUST                          ,565909,Unclassified Non Trade,CHARITIES & VOLUNTARY ORGANISA
PURCHASING LEARNING DISABILITI,9210,FUNDED NURSING CARE (INCOME)  ,02/10/2013,3525746,21608+9                  ,10458.70,AFFINITY TRUST                          ,565909,Unclassified Non Trade,CHARITIES & VOLUNTARY ORGANISA
PURCHASING                    ,9230,CCSP FURNITURE STORAGE        ,02/10/2013,3525747,229943,339.00,A B CASTLE LTD                          ,202563,Transport,REMOVALS & STORAGE - HOUSEHOLD
PURCHASING LEARNING DISABILITI,9190,CITYWIDE SPOT                 ,02/10/2013,3525749,25082,2501.74,SPECTRUM SOCIAL CARE LTD                ,328608,Human Resources,EMPLOYMENT & RECRUITMENT AGENC
PURCHASING LEARNING DISABILITI,9190,CITYWIDE SPOT                 ,02/10/2013,3525750,25122,2501.74,SPECTRUM SOCIAL CARE LTD                ,328608,Human Resources,EMPLOYMENT & RECRUITMENT AGENC
PURCHASING LEARNING DISABILITI,9190,CITYWIDE SPOT                 ,02/10/2013,3525752,265-006566               ,841.00,LEONARD CHESHIRE SERVICES               ,329306,Unclassified Non Trade,CHARITIES & VOLUNTARY ORGANISA
ADULT SOCIAL CARE PURCHASING  ,9190,CITYWIDE SPOT                 ,02/10/2013,3525753,265-006567               ,732.25,LEONARD CHESHIRE SERVICES               ,329306,Unclassified Non Trade,CHARITIES & VOLUNTARY ORGANISA
PURCHASING LEARNING DISABILITI,9190,CITYWIDE SPOT                 ,02/10/2013,3525754,265-006568               ,855.50,LEONARD CHESHIRE SERVICES               ,329306,Unclassified Non Trade,CHARITIES & VOLUNTARY ORGANISA
PURCHASING LEARNING DISABILITI,9190,CITYWIDE SPOT                 ,02/10/2013,3525755,265-006569               ,493.00,LEONARD CHESHIRE SERVICES               ,329306,Unclassified Non Trade,CHARITIES & VOLUNTARY ORGANISA
ADULT SOCIAL CARE PURCHASING  ,9190,CITYWIDE SPOT                 ,02/10/2013,3525758,265-006572               ,464.00,LEONARD CHESHIRE SERVICES               ,329306,Unclassified Non Trade,CHARITIES & VOLUNTARY ORGANISA
PDSI PURCHASING               ,9190,CITYWIDE SPOT                 ,02/10/2013,3525759,265-006574               ,6006.30,LEONARD CHESHIRE SERVICES               ,329306,Unclassified Non Trade,CHARITIES & VOLUNTARY ORGANISA
ADULT SOCIAL CARE PURCHASING  ,9190,CITYWIDE SPOT                 ,02/10/2013,3525761,265-006576               ,858.00,LEONARD CHESHIRE SERVICES               ,329306,Unclassified Non Trade,CHARITIES & VOLUNTARY ORGANISA
ADULT SOCIAL CARE PURCHASING  ,9190,CITYWIDE SPOT                 ,02/10/2013,3525762,265-006577               ,1190.64,LEONARD CHESHIRE SERVICES               ,329306,Unclassified Non Trade,CHARITIES & VOLUNTARY ORGANISA
PURCHASING LEARNING DISABILITI,9190,CITYWIDE SPOT                 ,02/10/2013,3525763,265-6573                 ,1102.00,LEONARD CHESHIRE SERVICES               ,329306,Unclassified Non Trade,CHARITIES & VOLUNTARY ORGANISA
PURCHASING LEARNING DISABILITI,9190,CITYWIDE SPOT                 ,02/10/2013,3525764,37863,1621.62,LINKAGE COMMUNITY TRUST                 ,362116,Unclassified Non Trade,CHARITIES & VOLUNTARY ORGANISA
PURCHASING LEARNING DISABILITI,9190,CITYWIDE SPOT                 ,02/10/2013,3525765,4175,564.00,BURTON STREET PROJECT                   ,342774,Unclassified Non Trade,CHARITIES & VOLUNTARY ORGANISA
PURCHASING                    ,9190,CITYWIDE SPOT                 ,02/10/2013,3525767,4410,1068.72,PROGRESSIVE CARE (DERBYSHIRE) LTD       ,569285,Social Community Care,RESIDENTIAL CARE HOMES        
INDEPENDENT FOSTERING PLACEMEN,9270,INDEPENDENT FOSTERING         ,02/10/2013,3525641,104229,4042.64,FOSTERING SOLUTIONS LIMITED             ,344830,Social Community Care,ADOPTION & FOSTERING          
INDEPENDENT FOSTERING PLACEMEN,9270,INDEPENDENT FOSTERING         ,02/10/2013,3525642,104231,3210.48,FOSTERING SOLUTIONS LIMITED             ,344830,Social Community Care,ADOPTION & FOSTERING          
INDEPENDENT FOSTERING PLACEMEN,9270,INDEPENDENT FOSTERING         ,02/10/2013,3525644,17937,3084.20,PARALLEL PARENTS LTD                    ,521940,Social Community Care,ADOPTION & FOSTERING          
LEAVING CARE                  ,9270,INDEPENDENT FOSTERING         ,02/10/2013,3525645,101310499,4340.00,BARNARDO'S                              ,328396,Unclassified Non Trade,CHARITIES & VOLUNTARY ORGANISA
INDEPENDENT FOSTERING PLACEMEN,9270,INDEPENDENT FOSTERING         ,02/10/2013,3525646,25839,3703.00,FOSTERPLUS LTD.                         ,366456,Social Community Care,ADOPTION & FOSTERING          
INDEPENDENT FOSTERING PLACEMEN,9270,INDEPENDENT FOSTERING         ,02/10/2013,3525647,25840,3703.00,FOSTERPLUS LTD.                         ,366456,Social Community Care,ADOPTION & FOSTERING          
INDEPENDENT FOSTERING PLACEMEN,9270,INDEPENDENT FOSTERING         ,02/10/2013,3525648,101310612,4328.22,BARNARDO'S                              ,328396,Unclassified Non Trade,CHARITIES & VOLUNTARY ORGANISA
LEAVING CARE                  ,9270,INDEPENDENT FOSTERING         ,02/10/2013,3525649,101310613,4340.00,BARNARDO'S                              ,328396,Unclassified Non Trade,CHARITIES & VOLUNTARY ORGANISA
PREVENTION & SUPPORT - CDT    ,9270,CARELEAVERS INDEPENDENT LIVING,02/10/2013,3525657,225536326,958.80,R M S PAYROLL MANAGEMENT LTD            ,478856,Financial Services,PAYROLL SERVICES              
WEST SA - LAC                 ,9440,LOOKED AFTER CHILDREN         ,02/10/2013,3525951,01/4365950               ,339.26,CO-OPERATIVE TRAVEL MANAGEMENT          ,202987,Facilities Management,TRAVEL AGENTS & HOLIDAY COMPAN
PURCHASING                    ,9200,CONTINUING RESIDENTIAL CARE   ,02/10/2013,3525628,J701464 131013           ,23617.04,ABBEYFIELD GRANGE                       ,336444,Social Community Care,RESIDENTIAL CARE HOMES        
PURCHASING LEARNING DISABILITI,9200,CONTINUING RESIDENTIAL CARE   ,02/10/2013,3525628,J701464 131013           ,1412.00,ABBEYFIELD GRANGE                       ,336444,Social Community Care,RESIDENTIAL CARE HOMES        
ADULT SOCIAL CARE PURCHASING  ,9200,CONTINUING RESIDENTIAL CARE   ,02/10/2013,3525628,J701464 131013           ,11971.20,ABBEYFIELD GRANGE                       ,336444,Social Community Care,RESIDENTIAL CARE HOMES        
ADULT SOCIAL CARE PURCHASING  ,9200,CONTINUING RESIDENTIAL CARE   ,02/10/2013,3525629,J713192 131013           ,18140.72,KNOWLE HILL                             ,361798,Social Community Care,RESIDENTIAL CARE HOMES        
ADULT SOCIAL CARE PURCHASING  ,9200,CONTINUING RESIDENTIAL CARE   ,02/10/2013,3525630,J713193 131013           ,6320.00,PADDOCK HILL                            ,361797,Social Community Care,RESIDENTIAL CARE HOMES        
ADULT SOCIAL CARE PURCHASING  ,4260,RESIDENTIAL COSTS RECOVERED   ,02/10/2013,3525631,J713194 131013           ,369.56,EAGLE HOUSE CARE HOME                   ,361977,Social Community Care,RESIDENTIAL CARE HOMES        
ADULT SOCIAL CARE PURCHASING  ,9210,CONTINUING NURSING CARE       ,02/10/2013,3525631,J713194 131013           ,978.71,EAGLE HOUSE CARE HOME                   ,361977,Social Community Care,RESIDENTIAL CARE HOMES        
ADULT SOCIAL CARE PURCHASING  ,9210,CONTINUING NURSING CARE       ,02/10/2013,3525632,J713195 131013           ,7146.00,NEWFIELD NURSING HOME                   ,361980,Social Community Care,NURSING HOMES                 
ADULT SOCIAL CARE PURCHASING  ,9210,CONTINUING NURSING CARE       ,02/10/2013,3525633,J713196 131013           ,6256.00,NORTHFIELD NURSING HOME                 ,361770,Social Community Care,NURSING HOMES                 
ADULT SOCIAL CARE PURCHASING  ,9200,SHORT TERM RESIDENTIAL CARE   ,02/10/2013,3525634,J711904 150913           ,857.29,BURNT TREE CROFT                        ,361793,Social Community Care,RESIDENTIAL CARE HOMES        
ADULT SOCIAL CARE PURCHASING  ,9200,SHORT TERM RESIDENTIAL CARE   ,02/10/2013,3525635,J711905 150913           ,353.00,CASTELAYN                               ,361796,Social Community Care,RESIDENTIAL CARE HOMES        
ADULT SOCIAL CARE PURCHASING  ,9200,SHORT TERM RESIDENTIAL CARE   ,02/10/2013,3525636,J713184 150913           ,1127.00,HOUSTEADS                               ,361860,Social Community Care,RESIDENTIAL CARE HOMES        
ADULT SOCIAL CARE PURCHASING  ,9200,SHORT TERM RESIDENTIAL CARE   ,02/10/2013,3525637,J713185 150913           ,3160.00,KNOWLE HILL                             ,361798,Social Community Care,RESIDENTIAL CARE HOMES        
ADULT SOCIAL CARE PURCHASING  ,9200,SHORT TERM RESIDENTIAL CARE   ,02/10/2013,3525638,J713186 150913           ,1580.00,REGAL CARE TRADING LTD                  ,344721,Social Community Care,RESIDENTIAL CARE HOMES        
ADULT SOCIAL CARE PURCHASING  ,9200,SHORT TERM RESIDENTIAL CARE   ,02/10/2013,3525639,J713187 150913           ,451.42,HAZELDENE NURSING HOME                  ,340163,Social Community Care,NURSING HOMES                 
ADULT SOCIAL CARE PURCHASING  ,9200,SHORT TERM RESIDENTIAL CARE   ,02/10/2013,3525640,J713188 150913           ,710.00,ROSEBERRY CARE CENTRES GB LTD           ,361953,Social Community Care,NURSING HOMES                 
MOORFOOT LEARNING CENTRE      ,6030,REPAIRS AND MTCE - RESPONSIVE ,03/10/2013,3525368,23556600,357.38,CLARK & PARTNERS LTD                    ,203928,Medical ,DISABILITY EQUIPMENT - MNFRS &
DISABLED GRANTS               ,1165,NC&A OTHER                    ,03/10/2013,3526539,ERS INVOICE90800         ,4528.00,STANNAH LIFT SERVICES LTD.              ,208625,Social Community Care,STAIRLIFTS - MNFRS & INSTALLER
DISABLED GRANTS               ,1165,NC&A OTHER                    ,03/10/2013,3526540,ERS INVOICE90801         ,5986.00,STANNAH LIFT SERVICES LTD.              ,208625,Social Community Care,STAIRLIFTS - MNFRS & INSTALLER
DISABLED GRANTS               ,1165,NC&A OTHER                    ,03/10/2013,3526541,ERS INVOICE90802         ,5238.00,STANNAH LIFT SERVICES LTD.              ,208625,Social Community Care,STAIRLIFTS - MNFRS & INSTALLER
FOSTERING DEVELOPMENT         ,8010,EQUIPMENT PURCHASE AND REPAIR ,03/10/2013,3526542,ERS INVOICE90803         ,697.00,REDACTED PERSONAL DATA,587413,Unclassified Non Trade,OUT OF SCOPE FOR SIC MONITORIN
DISABLED GRANTS               ,1165,NC&A OTHER                    ,03/10/2013,3526543,ERS INVOICE90804         ,4066.00,STANNAH LIFT SERVICES LTD.              ,208625,Social Community Care,STAIRLIFTS - MNFRS & INSTALLER
DISABLED GRANTS               ,1165,NC&A OTHER                    ,03/10/2013,3526544,ERS INVOICE90805         ,3676.00,STANNAH LIFT SERVICES LTD.              ,208625,Social Community Care,STAIRLIFTS - MNFRS & INSTALLER
DISABLED GRANTS               ,1165,NC&A OTHER                    ,03/10/2013,3526545,ERS INVOICE90806         ,4901.00,STANNAH LIFT SERVICES LTD.              ,208625,Social Community Care,STAIRLIFTS - MNFRS & INSTALLER
BRT NORTH                     ,1146,L&B PROFESSIONAL FEES         ,03/10/2013,3526546,ERS INVOICE90807         ,2400.00,WEIGHTMANS LLP SOLICITORS               ,477003,Legal Services,SOLICITORS                    
DISABLED GRANTS               ,1165,NC&A OTHER                    ,03/10/2013,3526548,ERS INVOICE90809         ,1756.00,STANNAH LIFT SERVICES LTD.              ,208625,Social Community Care,STAIRLIFTS - MNFRS & INSTALLER
DISABLED GRANTS               ,1165,NC&A OTHER                    ,03/10/2013,3526549,ERS INVOICE90810         ,3280.00,ROGER SELBY BUILDING & PLUMBING CONTRACT,502635,Construction,BUILDERS                      
NEW MARKET DEVELOPMENT        ,1195,ADMINISTRATION COSTS          ,03/10/2013,3526550,ERS INVOICE90811         ,4650.00,REDACTED PERSONAL DATA,583505,Unclassified Non Trade,OUT OF SCOPE FOR SIC MONITORIN
FUTURE PROOF NEETS 14 - 25    ,9120,OTHER AGENCIES                ,03/10/2013,3525487,95,4180.80,IN2CHANGE SOUTH YORKS LTD               ,558793,Unclassified Non Trade,CHARITIES & VOLUNTARY ORGANISA
DISABLED GRANTS               ,1165,NC&A OTHER                    ,03/10/2013,3526551,ERS INVOICE90812         ,4655.00,PAUL BEATSON BUILDING CONTRACTORS LTD   ,207418,Construction,BUILDERS                      
DISABLED GRANTS               ,1165,NC&A OTHER                    ,03/10/2013,3526552,ERS INVOICE90813         ,2548.00,STANNAH LIFT SERVICES LTD.              ,208625,Social Community Care,STAIRLIFTS - MNFRS & INSTALLER
DISABLED GRANTS               ,1165,NC&A OTHER                    ,03/10/2013,3526566,ERS INVOICE90827         ,599.00,ASTOR BANNERMAN (MEDICAL)LTD            ,547316,Medical ,MEDICAL EQUIPMENT MNFRS       
MINOR WORK GRANTS             ,1165,NC&A OTHER                    ,03/10/2013,3526567,ERS INVOICE90828         ,2000.00,HARTLEY CONSTRUCTION CO                 ,527505,Construction,BUILDERS                      
DEVELOPMENT CONTROL           ,4180,PLANNING APPLICATION FEES     ,03/10/2013,3526569,ERS INVOICE90830         ,385.00,REDACTED PERSONAL DATA,587981,Unclassified Non Trade,OUT OF SCOPE FOR SIC MONITORIN
DEVELOPMENT CONTROL           ,4180,PLANNING APPLICATION FEES     ,03/10/2013,3526580,ERS INVOICE90841         ,390.00,MS SHIRT BOX COMPANY LTD                ,587883,Unclassified Non Trade,OUT OF SCOPE FOR SIC MONITORIN
INCLUSION CENTRE              ,4080,ACADEMIES - TRADED INCOME     ,03/10/2013,3526690,ERS INVOICE90848         ,3289.00,ULT TRADING COMPANY LTD                 ,548780,Education,SCHOOLS - SPORTS & LEISURE ACT
DISABLED GRANTS               ,1165,NC&A OTHER                    ,03/10/2013,3526691,ERS INVOICE90849         ,12595.00,CLARK & PARTNERS LTD                    ,203928,Medical ,DISABILITY EQUIPMENT - MNFRS &
CLAIMS                        ,8740,MOTOR VEHICLE                 ,03/10/2013,3526692,ERS INVOICE90850         ,630.00,AMELANS SOLICITORS                      ,584722,Legal Services,SOLICITORS                    
CLAIMS                        ,8740,MOTOR VEHICLE                 ,03/10/2013,3526693,ERS INVOICE90851         ,1995.00,KATARINA AUCOTT                         ,584720,Legal Services,SOLICITORS                    
CLAIMS                        ,8740,PUBLIC LIABILITY              ,03/10/2013,3526694,ERS INVOICE90852         ,1750.00,GRAYSONS SOLICITORS                     ,297241,Legal Services,SOLICITORS                    
CLAIMS                        ,8740,HIGHWAYS                      ,03/10/2013,3526696,ERS INVOICE90854         ,2650.00,T G BAYNES SOLICITORS                   ,584002,Legal Services,SOLICITORS                    
FOSTERING DEVELOPMENT         ,8010,EQUIPMENT PURCHASE AND REPAIR ,03/10/2013,3526700,ERS INVOICE90861         ,750.00,REDACTED PERSONAL DATA,587757,Unclassified Non Trade,OUT OF SCOPE FOR SIC MONITORIN
ADULT SOCIAL CARE PURCHASING  ,5010,GENERAL BASIC PAY             ,03/10/2013,3507023,4000355805,20000.00,SHEFFIELD TEACHING HOSPITALS NHS TRUST  ,308114,Unclassified Non Trade,HOSPITALS                     
TREE TEAM                     ,6370,GROUNDS MTCE AND ARBORICULTURE,03/10/2013,3512849,1157,1900.00,SHEFFIELD TREE CARE                     ,462546,Environmental Services,TREE WORK & FORESTRY SERVICES 
TREE TEAM                     ,6370,TREE WORK/ARBORICULTURAL      ,03/10/2013,3512853,1153,475.00,SHEFFIELD TREE CARE                     ,462546,Environmental Services,TREE WORK & FORESTRY SERVICES 
CITY WIDE ALARM - GENERAL     ,6030,REPAIRS TO TENANTED PROPERTIES,03/10/2013,3513145,INV/50255200             ,291.24,TUNSTALL HEALTHCARE (UK) LIMITED        ,209178,ICT,TELECOMMUNICATIONS EQUIPMENT &
DEVELOPMENT CONTROL           ,8470,LEGAL FEES                    ,03/10/2013,3516637,112181,13000.00,CORNERSTONE BARRISTERS                  ,570924,Legal Services,BARRISTERS                    
MCA SUPPORT TEAM              ,8440,FEE EXPENSES                  ,03/10/2013,3517083,2013/14-5                ,2535.78,SHEFFIELD MENTAL HEALTH C.A.B.          ,316902,Social Community Care,MENTAL HEALTH CENTRES         
SHEAF TRAINING                ,8490,EXAM FEES                     ,03/10/2013,3517097,914507,265.08,PEARSON EDUCATION LTD.                  ,207443,Education,PUBLISHERS                    
ARCHIVES & CONSERVATION       ,8060,MATERIALS AND SUPPLIES GENERAL,03/10/2013,3517677,125471,2443.08,TNT INTERNATIONAL                       ,318043,Mail Services,DELIVERY SERVICES             
OUTDOOR EDUCATION             ,8130,CATERING SUPPLIES             ,03/10/2013,3517770,2225,2595.90,HAZEL'S QUALITY CATERING LTD            ,300944,Catering,CATERERS                      
TREE TEAM                     ,6370,GROUNDS MTCE AND ARBORICULTURE,03/10/2013,3518478,78,615.00,J B HIBBERD LIMITED                     ,510434,Environmental Services,TREE WORK & FORESTRY SERVICES 
CITY WIDE ALARM - GENERAL     ,6030,REPAIRS TO TENANTED PROPERTIES,03/10/2013,3519964,INV/50255813             ,351.48,TUNSTALL HEALTHCARE (UK) LIMITED        ,209178,ICT,TELECOMMUNICATIONS EQUIPMENT &
TREE TEAM                     ,6370,GROUNDS MTCE AND ARBORICULTURE,03/10/2013,3521654,1160,1160.00,SHEFFIELD TREE CARE                     ,462546,Environmental Services,TREE WORK & FORESTRY SERVICES 
TREE TEAM                     ,6370,GROUNDS MTCE AND ARBORICULTURE,03/10/2013,3521656,1163,260.00,SHEFFIELD TREE CARE                     ,462546,Environmental Services,TREE WORK & FORESTRY SERVICES 
STANIFORTH ROAD WORKSHOPS     ,8110,"CLOTHING, UNIFORM AND LAUNDRY ",03/10/2013,3521764,SN1417702                ,311.85,BERENSDEN UK LTD                        ,330548,Catering,LINEN HIRE SERVICES           
CARE PROCEEDINGS (LEGAL FEES) ,8470,LEGAL FEES                    ,03/10/2013,3521806,1687,405.50,FORENSIC TESTING SERVICE LTD            ,557750,Medical ,MEDICAL & DENTAL LABORATORIES 
BIKE LEASING                  ,8440,FEE EXPENSES                  ,03/10/2013,3522289,3225,39000.00,HEELEY DEVELOPMENT TRUST                ,472941,Unclassified Non Trade,CHARITIES & VOLUNTARY ORGANISA
MARKETING & COMMSLSTF(MAIN)   ,8350,MISCELLANEOUS EXPENSES        ,03/10/2013,3522549,920167890,9993.20,ARCO LTD                                ,203022,Clothing,SAFETY EQUIPMENT & CLOTHING   
FUTURE PROOF NEETS 14 - 25    ,9120,OTHER AGENCIES                ,03/10/2013,3522562,25241,4514.40,PET-XI TRAINING LTD                     ,454271,Education,EDUCATIONAL EQUIPMENT & SUPPLI
SF GRNI LIABILITY TAKEN       ,8060,MATERIALS AND SUPPLIES GENERAL,03/10/2013,3522886,3600000666NR             ,3550.24,CEMEX PAVING SOLUTIONS LTD              ,385471,Building Construction Materials,CONCRETE & MORTAR READY MIXED 
SF GRNI LIABILITY TAKEN       ,8060,MATERIALS AND SUPPLIES GENERAL,03/10/2013,3522887,3600000668NR             ,1445.67,CEMEX PAVING SOLUTIONS LTD              ,385471,Building Construction Materials,CONCRETE & MORTAR READY MIXED 
SF GRNI LIABILITY TAKEN       ,8060,MATERIALS AND SUPPLIES GENERAL,03/10/2013,3522888,3600000667NR             ,1098.23,CEMEX PAVING SOLUTIONS LTD              ,385471,Building Construction Materials,CONCRETE & MORTAR READY MIXED 
SF GRNI LIABILITY TAKEN       ,8060,MATERIALS AND SUPPLIES GENERAL,03/10/2013,3522889,3600000669NR             ,470.56,CEMEX PAVING SOLUTIONS LTD              ,385471,Building Construction Materials,CONCRETE & MORTAR READY MIXED 
SF GRNI LIABILITY TAKEN       ,8060,MATERIALS AND SUPPLIES GENERAL,03/10/2013,3522895,3600000670NR             ,789.63,CEMEX PAVING SOLUTIONS LTD              ,385471,Building Construction Materials,CONCRETE & MORTAR READY MIXED 
SF GRNI LIABILITY TAKEN       ,8060,MATERIALS AND SUPPLIES GENERAL,03/10/2013,3522896,3600000671NR             ,827.27,CEMEX PAVING SOLUTIONS LTD              ,385471,Building Construction Materials,CONCRETE & MORTAR READY MIXED 
SF GRNI LIABILITY TAKEN       ,8060,MATERIALS AND SUPPLIES GENERAL,03/10/2013,3522897,3600000672NR             ,476.01,CEMEX PAVING SOLUTIONS LTD              ,385471,Building Construction Materials,CONCRETE & MORTAR READY MIXED 
SF GRNI LIABILITY TAKEN       ,8060,MATERIALS AND SUPPLIES GENERAL,03/10/2013,3522899,3600000674NR             ,1313.77,CEMEX PAVING SOLUTIONS LTD              ,385471,Building Construction Materials,CONCRETE & MORTAR READY MIXED 
SF GRNI LIABILITY TAKEN       ,8060,MATERIALS AND SUPPLIES GENERAL,03/10/2013,3522900,3600000673NR             ,1428.93,CEMEX PAVING SOLUTIONS LTD              ,385471,Building Construction Materials,CONCRETE & MORTAR READY MIXED 
SF GRNI LIABILITY TAKEN       ,8060,MATERIALS AND SUPPLIES GENERAL,03/10/2013,3522901,3600000675NR             ,2105.98,CEMEX PAVING SOLUTIONS LTD              ,385471,Building Construction Materials,CONCRETE & MORTAR READY MIXED 
CREMATORIA                    ,8090,PLAQUES                       ,03/10/2013,3523301,2131823,259.10,FALON NAMEPLATES LTD                    ,308868,Building Construction Materials,SIGNS & NAMEPLATES            
CREMATORIA                    ,8090,PLAQUES                       ,03/10/2013,3523389,2131903,312.10,FALON NAMEPLATES LTD                    ,308868,Building Construction Materials,SIGNS & NAMEPLATES            
CRIME REDUCTION INITIATIVE    ,9030,HEALTH                        ,03/10/2013,3523481,15970,153051.75,CRI                                     ,582957,Unclassified Trade,PUBLIC HEALTH SUPPLIERS       
FUTURE PROOF NEETS 14 - 25    ,9120,OTHER AGENCIES                ,03/10/2013,3523544,12948,514.80,THE PRINCE'S TRUST                      ,533155,Unclassified Non Trade,CHARITIES & VOLUNTARY ORGANISA
FUTURE PROOF NEETS 14 - 25    ,9120,OTHER AGENCIES                ,03/10/2013,3523545,5041497,444.40,TCV EMPLOYMENT & TRAINING SRVS          ,316075,Environmental Services,CONSERVATION ORGANISATIONS    
FUTURE PROOF NEETS 14 - 25    ,9120,OTHER AGENCIES                ,03/10/2013,3523546,6030,535.60,TCV EMPLOYMENT & TRAINING SRVS          ,316075,Environmental Services,CONSERVATION ORGANISATIONS    
SUPPORTED & TEMP ACCOM TEAM   ,6210,BED & BREAKFAST PAYMENTS      ,03/10/2013,3523572,77,1173.44,ROUNDABOUT LTD                          ,316572,Facilities Management,HOSTELS                       
RECORD MANAGEMENT             ,8060,MATERIALS AND SUPPLIES GENERAL,03/10/2013,3524047,108023,1036.80,ASC CARTONS LTD                         ,517201,Stationery ,BOXES & CARTONS               
CORPORATE ROOM BOOKINGS       ,8440,FEE EXPENSES                  ,03/10/2013,3524127,27585,305.00,VOLUNTARY ACTION SHEFFIELD              ,295283,Unclassified Non Trade,CHARITIES & VOLUNTARY ORGANISA
DOMESTIC ABUSE SP40           ,9030,HEALTH                        ,03/10/2013,3524149,43701,2581.50,SOUTH YORKSHIRE POLICE                  ,504785,Unclassified Non Trade,POLICE                        
SUPPORTED & TEMP ACCOM TEAM   ,6210,BED & BREAKFAST PAYMENTS      ,03/10/2013,3524167,43294,1126.16,CHERRYTREE SUPPORT SERVICES LTD (SP)    ,351143,Facilities Management,HOSTELS                       
HRS BUSINESS SUPPORT TEAM     ,7060,EXTERNAL VEHICLE HIRE         ,03/10/2013,3524186,550564,407.05,MERCURY TAXIS                           ,362003,Transport,TAXIS & PRIVATE HIRE          
HRS BUSINESS SUPPORT TEAM     ,7060,EXTERNAL VEHICLE HIRE         ,03/10/2013,3524187,550979,423.60,MERCURY TAXIS                           ,362003,Transport,TAXIS & PRIVATE HIRE          
HRS BUSINESS SUPPORT TEAM     ,7060,EXTERNAL VEHICLE HIRE         ,03/10/2013,3524188,551389,364.90,MERCURY TAXIS                           ,362003,Transport,TAXIS & PRIVATE HIRE          
SUPPORTED & TEMP ACCOM TEAM   ,6210,BED & BREAKFAST PAYMENTS      ,03/10/2013,3524238,PH105                    ,786.06,SHEFFIELD YWCA                          ,408344,Unclassified Non Trade,CHARITIES & VOLUNTARY ORGANISA
SUPPORTED & TEMP ACCOM TEAM   ,6210,BED & BREAKFAST PAYMENTS      ,03/10/2013,3524239,PH106                    ,284.47,SHEFFIELD YWCA                          ,408344,Unclassified Non Trade,CHARITIES & VOLUNTARY ORGANISA
SUPPORTED & TEMP ACCOM TEAM   ,6210,BED & BREAKFAST PAYMENTS      ,03/10/2013,3524240,PH108                    ,1984.87,SHEFFIELD YWCA                          ,408344,Unclassified Non Trade,CHARITIES & VOLUNTARY ORGANISA
SUPPORTED & TEMP ACCOM TEAM   ,6210,BED & BREAKFAST PAYMENTS      ,03/10/2013,3524241,PH109                    ,1219.66,SHEFFIELD YWCA                          ,408344,Unclassified Non Trade,CHARITIES & VOLUNTARY ORGANISA
SHORT BREAKS FUNDING FOR DISAB,9120,OTHER AGENCIES                ,03/10/2013,3524425,41527,440.00,BRITISH MARTIAL ARTS ACADEMY            ,554960,Leisure Services,MARTIAL ARTS INSTRUCTION      
ARBOURTHORNE 5M'S SHM (STH)   ,1157,DWELLINGS MAIN CONTRACT       ,03/10/2013,3524771,4207,1047.50,RK CIVIL ENGINEERS LTD                  ,585586,Construction,CIVIL ENGINEERS               
CARE PROCEEDINGS (LEGAL FEES) ,8470,LEGAL FEES                    ,03/10/2013,3524809,140221,1040.00,MISS KERRIE BROUGHTON                   ,463554,Legal Services,BARRISTERS                    
CARE PROCEEDINGS (LEGAL FEES) ,8470,LEGAL FEES                    ,03/10/2013,3524810,881331,600.00,MS C E FORD                             ,544033,Legal Services,SOLICITORS                    
BANNERDALE                    ,6080,CONTRACT CLEANING             ,03/10/2013,3524832,1307,300.00,ATKIN & SON                             ,203113,Cleaning and Janitorial,WINDOW CLEANERS               
CARE PROCEEDINGS (LEGAL FEES) ,8470,LEGAL FEES                    ,03/10/2013,3525097,862654,2150.00,MS C E FORD                             ,544033,Legal Services,SOLICITORS                    
CARE PROCEEDINGS (LEGAL FEES) ,8470,LEGAL FEES                    ,03/10/2013,3525116,1001880,340.93,DAVID BRIGGS ASSOCIATES LTD             ,328709,Social Community Care,MENTAL HEALTH CENTRES         
AREA NORTH WEST               ,8010,ESTATES EQUIP PURCHASE & REPAI,03/10/2013,3525136,920201761,455.21,ARCO LTD                                ,203022,Clothing,SAFETY EQUIPMENT & CLOTHING   
PARK HILL (STH)               ,1146,L&B PROFESSIONAL FEES         ,03/10/2013,3525168,1218064,37520.00,NABARRO                                 ,207042,Legal Services,SOLICITORS                    
AREA CENTAL                   ,8010,ESTATES EQUIP PURCHASE & REPAI,03/10/2013,3525235,SI/02173392              ,894.00,NOMIX ENVIRO                            ,207128,Unclassified Trade,CHEMICALS & ALLIED PRODUCTS   
INCOME MANAGEMENT             ,8010,EQUIPMENT PURCHASE AND REPAIR ,03/10/2013,3525389,SINV00252292             ,281.04,R A ROBERTS (OFFICE EQUIPMENT) LTD      ,207777,Furniture,OFFICE FURNITURE & EQUIPMENT  
CRYSTAL PEAKS                 ,8010,EQUIPMENT PURCHASE AND REPAIR ,03/10/2013,3525425,4465853013,385.00,KALON PLC                               ,308737,Building Construction Materials,PAINT MNFRS                   
PLAYGROUND MAINTENANCE & INSPE,8010,EQUIPMENT PURCHASE AND REPAIR ,03/10/2013,3525472,365,8000.00,PREMIER PITCHES LIMITED                 ,310648,Horticultural,LAWNMOWERS & GARDEN MACHINERY 
NLDC (AUG 12 - JULY 13)       ,9120,OTHER AGENCIES                ,03/10/2013,3525504,SOARCO/1038/SOARCO/1038  ,783.34,SOAR WORKS ENTERPRISE CENTRE            ,449096,Unclassified Non Trade,COMMUNITY NETWORKS            
FUTURE PROOF NEETS 14 - 25    ,9120,OTHER AGENCIES                ,03/10/2013,3525507,931,2368.60,THE SOURCE AT MEADOWHALL                ,350485,Human Resources,TRAINING CENTRES              
FUTURE PROOF NEETS 14 - 25    ,9120,OTHER AGENCIES                ,03/10/2013,3525509,930,554.40,THE SOURCE AT MEADOWHALL                ,350485,Human Resources,TRAINING CENTRES              
TURNING POINT                 ,9030,HEALTH                        ,03/10/2013,3525527,SI-TPS-00006334          ,153927.08,TURNING POINT                           ,581896,Unclassified Trade,PUBLIC HEALTH SUPPLIERS       
RIGHT FIRST TIME              ,8370,PRINTING                      ,03/10/2013,3525537,4424172,700.00,BRANDING BY TONIK LIMITED               ,319974,Facilities Management,PRINTERS                      
INCOME MANAGEMENT             ,8230,HOSPITALITY                   ,03/10/2013,3525978,21989,458.00,CHARITY GIFT VOUCHER MARKETING LTD      ,427858,Unclassified Non Trade,CHARITIES & VOLUNTARY ORGANISA
INCOME MANAGEMENT             ,8230,HOSPITALITY                   ,03/10/2013,3525980,21855,458.00,CHARITY GIFT VOUCHER MARKETING LTD      ,427858,Unclassified Non Trade,CHARITIES & VOLUNTARY ORGANISA
AREA CENTAL                   ,8010,EQUIPMENT PURCHASE AND REPAIR ,03/10/2013,3526052,22620,255.00,MORCLEAN                                ,514216,Cleaning and Janitorial,CLEANING CONTRACTORS EQUIPMENT
MARKETING SHEFFIELD           ,8620,ICT LEASE/RENTALS             ,03/10/2013,3526055,2802,300.00,TECH DEPT LTD                           ,503898,Facilities Management,WEB SITE DESIGN               
POST 16 TRANSPORT PARTNERSHIP ,4080,FEES & CHARGES                ,03/10/2013,3526079,43675,250.00,LIFEWISE/SOUTH YORKSHIRE POLICE         ,587068,Unclassified Non Trade,OUT OF SCOPE FOR SIC MONITORIN
ALDINE HOUSE                  ,5750,TRAINING EXPENDITURE          ,03/10/2013,3526080,CUKI31554                ,4429.19,CRISIS PREVENTION INSTITUTE             ,328692,Human Resources,TRAINING CONSULTANTS          
COMMUNITY SUPPORT SERVICE     ,6280,HIRE OF PREMISES              ,03/10/2013,3526175,1909,294.00,HILLSBOROUGH ARENA SPORTS ASSOCIATION   ,310650,Leisure Services,SPORTS CLUBS & ASSOCIATIONS   
SECTOR GROWTH                 ,8250,MARKETING EXPENSES            ,03/10/2013,3526177,41485,1000.00,MASK CREATIVE LTD                       ,576950,Unclassified Trade,VIDEO FILMING EQUIPMENT & SERV
ACCOMMODATION                 ,6210,RENTS                         ,03/10/2013,3526185,ARC1314-56               ,916.67,STOCKSBRIDGE TOWN COUNCIL               ,295752,Unclassified Non Trade,LOCAL GOVERNMENT              
MARKETING SHEFFIELD           ,8620,COMPUTER MAINTENANCE          ,03/10/2013,3526200,2821,581.25,TECH DEPT LTD                           ,503898,Facilities Management,WEB SITE DESIGN               
GRAVES PARK - ANIMAL FARM INC ,8060,MATERIALS AND SUPPLIES GENERAL,03/10/2013,3526220,257990,348.50,ARGO FEEDS LTD                          ,203028,Unclassified Trade,PET FOODS & ANIMAL FEEDS      
NLDC (AUG 12 - JULY 13)       ,9120,OTHER AGENCIES                ,03/10/2013,3526221,SLIN/00000876            ,1736.50,WEA YORKSHIRE & HUMBER REGION           ,304674,Education,ADULT EDUCATION CENTRES       
SHEFF HEALTH &  SC ALCOHOL    ,9030,HEALTH                        ,03/10/2013,3526241,2100081883,151500.00,SHEFFIELD HEALTH & SOCIAL CARE NHS FT   ,585469,Unclassified Trade,PUBLIC HEALTH SUPPLIERS       
SHSC TRUST                    ,9030,HEALTH                        ,03/10/2013,3526242,2100081884,419974.25,SHEFFIELD HEALTH & SOCIAL CARE NHS FT   ,585469,Unclassified Trade,PUBLIC HEALTH SUPPLIERS       
STIMULATING ENTERPRISING ENVT ,8420,ADVERTISING AND PUBLICITY     ,03/10/2013,3526245,13/177                   ,3050.00,DIVA CREATIVE LTD                       ,452072,Facilities Management,MARKETING CONSULTANTS & SERVIC
ATTRACTIVE PUBLIC AREAS       ,8420,ADVERTISING AND PUBLICITY     ,03/10/2013,3526246,13/178                   ,2150.00,DIVA CREATIVE LTD                       ,452072,Facilities Management,MARKETING CONSULTANTS & SERVIC
EXECUTOR SERVICES             ,8090,BEREAVEMENT SUPPLIES          ,03/10/2013,3526251,F49960-05363             ,285.00,SHEFFIELD CO-OPERATIVE FUNERALCARE      ,203171,Environmental Services,FUNERAL SERVICES              
PCASS DRUG SERVICES           ,9030,HEALTH                        ,03/10/2013,3526253,4000365179,106135.00,SHEFFIELD TEACHING HOSPITALS NHS FND TST,583240,Unclassified Trade,PUBLIC HEALTH SUPPLIERS       
NEW MARKET DEVELOPMENT        ,1161,NC&A MAIN CONTRACT            ,03/10/2013,3526386,B640030                  ,1631062.76,BOWMER & KIRKLAND LTD                   ,572989,Construction,BUILDERS                      
MOOR MARKET SERVICE YARD      ,1161,NC&A MAIN CONTRACT            ,03/10/2013,3526389,B640029                  ,69749.77,BOWMER & KIRKLAND LTD                   ,572989,Construction,BUILDERS                      
URINE TESTING                 ,8350,MISCELLANEOUS EXPENSES        ,03/10/2013,3526423,15560,770.00,HOME HEALTH UK LTD                      ,583481,Unclassified Trade,PUBLIC HEALTH SUPPLIERS       
TRANSPORT FLEET MANAGEMENT    ,8070,STOCKS AND STORES             ,03/10/2013,3526424,1214402,1647.09,CARLTON FUELS                           ,466741,Vehicles Not Buses,FUEL DEALERS                  
PROVIDER CONTRACT AUG12-JUL13 ,9120,OTHER AGENCIES                ,03/10/2013,3526429,SOARCO/960/1031/1105     ,1052.40,SOAR                                    ,413073,Unclassified Non Trade,DEVELOPMENT AGENCIES          
SCHOOL MEALS                  ,8150,CONTRACT CATERING - INVOICE   ,03/10/2013,3526458,SI-TSS-10001041          ,35383.49,TAYLOR SHAW LIMITED T/A TAYLOR SHAW     ,520165,Catering,CATERERS                      
SCHOOL MEALS                  ,8150,CONTRACT CATERING - INVOICE   ,03/10/2013,3526461,SI-TSS-10001107          ,24785.33,TAYLOR SHAW LIMITED T/A TAYLOR SHAW     ,520165,Catering,CATERERS                      
PAYMENT HOLDING ACCOUNT       ,8350,MISCELLANEOUS EXPENSES        ,03/10/2013,3526526,13040002,876594.17,KIER SHEFFIELD LLP                      ,352687,Construction,PROPERTY MAINTENANCE & REPAIRS
PAYMENT HOLDING ACCOUNT       ,8350,MISCELLANEOUS EXPENSES        ,03/10/2013,3526528,13040001,876594.17,KIER SHEFFIELD LLP                      ,352687,Construction,PROPERTY MAINTENANCE & REPAIRS
LEP BUSINESS PLAN - W4        ,1194,OTHER FEES                    ,03/10/2013,3526639,1256,10301.16,SHEFFIELD LEP LTD                       ,482230,Unclassified Non Trade,LOCAL GOVERNMENT              
LEP BUSINESS PLAN - W4        ,1194,OTHER FEES                    ,03/10/2013,3526640,1232,4680.46,SHEFFIELD LEP LTD                       ,482230,Unclassified Non Trade,LOCAL GOVERNMENT              
ADD'L PUPIL PLACES(SECONDARY) ,1161,NC&A MAIN CONTRACT            ,03/10/2013,3526641,820,5800.87,PYRAMID SCHOOLS (SHEFFIELD) LTD         ,324404,Financial Services,LEASING SERVICES              
CAPACITY PLANNING & DEV       ,4460,RECHARGES                     ,03/10/2013,3526651,1255,164317.17,SHEFFIELD LEP LTD                       ,482230,Unclassified Non Trade,LOCAL GOVERNMENT              
SCC INTERNAL PROG. COSTS - W4 ,1194,OTHER FEES                    ,03/10/2013,3526652,1231,6100.00,SHEFFIELD LEP LTD                       ,482230,Unclassified Non Trade,LOCAL GOVERNMENT              
LEP BUSINESS PLAN - W4        ,1194,OTHER FEES                    ,03/10/2013,3526655,1252,550.00,SHEFFIELD LEP LTD                       ,482230,Unclassified Non Trade,LOCAL GOVERNMENT              
STANIFORTH ROAD WORKSHOPS     ,8070,STOCKS AND STORES             ,03/10/2013,3526384,INV0021028               ,500.25,GARFITTS INTERNATIONAL LTD              ,205072,Construction,ENGINEERS - GENERAL           
STANIFORTH ROAD WORKSHOPS     ,7010,ROUTINE VEHICLE REPAIR & MTCE ,03/10/2013,3526387,14438053,2045.98,LOOKERS FORD                            ,474939,Vehicles Not Buses,CAR DEALERS                   
STANIFORTH ROAD WORKSHOPS     ,7010,ROUTINE VEHICLE REPAIR & MTCE ,03/10/2013,3526390,7892,660.00,GPG 2000 LTD                            ,416225,Vehicles Not Buses,CAR BODY REPAIRS              
STANIFORTH ROAD WORKSHOPS     ,7010,ROUTINE VEHICLE REPAIR & MTCE ,03/10/2013,3526392,14437094,1233.37,LOOKERS FORD                            ,474939,Vehicles Not Buses,CAR DEALERS                   
ADULT SOCIAL CARE PURCHASING  ,9190,DIRECT PAYMENTS               ,03/10/2013,3526351,J714994                  ,734.09,REDACTED PERSONAL DATA,413562,Social Community Care,CAREFIRST DIRECT PAYMENTS     
ADULT SOCIAL CARE PURCHASING  ,9190,DIRECT PAYMENTS               ,03/10/2013,3526352,J714994                  ,1786.90,A4E                                     ,547567,Human Resources,TRAINING SERVICES             
PURCHASING                    ,9190,DIRECT PAYMENTS               ,03/10/2013,3526353,J714994                  ,2742.01,SHEFFIELD MIND                          ,556296,Social Community Care,CAREFIRST DIRECT PAYMENTS     
PURCHASING LEARNING DISABILITI,4260,DIRECT PAYMENTS               ,03/10/2013,3526354,J714994                  ,1080.84,PENDERELS TRUST                         ,556454,Social Community Care,CAREFIRST DIRECT PAYMENTS     
PURCHASING LEARNING DISABILITI,9210,FUNDED NURSING CARE (INCOME)  ,03/10/2013,3526354,J714994                  ,40290.64,PENDERELS TRUST                         ,556454,Social Community Care,CAREFIRST DIRECT PAYMENTS     
ADULT SOCIAL CARE PURCHASING  ,9190,DIRECT PAYMENTS               ,03/10/2013,3526357,J714994                  ,1250.37,REDACTED PERSONAL DATA,573468,Social Community Care,CAREFIRST DIRECT PAYMENTS     
ADULT SOCIAL CARE PURCHASING  ,9190,DIRECT PAYMENTS               ,03/10/2013,3526358,J714994                  ,1101.72,REDACTED PERSONAL DATA,587808,Social Community Care,CAREFIRST DIRECT PAYMENTS     
ADULT SOCIAL CARE PURCHASING  ,9190,DIRECT PAYMENTS               ,03/10/2013,3526359,J714994                  ,893.74,REDACTED PERSONAL DATA,587832,Social Community Care,CAREFIRST DIRECT PAYMENTS     
CARERS SPECIAL GRANT          ,9190,DIRECT PAYMENTS               ,03/10/2013,3526360,J714994                  ,594.00,REDACTED PERSONAL DATA,587867,Social Community Care,CAREFIRST DIRECT PAYMENTS     
PURCHASING LEARNING DISABILITI,9190,DIRECT PAYMENTS               ,03/10/2013,3526361,J714994                  ,1394.16,REDACTED PERSONAL DATA,587900,Social Community Care,CAREFIRST DIRECT PAYMENTS     
LEAVING CARE                  ,9270,CARELEAVERS ACCOMMODATION     ,03/10/2013,3526305,501542,7980.00,NORTHERN LIFE CARE LTD T/A UBU          ,207163,Social Community Care,RESIDENTIAL CARE HOMES        
ADULT SOCIAL CARE PURCHASING  ,9190,SUPPORT PLANNING COSTS        ,03/10/2013,3526363,J714995                  ,460.00,IDK SUPPORT 4 YOU LTD - MANAGED ACCOUNTS,562179,Social Community Care,CAREFIRST DIRECT PAYMENTS     
ADULT SOCIAL CARE PURCHASING  ,9190,SUPPORT PLANNING COSTS        ,03/10/2013,3526364,J714995                  ,295.00,AGE UK                                  ,568628,Social Community Care,CAREFIRST DIRECT PAYMENTS     
PURCHASING                    ,9250,INDEPENDENT DAY CARE          ,03/10/2013,3526366,1993,492.00,WORK LTD                                ,350089,Horticultural,GARDEN CENTRES & NURSERIES    
PURCHASING LEARNING DISABILITI,9190,CITYWIDE SPOT                 ,03/10/2013,3526367,4177,4891.28,ONE TO ONE SUPPORT SERVICES LTD         ,518159,Social Community Care,HOME CARE SERVICES            
PURCHASING LEARNING DISABILITI,9210,FUNDED NURSING CARE (INCOME)  ,03/10/2013,3526367,4177,1212.52,ONE TO ONE SUPPORT SERVICES LTD         ,518159,Social Community Care,HOME CARE SERVICES            
PURCHASING LEARNING DISABILITI,9210,FUNDED NURSING CARE (INCOME)  ,03/10/2013,3526374,29844,489.96,CITIZENSHIP FIRST                       ,329379,Unclassified Non Trade,CHARITIES & VOLUNTARY ORGANISA
CWD INDEPENDENT PLACEMENTS    ,9270,INDEPENDENT FOSTERING         ,03/10/2013,3526292,104232,5164.88,FOSTERING SOLUTIONS LIMITED             ,344830,Social Community Care,ADOPTION & FOSTERING          
CWD INDEPENDENT PLACEMENTS    ,9270,INDEPENDENT FOSTERING         ,03/10/2013,3526293,25841,3703.00,FOSTERPLUS LTD.                         ,366456,Social Community Care,ADOPTION & FOSTERING          
CWD INDEPENDENT PLACEMENTS    ,9270,INDEPENDENT FOSTERING         ,03/10/2013,3526294,104233,3814.44,FOSTERING SOLUTIONS LIMITED             ,344830,Social Community Care,ADOPTION & FOSTERING          
LEAVING CARE                  ,9270,CARELEAVERS ACCOMMODATION     ,03/10/2013,3526295,362,6319.28,PATHWAY 2 PROGRESS                      ,540030,Social Community Care,RESIDENTIAL CARE HOMES        
LEAVING CARE                  ,9270,CARELEAVERS ACCOMMODATION     ,03/10/2013,3526296,364,2949.00,PATHWAY 2 PROGRESS                      ,540030,Social Community Care,RESIDENTIAL CARE HOMES        
LEAVING CARE                  ,9270,CARELEAVERS ACCOMMODATION     ,03/10/2013,3526297,365,2949.00,PATHWAY 2 PROGRESS                      ,540030,Social Community Care,RESIDENTIAL CARE HOMES        
LEAVING CARE                  ,9270,CARELEAVERS ACCOMMODATION     ,03/10/2013,3526298,14853,405.00,REDACTED PERSONAL DATA,573543,Social Community Care,ADOPTION & FOSTERING          
LEAVING CARE                  ,9270,CARELEAVERS ACCOMMODATION     ,03/10/2013,3526299,501535,11460.00,NORTHERN LIFE CARE LTD T/A UBU          ,207163,Social Community Care,RESIDENTIAL CARE HOMES        
LEAVING CARE                  ,9270,CARELEAVERS ACCOMMODATION     ,03/10/2013,3526300,501536,9100.00,NORTHERN LIFE CARE LTD T/A UBU          ,207163,Social Community Care,RESIDENTIAL CARE HOMES        
INDEPENDENT RES BLOCK PLACEMEN,9270,INDEPENDENT RESIDENTIAL PMENT ,03/10/2013,3526301,501537,9580.00,NORTHERN LIFE CARE LTD T/A UBU          ,207163,Social Community Care,RESIDENTIAL CARE HOMES        
INDEPENDENT RES BLOCK PLACEMEN,9270,INDEPENDENT RESIDENTIAL PMENT ,03/10/2013,3526302,501538,7980.00,NORTHERN LIFE CARE LTD T/A UBU          ,207163,Social Community Care,RESIDENTIAL CARE HOMES        
LEAVING CARE                  ,9270,CARELEAVERS ACCOMMODATION     ,03/10/2013,3526303,501539,7980.00,NORTHERN LIFE CARE LTD T/A UBU          ,207163,Social Community Care,RESIDENTIAL CARE HOMES        
LEAVING CARE                  ,9270,CARELEAVERS ACCOMMODATION     ,03/10/2013,3526304,501541,7980.00,NORTHERN LIFE CARE LTD T/A UBU          ,207163,Social Community Care,RESIDENTIAL CARE HOMES        
INDEPENDENT RES BLOCK PLACEMEN,9270,INDEPENDENT RESIDENTIAL PMENT ,03/10/2013,3526306,501548,6270.00,NORTHERN LIFE CARE LTD T/A UBU          ,207163,Social Community Care,RESIDENTIAL CARE HOMES        
LEAVING CARE                  ,9270,CARELEAVERS ACCOMMODATION     ,03/10/2013,3526307,501549,1710.00,NORTHERN LIFE CARE LTD T/A UBU          ,207163,Social Community Care,RESIDENTIAL CARE HOMES        
INDEPENDENT RES BLOCK PLACEMEN,9270,INDEPENDENT RESIDENTIAL PMENT ,03/10/2013,3526308,501550,8185.71,NORTHERN LIFE CARE LTD T/A UBU          ,207163,Social Community Care,RESIDENTIAL CARE HOMES        
LEAVING CARE                  ,9270,CARELEAVERS ACCOMMODATION     ,03/10/2013,3526309,501551,3274.29,NORTHERN LIFE CARE LTD T/A UBU          ,207163,Social Community Care,RESIDENTIAL CARE HOMES        
LEAVING CARE                  ,9270,CARELEAVERS ACCOMMODATION     ,03/10/2013,3526310,6117,2850.00,PROGRESSIVE CARE LTD                    ,343548,Social Community Care,CHILDREN'S HOMES              
LEAVING CARE                  ,9270,CARELEAVERS ACCOMMODATION     ,03/10/2013,3526311,8510,4009.20,HUTTON CARE PARTNERSHIP LTD             ,422809,Social Community Care,SHELTERED HOUSING             
LEAVING CARE                  ,9270,CARELEAVERS ACCOMMODATION     ,03/10/2013,3526312,8511,4009.20,HUTTON CARE PARTNERSHIP LTD             ,422809,Social Community Care,SHELTERED HOUSING             
LEAVING CARE                  ,9270,CARELEAVERS ACCOMMODATION     ,03/10/2013,3526313,8512,4009.20,HUTTON CARE PARTNERSHIP LTD             ,422809,Social Community Care,SHELTERED HOUSING             
LEAVING CARE                  ,9270,CARELEAVERS ACCOMMODATION     ,03/10/2013,3526314,LAKATOSOVA39             ,320.95,EARL MARSHALL GUEST HOUSE               ,391589,Facilities Management,GUEST HOUSES                  
LEAVING CARE                  ,9270,CARELEAVERS ACCOMMODATION     ,03/10/2013,3526315,LAKATOSOVA40             ,320.95,EARL MARSHALL GUEST HOUSE               ,391589,Facilities Management,GUEST HOUSES                  
LEAVING CARE                  ,9270,CARELEAVERS ACCOMMODATION     ,03/10/2013,3526316,LAKATOSOVA41             ,320.95,EARL MARSHALL GUEST HOUSE               ,391589,Facilities Management,GUEST HOUSES                  
LEAVING CARE                  ,9270,CARELEAVERS ACCOMMODATION     ,03/10/2013,3526317,LAKATOSOVA42             ,320.95,EARL MARSHALL GUEST HOUSE               ,391589,Facilities Management,GUEST HOUSES                  
LEAVING CARE                  ,9270,CARELEAVERS ACCOMMODATION     ,03/10/2013,3526318,LAKATOSOVA43             ,320.95,EARL MARSHALL GUEST HOUSE               ,391589,Facilities Management,GUEST HOUSES                  
LEAVING CARE                  ,9270,CARELEAVERS ACCOMMODATION     ,03/10/2013,3526319,LAKATOSOVA44             ,320.95,EARL MARSHALL GUEST HOUSE               ,391589,Facilities Management,GUEST HOUSES                  
LEAVING CARE                  ,9270,CARELEAVERS ACCOMMODATION     ,03/10/2013,3526320,LAKATOSOVA45             ,320.95,EARL MARSHALL GUEST HOUSE               ,391589,Facilities Management,GUEST HOUSES                  
LEAVING CARE                  ,9270,CARELEAVERS ACCOMMODATION     ,03/10/2013,3526321,LAKATOSOVA46             ,320.95,EARL MARSHALL GUEST HOUSE               ,391589,Facilities Management,GUEST HOUSES                  
LEAVING CARE                  ,9270,CARELEAVERS ACCOMMODATION     ,03/10/2013,3526322,LAKATOSOVA47             ,320.95,EARL MARSHALL GUEST HOUSE               ,391589,Facilities Management,GUEST HOUSES                  
LEAVING CARE                  ,9270,CARELEAVERS ACCOMMODATION     ,03/10/2013,3526323,LAKATOSOVA48             ,320.95,EARL MARSHALL GUEST HOUSE               ,391589,Facilities Management,GUEST HOUSES                  
INDEPENDENT RES BLOCK PLACEMEN,9270,INDEPENDENT RESIDENTIAL PMENT ,03/10/2013,3526325,18514,9665.88,CARE TODAY                              ,382727,Social Community Care,CHILDREN'S HOMES              
LEAVING CARE                  ,9270,CARELEAVERS ACCOMMODATION     ,03/10/2013,3526336,19/2013/14               ,680.96,PITSMOOR YOUTH HOUSING TRUST LTD. (SP)  ,351170,Unclassified Non Trade,CHARITIES & VOLUNTARY ORGANISA
CHILDRENS & JESSOPS S17       ,9280,CONTACT                       ,03/10/2013,3526341,482CW                    ,303.00,SHEFFIELD CHILDREN'S CENTRE             ,311908,Social Community Care,NURSERIES & CRECHES           
CONTACT CONTRACTS             ,9280,CONTACT                       ,03/10/2013,3526343,482JG                    ,277.95,SHEFFIELD CHILDREN'S CENTRE             ,311908,Social Community Care,NURSERIES & CRECHES           
CONTACT CONTRACTS             ,9280,CONTACT                       ,03/10/2013,3526344,482JJ                    ,435.80,SHEFFIELD CHILDREN'S CENTRE             ,311908,Social Community Care,NURSERIES & CRECHES           
CONTACT CONTRACTS             ,9280,CONTACT                       ,03/10/2013,3526346,482RP                    ,344.55,SHEFFIELD CHILDREN'S CENTRE             ,311908,Social Community Care,NURSERIES & CRECHES           
CONTACT CONTRACTS             ,9280,CONTACT                       ,03/10/2013,3526347,482RS                    ,324.05,SHEFFIELD CHILDREN'S CENTRE             ,311908,Social Community Care,NURSERIES & CRECHES           
CONTACT CONTRACTS             ,9280,CONTACT                       ,03/10/2013,3526349,482TH                    ,309.60,SHEFFIELD CHILDREN'S CENTRE             ,311908,Social Community Care,NURSERIES & CRECHES           
ADULT SOCIAL CARE PURCHASING  ,9200,CONTINUING RESIDENTIAL CARE   ,03/10/2013,3526286,J701605 131013           ,15832.00,WOOD HILL GRANGE CARE HOME              ,552397,Social Community Care,RESIDENTIAL CARE HOMES        
ADULT SOCIAL CARE PURCHASING  ,9210,CONTINUING NURSING CARE       ,03/10/2013,3526286,J701605 131013           ,25664.00,WOOD HILL GRANGE CARE HOME              ,552397,Social Community Care,RESIDENTIAL CARE HOMES        
ADULT SOCIAL CARE PURCHASING  ,9210,CONTINUING NURSING CARE       ,03/10/2013,3526287,J714997 131013           ,1173.00,FULWOOD LODGE NURSING HOME              ,361775,Social Community Care,NURSING HOMES                 
ADULT SOCIAL CARE PURCHASING  ,9210,CONTINUING NURSING CARE       ,03/10/2013,3526288,J714998 131013           ,17468.00,NEWFIELD NURSING HOME                   ,361980,Social Community Care,NURSING HOMES                 
ADULT SOCIAL CARE PURCHASING  ,9210,CONTINUING NURSING CARE       ,03/10/2013,3526289,J714999 131013           ,3128.00,HENLEIGH HALL                           ,362109,Social Community Care,NURSING HOMES                 
ADULT SOCIAL CARE PURCHASING  ,9200,SHORT TERM RESIDENTIAL CARE   ,03/10/2013,3526291,J714966 150913           ,684.00,WOOD HILL GRANGE CARE HOME              ,552397,Social Community Care,RESIDENTIAL CARE HOMES        
IN HOUSE FOSTER PLACEMENT     ,9270,IN-HOUSE FOSTERING            ,04/10/2013,3527012,100069 20131003 42700    ,1016.00,REDACTED PERSONAL DATA,333449,Social Community Care,ADOPTION & FOSTERING          
ADOPTION ALLOWANCES           ,9270,ADOPTION ALLOWANCES           ,04/10/2013,3527012,100069 20131003 42700    ,523.00,REDACTED PERSONAL DATA,333449,Social Community Care,ADOPTION & FOSTERING          
CARELEAVER IN HOUSE FOSTERING ,9270,IN-HOUSE FOSTERING            ,04/10/2013,3527014,149394 20131003 42700    ,350.00,REDACTED PERSONAL DATA,453957,Social Community Care,ADOPTION & FOSTERING          
IN HOUSE FOSTER PLACEMENT     ,9270,IN-HOUSE FOSTERING            ,04/10/2013,3527014,149394 20131003 42700    ,1230.00,REDACTED PERSONAL DATA,453957,Social Community Care,ADOPTION & FOSTERING          
IN HOUSE FOSTER PLACEMENT     ,9270,IN-HOUSE FOSTERING            ,04/10/2013,3527016,149405 20131003 42700    ,1360.00,REDACTED PERSONAL DATA,408920,Social Community Care,ADOPTION & FOSTERING          
RESIDENCE ORDERS              ,9270,RESIDENCE ORDERS              ,04/10/2013,3527017,150147 20131003 42700    ,321.60,REDACTED PERSONAL DATA,410525,Social Community Care,ADOPTION & FOSTERING          
IN HOUSE FOSTER PLACEMENT     ,9270,IN-HOUSE FOSTERING            ,04/10/2013,3527018,15052 20131003 42700     ,2491.14,REDACTED PERSONAL DATA,564456,Unclassified Non Trade,OUT OF SCOPE FOR SIC MONITORIN
ADOPTION ALLOWANCES           ,9270,ADOPTION ALLOWANCES           ,04/10/2013,3527019,150723 20131003 42700    ,321.60,REDACTED PERSONAL DATA,507002,Social Community Care,ADOPTION & FOSTERING          
IN HOUSE FOSTER PLACEMENT     ,9270,IN-HOUSE FOSTERING            ,04/10/2013,3527021,151365 20131003 42700    ,1016.00,REDACTED PERSONAL DATA,442473,Social Community Care,ADOPTION & FOSTERING          
ADOPTION SERVICE              ,9270,ADOPTION ALLOWANCES           ,04/10/2013,3527023,152049 20131003 42700    ,381.08,REDACTED PERSONAL DATA,512161,Social Community Care,ADOPTION & FOSTERING          
IN HOUSE FOSTER PLACEMENT     ,9270,IN-HOUSE FOSTERING            ,04/10/2013,3527024,156226 20131003 42700    ,1106.00,REDACTED PERSONAL DATA,549255,Social Community Care,ADOPTION & FOSTERING          
ADOPTION ALLOWANCES           ,9270,ADOPTION ALLOWANCES           ,04/10/2013,3527025,10618 20131003 42700     ,295.20,REDACTED PERSONAL DATA,332987,Social Community Care,ADOPTION & FOSTERING          
ADOPTION ALLOWANCES           ,9270,ADOPTION ALLOWANCES           ,04/10/2013,3527027,156682 20131003 42700    ,321.60,REDACTED PERSONAL DATA,447568,Social Community Care,ADOPTION & FOSTERING          
ADOPTION ALLOWANCES           ,9270,ADOPTION ALLOWANCES           ,04/10/2013,3527031,158578 20131003 42700    ,335.40,REDACTED PERSONAL DATA,435732,Social Community Care,ADOPTION & FOSTERING          
RESIDENCE ORDERS              ,9270,RESIDENCE ORDERS              ,04/10/2013,3527033,159404 20131003 42700    ,469.20,REDACTED PERSONAL DATA,418360,Social Community Care,ADOPTION & FOSTERING          
ADOPTION ALLOWANCES           ,9270,ADOPTION ALLOWANCES           ,04/10/2013,3527037,161306 20131003 42700    ,298.26,REDACTED PERSONAL DATA,563893,Social Community Care,ADOPTION & FOSTERING          
IN HOUSE FOSTER PLACEMENT     ,9270,IN-HOUSE FOSTERING            ,04/10/2013,3527038,16180 20131003 42700     ,423.58,REDACTED PERSONAL DATA,333718,Social Community Care,ADOPTION & FOSTERING          
IN HOUSE FOSTER PLACEMENT     ,9270,IN-HOUSE FOSTERING            ,04/10/2013,3527039,161854 20131003 42700    ,1856.00,REDACTED PERSONAL DATA,502396,Social Community Care,ADOPTION & FOSTERING          
ADOPTION ALLOWANCES           ,9270,ADOPTION ALLOWANCES           ,04/10/2013,3527039,161854 20131003 42700    ,254.60,REDACTED PERSONAL DATA,502396,Social Community Care,ADOPTION & FOSTERING          
SPECIAL GUARDIANSHIP          ,9270,RESIDENCE ORDERS              ,04/10/2013,3527040,161862 20131003 42700    ,442.62,REDACTED PERSONAL DATA,569794,Unclassified Non Trade,OUT OF SCOPE FOR SIC MONITORIN
IN HOUSE FOSTER PLACEMENT     ,9270,IN-HOUSE FOSTERING            ,04/10/2013,3527042,162076 20131003 42700    ,408.00,REDACTED PERSONAL DATA,561473,Social Community Care,ADOPTION & FOSTERING          
ADOPTION ALLOWANCES           ,9270,ADOPTION ALLOWANCES           ,04/10/2013,3527044,162287 20131003 42700    ,321.60,REDACTED PERSONAL DATA,437597,Social Community Care,ADOPTION & FOSTERING          
ADOPTION ALLOWANCES           ,9270,ADOPTION ALLOWANCES           ,04/10/2013,3527046,162684 20131003 42700    ,523.00,REDACTED PERSONAL DATA,384639,Social Community Care,ADOPTION & FOSTERING          
RESIDENCE ORDERS              ,9270,RESIDENCE ORDERS              ,04/10/2013,3527047,106563 20131003 42700    ,254.60,REDACTED PERSONAL DATA,503013,Social Community Care,ADOPTION & FOSTERING          
ADOPTION ALLOWANCES           ,9270,ADOPTION ALLOWANCES           ,04/10/2013,3527048,162716 20131003 42700    ,469.20,REDACTED PERSONAL DATA,405479,Social Community Care,ADOPTION & FOSTERING          
ADOPTION ALLOWANCES           ,9270,ADOPTION ALLOWANCES           ,04/10/2013,3527049,162820 20131003 42700    ,469.20,REDACTED PERSONAL DATA,420593,Social Community Care,ADOPTION & FOSTERING          
ADOPTION ALLOWANCES           ,9270,ADOPTION ALLOWANCES           ,04/10/2013,3527050,162849 20131003 42700    ,919.12,REDACTED PERSONAL DATA,383481,Social Community Care,ADOPTION & FOSTERING          
ADOPTION ALLOWANCES           ,9270,ADOPTION ALLOWANCES           ,04/10/2013,3527053,162997 20131003 42700    ,368.50,REDACTED PERSONAL DATA,420205,Social Community Care,ADOPTION & FOSTERING          
ADOPTION ALLOWANCES           ,9270,ADOPTION ALLOWANCES           ,04/10/2013,3527054,163018 20131003 42700    ,382.30,REDACTED PERSONAL DATA,397573,Social Community Care,ADOPTION & FOSTERING          
ADOPTION ALLOWANCES           ,9270,ADOPTION ALLOWANCES           ,04/10/2013,3527055,163138 20131003 42700    ,389.00,REDACTED PERSONAL DATA,400697,Social Community Care,ADOPTION & FOSTERING          
ADOPTION ALLOWANCES           ,9270,ADOPTION ALLOWANCES           ,04/10/2013,3527057,165811 20131003 42700    ,415.40,REDACTED PERSONAL DATA,366214,Social Community Care,ADOPTION & FOSTERING          
IN HOUSE FOSTER PLACEMENT     ,9270,IN-HOUSE FOSTERING            ,04/10/2013,3527061,167097 20131003 42700    ,608.00,REDACTED PERSONAL DATA,424791,Social Community Care,ADOPTION & FOSTERING          
IN HOUSE FOSTER PLACEMENT     ,9270,IN-HOUSE FOSTERING            ,04/10/2013,3527063,16889 20131003 42700     ,768.00,REDACTED PERSONAL DATA,368064,Social Community Care,ADOPTION & FOSTERING          
ADOPTION ALLOWANCES           ,9270,ADOPTION ALLOWANCES           ,04/10/2013,3527064,169136 20131003 42700    ,321.60,REDACTED PERSONAL DATA,478793,Social Community Care,ADOPTION & FOSTERING          
ADOPTION ALLOWANCES           ,9270,ADOPTION ALLOWANCES           ,04/10/2013,3527065,169337 20131003 42700    ,415.40,REDACTED PERSONAL DATA,529676,Social Community Care,ADOPTION & FOSTERING          
ADOPTION ALLOWANCES           ,9270,ADOPTION ALLOWANCES           ,04/10/2013,3527066,169390 20131003 42700    ,368.50,REDACTED PERSONAL DATA,391015,Social Community Care,ADOPTION & FOSTERING          
RESIDENCE ORDERS              ,9270,RESIDENCE ORDERS              ,04/10/2013,3527069,108769 20131003 42700    ,633.66,REDACTED PERSONAL DATA,584042,Unclassified Non Trade,OUT OF SCOPE FOR SIC MONITORIN
RESIDENCE ORDERS              ,9270,RESIDENCE ORDERS              ,04/10/2013,3527070,170383 20131003 42700    ,822.39,REDACTED PERSONAL DATA,478426,Social Community Care,ADOPTION & FOSTERING          
ADOPTION ALLOWANCES           ,9270,ADOPTION ALLOWANCES           ,04/10/2013,3527072,173483 20131003 42700    ,295.20,REDACTED PERSONAL DATA,534228,Social Community Care,ADOPTION & FOSTERING          
IN HOUSE FOSTER PLACEMENT     ,9270,IN-HOUSE FOSTERING            ,04/10/2013,3527075,174308 20131003 42700    ,302.00,REDACTED PERSONAL DATA,585563,Social Community Care,ADOPTION & FOSTERING          
ADOPTION ALLOWANCES           ,9270,ADOPTION ALLOWANCES           ,04/10/2013,3527077,175100 20131003 42700    ,536.20,REDACTED PERSONAL DATA,437719,Social Community Care,ADOPTION & FOSTERING          
ADOPTION ALLOWANCES           ,9270,ADOPTION ALLOWANCES           ,04/10/2013,3527080,108779 20131003 42700    ,335.40,REDACTED PERSONAL DATA,445176,Social Community Care,ADOPTION & FOSTERING          
ADOPTION ALLOWANCES           ,9270,ADOPTION ALLOWANCES           ,04/10/2013,3527082,179524 20131003 42700    ,429.20,REDACTED PERSONAL DATA,338804,Social Community Care,ADOPTION & FOSTERING          
SPECIAL GUARDIANSHIP          ,9270,RESIDENCE ORDERS              ,04/10/2013,3527083,179550 20131003 42700    ,382.30,REDACTED PERSONAL DATA,455209,Social Community Care,ADOPTION & FOSTERING          
IN HOUSE FOSTER PLACEMENT     ,9270,IN-HOUSE FOSTERING            ,04/10/2013,3527084,179693 20131003 42700    ,1587.72,REDACTED PERSONAL DATA,521983,Social Community Care,ADOPTION & FOSTERING          
SPECIAL GUARDIANSHIP          ,9270,RESIDENCE ORDERS              ,04/10/2013,3527086,180012 20131003 42700    ,298.26,REDACTED PERSONAL DATA,551185,Social Community Care,ADOPTION & FOSTERING          
SPECIAL GUARDIANSHIP          ,9270,RESIDENCE ORDERS              ,04/10/2013,3527095,183203 20131003 42700    ,268.40,REDACTED PERSONAL DATA,514674,Social Community Care,ADOPTION & FOSTERING          
IN HOUSE FOSTER PLACEMENT     ,9270,IN-HOUSE FOSTERING            ,04/10/2013,3527097,18403 20131003 42700     ,608.00,REDACTED PERSONAL DATA,333624,Social Community Care,ADOPTION & FOSTERING          
RESIDENCE ORDERS              ,9270,RESIDENCE ORDERS              ,04/10/2013,3527099,184267 20131003 42700    ,513.96,REDACTED PERSONAL DATA,455207,Social Community Care,ADOPTION & FOSTERING          
RESIDENCE ORDERS              ,9270,RESIDENCE ORDERS              ,04/10/2013,3527100,184501 20131003 42700    ,496.72,REDACTED PERSONAL DATA,401269,Social Community Care,ADOPTION & FOSTERING          
ADOPTION ALLOWANCES           ,9270,ADOPTION ALLOWANCES           ,04/10/2013,3527101,184782 20131003 42700    ,683.80,REDACTED PERSONAL DATA,373269,Social Community Care,ADOPTION & FOSTERING          
RESIDENCE ORDERS              ,9270,RESIDENCE ORDERS              ,04/10/2013,3527102,109853 20131003 42700    ,469.20,REDACTED PERSONAL DATA,368099,Social Community Care,ADOPTION & FOSTERING          
RESIDENCE ORDERS              ,9270,RESIDENCE ORDERS              ,04/10/2013,3527105,186377 20131003 42700    ,502.86,REDACTED PERSONAL DATA,487461,Social Community Care,ADOPTION & FOSTERING          
ADOPTION ALLOWANCES           ,9270,ADOPTION ALLOWANCES           ,04/10/2013,3527107,186584 20131003 42700    ,483.00,REDACTED PERSONAL DATA,397135,Social Community Care,ADOPTION & FOSTERING          
RESIDENCE ORDERS              ,9270,RESIDENCE ORDERS              ,04/10/2013,3527108,187151 20131003 42700    ,288.72,REDACTED PERSONAL DATA,547122,Social Community Care,CAREFIRST DIRECT PAYMENTS     
RESIDENCE ORDERS              ,9270,RESIDENCE ORDERS              ,04/10/2013,3527109,187601 20131003 42700    ,321.60,REDACTED PERSONAL DATA,429150,Social Community Care,ADOPTION & FOSTERING          
IN HOUSE FOSTER PLACEMENT     ,9270,IN-HOUSE FOSTERING            ,04/10/2013,3527111,187984 20131003 42700    ,752.00,REDACTED PERSONAL DATA,467299,Social Community Care,ADOPTION & FOSTERING          
ADOPTION ALLOWANCES           ,9270,ADOPTION ALLOWANCES           ,04/10/2013,3527112,188778 20131003 42700    ,321.60,REDACTED PERSONAL DATA,510268,Social Community Care,ADOPTION & FOSTERING          
IN HOUSE FOSTER PLACEMENT     ,9270,IN-HOUSE FOSTERING            ,04/10/2013,3527116,189523 20131003 42700    ,347.43,REDACTED PERSONAL DATA,464101,Social Community Care,ADOPTION & FOSTERING          
RESIDENCE ORDERS              ,9270,RESIDENCE ORDERS              ,04/10/2013,3527118,189972 20131003 42700    ,254.60,REDACTED PERSONAL DATA,561897,Unclassified Non Trade,OUT OF SCOPE FOR SIC MONITORIN
RESIDENCE ORDERS              ,9270,RESIDENCE ORDERS              ,04/10/2013,3527119,190942 20131003 42700    ,512.86,REDACTED PERSONAL DATA,566337,Social Community Care,ADOPTION & FOSTERING          
ADOPTION ALLOWANCES           ,9270,ADOPTION ALLOWANCES           ,04/10/2013,3527120,190991 20131003 42700    ,368.50,REDACTED PERSONAL DATA,505899,Social Community Care,ADOPTION & FOSTERING          
SPECIAL GUARDIANSHIP          ,9270,RESIDENCE ORDERS              ,04/10/2013,3527121,191065 20131003 42700    ,643.66,REDACTED PERSONAL DATA,444008,Social Community Care,ADOPTION & FOSTERING          
IN HOUSE FOSTER PLACEMENT     ,9270,IN-HOUSE FOSTERING            ,04/10/2013,3527122,191176 20131003 42700    ,1433.42,REDACTED PERSONAL DATA,585529,Unclassified Non Trade,OUT OF SCOPE FOR SIC MONITORIN
SPECIAL GUARDIANSHIP          ,9270,RESIDENCE ORDERS              ,04/10/2013,3527123,191415 20131003 42700    ,1267.30,REDACTED PERSONAL DATA,567597,Social Community Care,ADOPTION & FOSTERING          
IN HOUSE FOSTER PLACEMENT     ,9270,IN-HOUSE FOSTERING            ,04/10/2013,3527124,10113 20131003 42700     ,1502.00,REDACTED PERSONAL DATA,371949,Social Community Care,ADOPTION & FOSTERING          
RESIDENCE ORDERS              ,9270,RESIDENCE ORDERS              ,04/10/2013,3527127,191514 20131003 42700    ,382.30,REDACTED PERSONAL DATA,450449,Social Community Care,ADOPTION & FOSTERING          
SPECIAL GUARDIANSHIP          ,9270,RESIDENCE ORDERS              ,04/10/2013,3527128,191801 20131003 42700    ,1439.20,REDACTED PERSONAL DATA,492572,Social Community Care,ADOPTION & FOSTERING          
IN HOUSE FOSTER PLACEMENT     ,9270,IN-HOUSE FOSTERING            ,04/10/2013,3527129,191832 20131003 42700    ,1424.00,REDACTED PERSONAL DATA,473384,Social Community Care,ADOPTION & FOSTERING          
CARELEAVER IN HOUSE FOSTERING ,9270,IN-HOUSE FOSTERING            ,04/10/2013,3527131,19266 20131003 42700     ,350.00,REDACTED PERSONAL DATA,332852,Social Community Care,ADOPTION & FOSTERING          
IN HOUSE FOSTER PLACEMENT     ,9270,IN-HOUSE FOSTERING            ,04/10/2013,3527132,193350 20131003 42700    ,672.00,REDACTED PERSONAL DATA,471003,Social Community Care,ADOPTION & FOSTERING          
CARELEAVER IN HOUSE FOSTERING ,9270,IN-HOUSE FOSTERING            ,04/10/2013,3527133,193537 20131003 42700    ,829.08,REDACTED PERSONAL DATA,525359,Social Community Care,CHILDCARE SERVICES            
ADOPTION ALLOWANCES           ,9270,ADOPTION ALLOWANCES           ,04/10/2013,3527134,193819 20131003 42700    ,415.40,REDACTED PERSONAL DATA,368040,Social Community Care,ADOPTION & FOSTERING          
SPECIAL GUARDIANSHIP          ,9270,RESIDENCE ORDERS              ,04/10/2013,3527136,110569 20131003 42700    ,365.66,REDACTED PERSONAL DATA,552284,Unclassified Non Trade,OUT OF SCOPE FOR SIC MONITORIN
ADOPTION ALLOWANCES           ,9270,ADOPTION ALLOWANCES           ,04/10/2013,3527139,194666 20131003 42700    ,254.60,REDACTED PERSONAL DATA,333712,Social Community Care,ADOPTION & FOSTERING          
ADOPTION ALLOWANCES           ,9270,ADOPTION ALLOWANCES           ,04/10/2013,3527140,194685 20131003 42700    ,415.40,REDACTED PERSONAL DATA,440691,Social Community Care,ADOPTION & FOSTERING          
ADOPTION ALLOWANCES           ,9270,ADOPTION ALLOWANCES           ,04/10/2013,3527141,194971 20131003 42700    ,321.60,REDACTED PERSONAL DATA,480781,Social Community Care,ADOPTION & FOSTERING          
ADOPTION ALLOWANCES           ,9270,ADOPTION ALLOWANCES           ,04/10/2013,3527142,194998 20131003 42700    ,268.40,REDACTED PERSONAL DATA,392641,Social Community Care,ADOPTION & FOSTERING          
ADOPTION ALLOWANCES           ,9270,ADOPTION ALLOWANCES           ,04/10/2013,3527143,195074 20131003 42700    ,677.30,REDACTED PERSONAL DATA,333341,Social Community Care,ADOPTION & FOSTERING          
ADOPTION ALLOWANCES           ,9270,ADOPTION ALLOWANCES           ,04/10/2013,3527144,195134 20131003 42700    ,254.60,REDACTED PERSONAL DATA,332998,Social Community Care,ADOPTION & FOSTERING          
ADOPTION ALLOWANCES           ,9270,ADOPTION ALLOWANCES           ,04/10/2013,3527145,195344 20131003 42700    ,329.72,REDACTED PERSONAL DATA,332945,Social Community Care,ADOPTION & FOSTERING          
IN HOUSE FOSTER PLACEMENT     ,9270,IN-HOUSE FOSTERING            ,04/10/2013,3527146,19623 20131003 42700     ,1868.00,REDACTED PERSONAL DATA,333147,Social Community Care,ADOPTION & FOSTERING          
SPECIAL GUARDIANSHIP          ,9270,RESIDENCE ORDERS              ,04/10/2013,3527146,19623 20131003 42700     ,577.96,REDACTED PERSONAL DATA,333147,Social Community Care,ADOPTION & FOSTERING          
IN HOUSE FOSTER PLACEMENT     ,9270,IN-HOUSE FOSTERING            ,04/10/2013,3527149,196541 20131003 42700    ,608.00,REDACTED PERSONAL DATA,515242,Social Community Care,ADOPTION & FOSTERING          
IN HOUSE FOSTER PLACEMENT     ,9270,IN-HOUSE FOSTERING            ,04/10/2013,3527153,197337 20131003 42700    ,720.00,REDACTED PERSONAL DATA,483157,Social Community Care,ADOPTION & FOSTERING          
CARELEAVER IN HOUSE FOSTERING ,9270,IN-HOUSE FOSTERING            ,04/10/2013,3527154,197817 20131003 42700    ,519.43,REDACTED PERSONAL DATA,569598,Unclassified Non Trade,OUT OF SCOPE FOR SIC MONITORIN
ADOPTION ALLOWANCES           ,9270,ADOPTION ALLOWANCES           ,04/10/2013,3527155,198659 20131003 42700    ,298.26,REDACTED PERSONAL DATA,534697,Social Community Care,ADOPTION & FOSTERING          
ADOPTION ALLOWANCES           ,9270,ADOPTION ALLOWANCES           ,04/10/2013,3527157,199041 20131003 42700    ,368.50,REDACTED PERSONAL DATA,459717,Social Community Care,ADOPTION & FOSTERING          
SPECIAL GUARDIANSHIP          ,9270,RESIDENCE ORDERS              ,04/10/2013,3527158,111606 20131003 42700    ,298.26,REDACTED PERSONAL DATA,418311,Social Community Care,ADOPTION & FOSTERING          
CARELEAVER IN HOUSE FOSTERING ,9270,IN-HOUSE FOSTERING            ,04/10/2013,3527159,199243 20131003 42700    ,350.00,REDACTED PERSONAL DATA,577465,Social Community Care,ADOPTION & FOSTERING          
IN HOUSE FOSTER PLACEMENT     ,9270,IN-HOUSE FOSTERING            ,04/10/2013,3527160,199287 20131003 42700    ,1016.00,REDACTED PERSONAL DATA,568498,Unclassified Non Trade,OUT OF SCOPE FOR SIC MONITORIN
ADOPTION ALLOWANCES           ,9270,ADOPTION ALLOWANCES           ,04/10/2013,3527161,199392 20131003 42700    ,321.60,REDACTED PERSONAL DATA,518473,Social Community Care,ADOPTION & FOSTERING          
RESIDENCE ORDERS              ,9270,RESIDENCE ORDERS              ,04/10/2013,3527163,199936 20131003 42700    ,254.60,REDACTED PERSONAL DATA,450523,Social Community Care,ADOPTION & FOSTERING          
IN HOUSE FOSTER PLACEMENT     ,9270,IN-HOUSE FOSTERING            ,04/10/2013,3527169,202495 20131003 42700    ,514.00,REDACTED PERSONAL DATA,489499,Social Community Care,ADOPTION & FOSTERING          
IN HOUSE FOSTER PLACEMENT     ,9270,IN-HOUSE FOSTERING            ,04/10/2013,3527170,111911 20131003 42700    ,1308.00,REDACTED PERSONAL DATA,338765,Social Community Care,ADOPTION & FOSTERING          
SPECIAL GUARDIANSHIP          ,9270,RESIDENCE ORDERS              ,04/10/2013,3527172,203296 20131003 42700    ,536.20,REDACTED PERSONAL DATA,463795,Social Community Care,ADOPTION & FOSTERING          
IN HOUSE FOSTER PLACEMENT     ,9270,IN-HOUSE FOSTERING            ,04/10/2013,3527174,203957 20131003 42700    ,812.00,REDACTED PERSONAL DATA,569169,Social Community Care,ADOPTION & FOSTERING          
IN HOUSE FOSTER PLACEMENT     ,9270,IN-HOUSE FOSTERING            ,04/10/2013,3527175,204113 20131003 42700    ,608.00,REDACTED PERSONAL DATA,479993,Social Community Care,ADOPTION & FOSTERING          
SPECIAL GUARDIANSHIP          ,9270,RESIDENCE ORDERS              ,04/10/2013,3527176,204229 20131003 42700    ,288.72,REDACTED PERSONAL DATA,527409,Social Community Care,ADOPTION & FOSTERING          
ADOPTION ALLOWANCES           ,9270,ADOPTION ALLOWANCES           ,04/10/2013,3527177,205558 20131003 42700    ,456.42,REDACTED PERSONAL DATA,537889,Social Community Care,ADOPTION & FOSTERING          
SPECIAL GUARDIANSHIP          ,9270,RESIDENCE ORDERS              ,04/10/2013,3527180,207629 20131003 42700    ,1693.80,REDACTED PERSONAL DATA,487226,Social Community Care,ADOPTION & FOSTERING          
RESIDENCE ORDERS              ,9270,RESIDENCE ORDERS              ,04/10/2013,3527181,11214 20131003 42700     ,630.00,REDACTED PERSONAL DATA,328124,Social Community Care,ADOPTION & FOSTERING          
ADOPTION ALLOWANCES           ,9270,ADOPTION ALLOWANCES           ,04/10/2013,3527183,207975 20131003 42700    ,415.40,REDACTED PERSONAL DATA,474647,Social Community Care,ADOPTION & FOSTERING          
IN HOUSE FOSTER PLACEMENT     ,9270,IN-HOUSE FOSTERING            ,04/10/2013,3527184,20809 20131003 42700     ,634.00,REDACTED PERSONAL DATA,333830,Social Community Care,ADOPTION & FOSTERING          
ADOPTION SERVICE              ,9270,ADOPTION ALLOWANCES           ,04/10/2013,3527186,208267 20131003 42700    ,432.02,REDACTED PERSONAL DATA,485929,Social Community Care,ADOPTION & FOSTERING          
IN HOUSE FOSTER PLACEMENT     ,9270,IN-HOUSE FOSTERING            ,04/10/2013,3527186,208267 20131003 42700    ,2103.43,REDACTED PERSONAL DATA,485929,Social Community Care,ADOPTION & FOSTERING          
IN HOUSE FOSTER PLACEMENT     ,9270,IN-HOUSE FOSTERING            ,04/10/2013,3527188,208906 20131003 42700    ,608.00,REDACTED PERSONAL DATA,502527,Social Community Care,ADOPTION & FOSTERING          
IN HOUSE FOSTER PLACEMENT     ,9270,IN-HOUSE FOSTERING            ,04/10/2013,3527190,21036 20131003 42700     ,1068.00,REDACTED PERSONAL DATA,380258,Social Community Care,ADOPTION & FOSTERING          
IN HOUSE FOSTER PLACEMENT     ,9270,IN-HOUSE FOSTERING            ,04/10/2013,3527191,210431 20131003 42700    ,643.00,REDACTED PERSONAL DATA,502737,Social Community Care,ADOPTION & FOSTERING          
IN HOUSE FOSTER PLACEMENT     ,9270,IN-HOUSE FOSTERING            ,04/10/2013,3527193,210508 20131003 42700    ,608.00,REDACTED PERSONAL DATA,493410,Social Community Care,ADOPTION & FOSTERING          
SPECIAL GUARDIANSHIP          ,9270,RESIDENCE ORDERS              ,04/10/2013,3527196,212008 20131003 42700    ,321.60,REDACTED PERSONAL DATA,555120,Unclassified Non Trade,OUT OF SCOPE FOR SIC MONITORIN
SPECIAL GUARDIANSHIP          ,9270,RESIDENCE ORDERS              ,04/10/2013,3527199,212910 20131003 42700    ,298.26,REDACTED PERSONAL DATA,566648,Social Community Care,ADOPTION & FOSTERING          
IN HOUSE FOSTER PLACEMENT     ,9270,IN-HOUSE FOSTERING            ,04/10/2013,3527200,21312 20131003 42700     ,408.00,REDACTED PERSONAL DATA,333655,Social Community Care,ADOPTION & FOSTERING          
SPECIAL GUARDIANSHIP          ,9270,RESIDENCE ORDERS              ,04/10/2013,3527201,213411 20131003 42700    ,819.96,REDACTED PERSONAL DATA,502164,Social Community Care,ADOPTION & FOSTERING          
IN HOUSE FOSTER PLACEMENT     ,9270,IN-HOUSE FOSTERING            ,04/10/2013,3527203,113481 20131003 42700    ,792.00,REDACTED PERSONAL DATA,333743,Social Community Care,ADOPTION & FOSTERING          
RESIDENCE ORDERS              ,9270,RESIDENCE ORDERS              ,04/10/2013,3527205,214328 20131003 42700    ,254.60,REDACTED PERSONAL DATA,486958,Social Community Care,ADOPTION & FOSTERING          
IN HOUSE FOSTER PLACEMENT     ,9270,IN-HOUSE FOSTERING            ,04/10/2013,3527206,21439 20131003 42700     ,938.00,REDACTED PERSONAL DATA,338747,Social Community Care,ADOPTION & FOSTERING          
ADOPTION SERVICE              ,9270,ADOPTION ALLOWANCES           ,04/10/2013,3527206,21439 20131003 42700     ,254.50,REDACTED PERSONAL DATA,338747,Social Community Care,ADOPTION & FOSTERING          
RESIDENCE ORDERS              ,9270,RESIDENCE ORDERS              ,04/10/2013,3527208,214697 20131003 42700    ,335.40,REDACTED PERSONAL DATA,509060,Social Community Care,CHILDCARE SERVICES            
SPECIAL GUARDIANSHIP          ,9270,RESIDENCE ORDERS              ,04/10/2013,3527210,215348 20131003 42700    ,536.20,REDACTED PERSONAL DATA,477472,Social Community Care,ADOPTION & FOSTERING          
ADOPTION ALLOWANCES           ,9270,ADOPTION ALLOWANCES           ,04/10/2013,3527211,215467 20131003 42700    ,710.80,REDACTED PERSONAL DATA,485770,Social Community Care,ADOPTION & FOSTERING          
RESIDENCE ORDERS              ,9270,RESIDENCE ORDERS              ,04/10/2013,3527214,114288 20131003 42700    ,254.60,REDACTED PERSONAL DATA,368110,Social Community Care,ADOPTION & FOSTERING          
IN HOUSE FOSTER PLACEMENT     ,9270,IN-HOUSE FOSTERING            ,04/10/2013,3527215,215827 20131003 42700    ,286.28,REDACTED PERSONAL DATA,505289,Social Community Care,ADOPTION & FOSTERING          
ADOPTION ALLOWANCES           ,9270,ADOPTION ALLOWANCES           ,04/10/2013,3527216,216508 20131003 42700    ,523.00,REDACTED PERSONAL DATA,332926,Social Community Care,ADOPTION & FOSTERING          
ADOPTION ALLOWANCES           ,9270,ADOPTION ALLOWANCES           ,04/10/2013,3527220,216870 20131003 42700    ,254.60,REDACTED PERSONAL DATA,333164,Social Community Care,ADOPTION & FOSTERING          
ADOPTION ALLOWANCES           ,9270,ADOPTION ALLOWANCES           ,04/10/2013,3527221,216934 20131003 42700    ,295.20,REDACTED PERSONAL DATA,333296,Social Community Care,ADOPTION & FOSTERING          
RESIDENCE ORDERS              ,9270,RESIDENCE ORDERS              ,04/10/2013,3527222,217370 20131003 42700    ,353.08,REDACTED PERSONAL DATA,537668,Social Community Care,ADOPTION & FOSTERING          
RESIDENCE ORDERS              ,9270,RESIDENCE ORDERS              ,04/10/2013,3527233,217912 20131003 42700    ,268.40,REDACTED PERSONAL DATA,333717,Social Community Care,ADOPTION & FOSTERING          
RESIDENCE ORDERS              ,9270,RESIDENCE ORDERS              ,04/10/2013,3527234,217936 20131003 42700    ,415.40,REDACTED PERSONAL DATA,368015,Social Community Care,ADOPTION & FOSTERING          
RESIDENCE ORDERS              ,9270,RESIDENCE ORDERS              ,04/10/2013,3527235,217937 20131003 42700    ,368.50,REDACTED PERSONAL DATA,395005,Social Community Care,ADOPTION & FOSTERING          
SPECIAL GUARDIANSHIP          ,9270,RESIDENCE ORDERS              ,04/10/2013,3527236,102670 20131003 42700    ,361.28,REDACTED PERSONAL DATA,333247,Social Community Care,ADOPTION & FOSTERING          
IN HOUSE FOSTER PLACEMENT     ,9270,IN-HOUSE FOSTERING            ,04/10/2013,3527237,11584 20131003 42700     ,1016.00,REDACTED PERSONAL DATA,338799,Social Community Care,ADOPTION & FOSTERING          
RESIDENCE ORDERS              ,9270,RESIDENCE ORDERS              ,04/10/2013,3527240,217943 20131003 42700    ,415.40,REDACTED PERSONAL DATA,472721,Social Community Care,ADOPTION & FOSTERING          
SPECIAL GUARDIANSHIP          ,9270,RESIDENCE ORDERS              ,04/10/2013,3527241,217957 20131003 42700    ,368.50,REDACTED PERSONAL DATA,450972,Social Community Care,ADOPTION & FOSTERING          
RESIDENCE ORDERS              ,9270,RESIDENCE ORDERS              ,04/10/2013,3527242,217965 20131003 42700    ,415.40,REDACTED PERSONAL DATA,417741,Social Community Care,ADOPTION & FOSTERING          
RESIDENCE ORDERS              ,9270,RESIDENCE ORDERS              ,04/10/2013,3527247,217984 20131003 42700    ,368.50,REDACTED PERSONAL DATA,466697,Social Community Care,ADOPTION & FOSTERING          
IN HOUSE FOSTER PLACEMENT     ,9270,IN-HOUSE FOSTERING            ,04/10/2013,3527249,218007 20131003 42700    ,806.53,REDACTED PERSONAL DATA,507465,Social Community Care,ADOPTION & FOSTERING          
RESIDENCE ORDERS              ,9270,RESIDENCE ORDERS              ,04/10/2013,3527251,218032 20131003 42700    ,469.20,REDACTED PERSONAL DATA,406111,Social Community Care,ADOPTION & FOSTERING          
RESIDENCE ORDERS              ,9270,RESIDENCE ORDERS              ,04/10/2013,3527253,218044 20131003 42700    ,254.60,REDACTED PERSONAL DATA,368091,Social Community Care,ADOPTION & FOSTERING          
RESIDENCE ORDERS              ,9270,RESIDENCE ORDERS              ,04/10/2013,3527254,218047 20131003 42700    ,335.40,REDACTED PERSONAL DATA,455957,Social Community Care,ADOPTION & FOSTERING          
RESIDENCE ORDERS              ,9270,RESIDENCE ORDERS              ,04/10/2013,3527256,218156 20131003 42700    ,254.60,REDACTED PERSONAL DATA,349185,Social Community Care,ADOPTION & FOSTERING          
IN HOUSE FOSTER PLACEMENT     ,9270,IN-HOUSE FOSTERING            ,04/10/2013,3527259,118120 20131003 42700    ,472.00,REDACTED PERSONAL DATA,333453,Social Community Care,ADOPTION & FOSTERING          
RESIDENCE ORDERS              ,9270,RESIDENCE ORDERS              ,04/10/2013,3527265,218270 20131003 42700    ,321.60,REDACTED PERSONAL DATA,431040,Social Community Care,ADOPTION & FOSTERING          
RESIDENCE ORDERS              ,9270,RESIDENCE ORDERS              ,04/10/2013,3527267,218299 20131003 42700    ,429.20,REDACTED PERSONAL DATA,425879,Social Community Care,ADOPTION & FOSTERING          
RESIDENCE ORDERS              ,9270,RESIDENCE ORDERS              ,04/10/2013,3527271,218882 20131003 42700    ,469.20,REDACTED PERSONAL DATA,559304,Social Community Care,HOME CARE SERVICES            
ADOPTION ALLOWANCES           ,9270,ADOPTION ALLOWANCES           ,04/10/2013,3527274,219407 20131003 42700    ,296.64,REDACTED PERSONAL DATA,483732,Social Community Care,ADOPTION & FOSTERING          
IN HOUSE FOSTER PLACEMENT     ,9270,IN-HOUSE FOSTERING            ,04/10/2013,3527278,220492 20131003 42700    ,408.00,REDACTED PERSONAL DATA,505305,Social Community Care,ADOPTION & FOSTERING          
ADOPTION ALLOWANCES           ,9270,ADOPTION ALLOWANCES           ,04/10/2013,3527279,221155 20131003 42700    ,415.40,REDACTED PERSONAL DATA,333786,Social Community Care,ADOPTION & FOSTERING          
ADOPTION ALLOWANCES           ,9270,ADOPTION ALLOWANCES           ,04/10/2013,3527281,119121 20131003 42700    ,415.40,REDACTED PERSONAL DATA,368042,Social Community Care,ADOPTION & FOSTERING          
ADOPTION ALLOWANCES           ,9270,ADOPTION ALLOWANCES           ,04/10/2013,3527283,221634 20131003 42700    ,298.26,REDACTED PERSONAL DATA,525512,Social Community Care,ADOPTION & FOSTERING          
RESIDENCE ORDERS              ,9270,RESIDENCE ORDERS              ,04/10/2013,3527288,223954 20131003 42700    ,415.40,REDACTED PERSONAL DATA,506535,Social Community Care,ADOPTION & FOSTERING          
SPECIAL GUARDIANSHIP          ,9270,RESIDENCE ORDERS              ,04/10/2013,3527289,224122 20131003 42700    ,312.06,REDACTED PERSONAL DATA,487228,Social Community Care,ADOPTION & FOSTERING          
IN HOUSE FOSTER PLACEMENT     ,9270,IN-HOUSE FOSTERING            ,04/10/2013,3527293,224702 20131003 42700    ,608.00,REDACTED PERSONAL DATA,545493,Unclassified Non Trade,OUT OF SCOPE FOR SIC MONITORIN
IN HOUSE FOSTER PLACEMENT     ,9270,IN-HOUSE FOSTERING            ,04/10/2013,3527294,224962 20131003 42700    ,1068.00,REDACTED PERSONAL DATA,505290,Social Community Care,ADOPTION & FOSTERING          
RESIDENCE ORDERS              ,9270,RESIDENCE ORDERS              ,04/10/2013,3527295,226140 20131003 42700    ,523.00,REDACTED PERSONAL DATA,507229,Social Community Care,CHILDCARE SERVICES            
SPECIAL GUARDIANSHIP          ,9270,RESIDENCE ORDERS              ,04/10/2013,3527296,226347 20131003 42700    ,250.00,REDACTED PERSONAL DATA,504346,Social Community Care,ADOPTION & FOSTERING          
IN HOUSE FOSTER PLACEMENT     ,9270,IN-HOUSE FOSTERING            ,04/10/2013,3527297,226624 20131003 42700    ,472.00,REDACTED PERSONAL DATA,511885,Social Community Care,ADOPTION & FOSTERING          
SPECIAL GUARDIANSHIP          ,9270,RESIDENCE ORDERS              ,04/10/2013,3527299,227720 20131003 42700    ,284.98,REDACTED PERSONAL DATA,490065,Social Community Care,ADOPTION & FOSTERING          
SPECIAL GUARDIANSHIP          ,9270,RESIDENCE ORDERS              ,04/10/2013,3527302,229718 20131003 42700    ,489.30,REDACTED PERSONAL DATA,489391,Social Community Care,ADOPTION & FOSTERING          
RESIDENCE ORDERS              ,9270,RESIDENCE ORDERS              ,04/10/2013,3527303,119821 20131003 42700    ,401.82,REDACTED PERSONAL DATA,371948,Social Community Care,ADOPTION & FOSTERING          
IN HOUSE FOSTER PLACEMENT     ,9270,IN-HOUSE FOSTERING            ,04/10/2013,3527304,23 20131003 42700        ,841.14,REDACTED PERSONAL DATA,333139,Social Community Care,ADOPTION & FOSTERING          
IN HOUSE FOSTER PLACEMENT     ,9270,IN-HOUSE FOSTERING            ,04/10/2013,3527308,232766 20131003 42700    ,608.00,REDACTED PERSONAL DATA,518348,Social Community Care,ADOPTION & FOSTERING          
ADOPTION SERVICE              ,9270,ADOPTION ALLOWANCES           ,04/10/2013,3527308,232766 20131003 42700    ,453.64,REDACTED PERSONAL DATA,518348,Social Community Care,ADOPTION & FOSTERING          
IN HOUSE FOSTER PLACEMENT     ,9270,IN-HOUSE FOSTERING            ,04/10/2013,3527309,233079 20131003 42700    ,1256.00,REDACTED PERSONAL DATA,520205,Social Community Care,ADOPTION & FOSTERING          
ADOPTION ALLOWANCES           ,9270,ADOPTION ALLOWANCES           ,04/10/2013,3527310,233644 20131003 42700    ,321.60,REDACTED PERSONAL DATA,534018,Social Community Care,ADOPTION & FOSTERING          
IN HOUSE FOSTER PLACEMENT     ,9270,IN-HOUSE FOSTERING            ,04/10/2013,3527311,233714 20131003 42700    ,644.00,REDACTED PERSONAL DATA,564806,Unclassified Non Trade,OUT OF SCOPE FOR SIC MONITORIN
IN HOUSE FOSTER PLACEMENT     ,9270,IN-HOUSE FOSTERING            ,04/10/2013,3527312,234568 20131003 42700    ,2130.25,REDACTED PERSONAL DATA,530876,Social Community Care,ADOPTION & FOSTERING          
ADOPTION ALLOWANCES           ,9270,ADOPTION ALLOWANCES           ,04/10/2013,3527315,238174 20131003 42700    ,321.60,REDACTED PERSONAL DATA,556456,Unclassified Non Trade,OUT OF SCOPE FOR SIC MONITORIN
ADOPTION ALLOWANCES           ,9270,ADOPTION ALLOWANCES           ,04/10/2013,3527316,23882 20131003 42700     ,368.50,REDACTED PERSONAL DATA,333142,Social Community Care,ADOPTION & FOSTERING          
IN HOUSE FOSTER PLACEMENT     ,9270,IN-HOUSE FOSTERING            ,04/10/2013,3527316,23882 20131003 42700     ,608.00,REDACTED PERSONAL DATA,333142,Social Community Care,ADOPTION & FOSTERING          
IN HOUSE FOSTER PLACEMENT     ,9270,IN-HOUSE FOSTERING            ,04/10/2013,3527321,24220 20131003 42700     ,1400.00,REDACTED PERSONAL DATA,333435,Social Community Care,ADOPTION & FOSTERING          
ADOPTION ALLOWANCES           ,9270,ADOPTION ALLOWANCES           ,04/10/2013,3527326,246767 20131003 42700    ,321.60,REDACTED PERSONAL DATA,506032,Social Community Care,ADOPTION & FOSTERING          
IN HOUSE FOSTER PLACEMENT     ,9270,IN-HOUSE FOSTERING            ,04/10/2013,3527327,248781 20131003 42700    ,654.13,REDACTED PERSONAL DATA,527968,Social Community Care,ADOPTION & FOSTERING          
SPECIAL GUARDIANSHIP          ,9270,RESIDENCE ORDERS              ,04/10/2013,3527329,249843 20131003 42700    ,382.30,REDACTED PERSONAL DATA,566432,Social Community Care,ADOPTION & FOSTERING          
IN HOUSE FOSTER PLACEMENT     ,9270,IN-HOUSE FOSTERING            ,04/10/2013,3527331,250606 20131003 42700    ,2395.43,REDACTED PERSONAL DATA,544195,Social Community Care,ADOPTION & FOSTERING          
RESIDENCE ORDERS              ,9270,RESIDENCE ORDERS              ,04/10/2013,3527332,251291 20131003 42700    ,610.32,REDACTED PERSONAL DATA,506065,Social Community Care,ADOPTION & FOSTERING          
IN HOUSE FOSTER PLACEMENT     ,9270,IN-HOUSE FOSTERING            ,04/10/2013,3527333,252805 20131003 42700    ,366.14,REDACTED PERSONAL DATA,547773,Social Community Care,ADOPTION & FOSTERING          
ADOPTION ALLOWANCES           ,9270,ADOPTION ALLOWANCES           ,04/10/2013,3527335,254717 20131003 42700    ,298.26,REDACTED PERSONAL DATA,549766,Social Community Care,ADOPTION & FOSTERING          
IN HOUSE FOSTER PLACEMENT     ,9270,IN-HOUSE FOSTERING            ,04/10/2013,3527336,121470 20131003 42700    ,1587.28,REDACTED PERSONAL DATA,453239,Social Community Care,ADOPTION & FOSTERING          
ADOPTION ALLOWANCES           ,9270,ADOPTION ALLOWANCES           ,04/10/2013,3527337,256631 20131003 42700    ,321.60,REDACTED PERSONAL DATA,510230,Social Community Care,ADOPTION & FOSTERING          
RESIDENCE ORDERS              ,9270,RESIDENCE ORDERS              ,04/10/2013,3527338,257849 20131003 42700    ,321.60,REDACTED PERSONAL DATA,580276,Unclassified Non Trade,OUT OF SCOPE FOR SIC MONITORIN
ADOPTION ALLOWANCES           ,9270,ADOPTION ALLOWANCES           ,04/10/2013,3527340,257969 20131003 42700    ,298.26,REDACTED PERSONAL DATA,577580,Unclassified Non Trade,OUT OF SCOPE FOR SIC MONITORIN
IN HOUSE FOSTER PLACEMENT     ,9270,IN-HOUSE FOSTERING            ,04/10/2013,3527342,26212 20131003 42700     ,2312.00,REDACTED PERSONAL DATA,333838,Social Community Care,ADOPTION & FOSTERING          
ADOPTION ALLOWANCES           ,9270,ADOPTION ALLOWANCES           ,04/10/2013,3527343,262762 20131003 42700    ,298.26,REDACTED PERSONAL DATA,543941,Social Community Care,ADOPTION & FOSTERING          
SPECIAL GUARDIANSHIP          ,9270,RESIDENCE ORDERS              ,04/10/2013,3527346,267388 20131003 42700    ,382.30,REDACTED PERSONAL DATA,526295,Social Community Care,ADOPTION & FOSTERING          
ADOPTION ALLOWANCES           ,9270,ADOPTION ALLOWANCES           ,04/10/2013,3527348,121610 20131003 42700    ,295.20,REDACTED PERSONAL DATA,333116,Social Community Care,ADOPTION & FOSTERING          
IN HOUSE FOSTER PLACEMENT     ,9270,IN-HOUSE FOSTERING            ,04/10/2013,3527350,26806 20131003 42700     ,264.00,REDACTED PERSONAL DATA,582424,Social Community Care,ADOPTION & FOSTERING          
IN HOUSE FOSTER PLACEMENT     ,9270,IN-HOUSE FOSTERING            ,04/10/2013,3527351,269569 20131003 42700    ,550.71,REDACTED PERSONAL DATA,537089,Social Community Care,ADOPTION & FOSTERING          
IN HOUSE FOSTER PLACEMENT     ,9270,IN-HOUSE FOSTERING            ,04/10/2013,3527352,27047 20131003 42700     ,608.00,REDACTED PERSONAL DATA,338866,Social Community Care,ADOPTION & FOSTERING          
IN HOUSE FOSTER PLACEMENT     ,9270,IN-HOUSE FOSTERING            ,04/10/2013,3527353,271426 20131003 42700    ,608.00,REDACTED PERSONAL DATA,527967,Social Community Care,ADOPTION & FOSTERING          
IN HOUSE FOSTER PLACEMENT     ,9270,IN-HOUSE FOSTERING            ,04/10/2013,3527354,272643 20131003 42700    ,452.48,REDACTED PERSONAL DATA,574519,Unclassified Non Trade,OUT OF SCOPE FOR SIC MONITORIN
RESIDENCE ORDERS              ,9270,RESIDENCE ORDERS              ,04/10/2013,3527355,273533 20131003 42700    ,469.20,REDACTED PERSONAL DATA,512546,Social Community Care,ADOPTION & FOSTERING          
SPECIAL GUARDIANSHIP          ,9270,RESIDENCE ORDERS              ,04/10/2013,3527356,274362 20131003 42700    ,321.60,REDACTED PERSONAL DATA,539000,Social Community Care,ADOPTION & FOSTERING          
ADOPTION ALLOWANCES           ,9270,ADOPTION ALLOWANCES           ,04/10/2013,3527362,279838 20131003 42700    ,298.26,REDACTED PERSONAL DATA,549009,Social Community Care,ADOPTION & FOSTERING          
IN HOUSE FOSTER PLACEMENT     ,9270,IN-HOUSE FOSTERING            ,04/10/2013,3527363,279870 20131003 42700    ,408.00,REDACTED PERSONAL DATA,586460,Unclassified Non Trade,OUT OF SCOPE FOR SIC MONITORIN
IN HOUSE FOSTER PLACEMENT     ,9270,IN-HOUSE FOSTERING            ,04/10/2013,3527365,280289 20131003 42700    ,434.00,REDACTED PERSONAL DATA,565988,Unclassified Non Trade,OUT OF SCOPE FOR SIC MONITORIN
IN HOUSE FOSTER PLACEMENT     ,9270,IN-HOUSE FOSTERING            ,04/10/2013,3527366,280294 20131003 42700    ,634.00,REDACTED PERSONAL DATA,534615,Social Community Care,ADOPTION & FOSTERING          
ADOPTION ALLOWANCES           ,9270,ADOPTION ALLOWANCES           ,04/10/2013,3527367,280499 20131003 42700    ,298.26,REDACTED PERSONAL DATA,540124,Unclassified Non Trade,OUT OF SCOPE FOR SIC MONITORIN
SPECIAL GUARDIANSHIP          ,9270,RESIDENCE ORDERS              ,04/10/2013,3527369,284355 20131003 42700    ,2575.68,REDACTED PERSONAL DATA,515224,Social Community Care,ADOPTION & FOSTERING          
ADOPTION ALLOWANCES           ,9270,ADOPTION ALLOWANCES           ,04/10/2013,3527371,284855 20131003 42700    ,321.60,REDACTED PERSONAL DATA,519590,Social Community Care,ADOPTION & FOSTERING          
SPECIAL GUARDIANSHIP          ,9270,RESIDENCE ORDERS              ,04/10/2013,3527372,286117 20131003 42700    ,368.50,REDACTED PERSONAL DATA,571619,Unclassified Non Trade,OUT OF SCOPE FOR SIC MONITORIN
SPECIAL GUARDIANSHIP          ,9270,RESIDENCE ORDERS              ,04/10/2013,3527373,286786 20131003 42700    ,335.10,REDACTED PERSONAL DATA,518761,Social Community Care,ADOPTION & FOSTERING          
RESIDENCE ORDERS              ,9270,RESIDENCE ORDERS              ,04/10/2013,3527374,28798 20131003 42700     ,321.60,REDACTED PERSONAL DATA,456399,Social Community Care,ADOPTION & FOSTERING          
SPECIAL GUARDIANSHIP          ,9270,RESIDENCE ORDERS              ,04/10/2013,3527375,289356 20131003 42700    ,382.30,REDACTED PERSONAL DATA,529812,Social Community Care,ADOPTION & FOSTERING          
SPECIAL GUARDIANSHIP          ,9270,RESIDENCE ORDERS              ,04/10/2013,3527377,294439 20131003 42700    ,415.40,REDACTED PERSONAL DATA,567626,Unclassified Non Trade,OUT OF SCOPE FOR SIC MONITORIN
SPECIAL GUARDIANSHIP          ,9270,RESIDENCE ORDERS              ,04/10/2013,3527378,29473 20131003 42700     ,970.10,REDACTED PERSONAL DATA,557434,Unclassified Non Trade,OUT OF SCOPE FOR SIC MONITORIN
ADOPTION ALLOWANCES           ,9270,ADOPTION ALLOWANCES           ,04/10/2013,3527379,294818 20131003 42700    ,314.94,REDACTED PERSONAL DATA,522818,Social Community Care,ADOPTION & FOSTERING          
IN HOUSE FOSTER PLACEMENT     ,9270,IN-HOUSE FOSTERING            ,04/10/2013,3527380,294952 20131003 42700    ,1106.00,REDACTED PERSONAL DATA,541183,Social Community Care,ADOPTION & FOSTERING          
SPECIAL GUARDIANSHIP          ,9270,RESIDENCE ORDERS              ,04/10/2013,3527381,122743 20131003 42700    ,2094.20,REDACTED PERSONAL DATA,502731,Social Community Care,ADOPTION & FOSTERING          
IN HOUSE FOSTER PLACEMENT     ,9270,IN-HOUSE FOSTERING            ,04/10/2013,3527383,295330 20131003 42700    ,608.00,REDACTED PERSONAL DATA,539221,Social Community Care,ADOPTION & FOSTERING          
ADOPTION SERVICE              ,9270,ADOPTION ALLOWANCES           ,04/10/2013,3527383,295330 20131003 42700    ,459.64,REDACTED PERSONAL DATA,539221,Social Community Care,ADOPTION & FOSTERING          
IN HOUSE FOSTER PLACEMENT     ,9270,IN-HOUSE FOSTERING            ,04/10/2013,3527384,295830 20131003 42700    ,792.00,REDACTED PERSONAL DATA,539977,Social Community Care,ADOPTION & FOSTERING          
IN HOUSE FOSTER PLACEMENT     ,9270,IN-HOUSE FOSTERING            ,04/10/2013,3527386,296922 20131003 42700    ,634.00,REDACTED PERSONAL DATA,537564,Social Community Care,ADOPTION & FOSTERING          
IN HOUSE FOSTER PLACEMENT     ,9270,IN-HOUSE FOSTERING            ,04/10/2013,3527387,297028 20131003 42700    ,608.00,REDACTED PERSONAL DATA,543572,Social Community Care,ADOPTION & FOSTERING          
IN HOUSE FOSTER PLACEMENT     ,9270,IN-HOUSE FOSTERING            ,04/10/2013,3527388,297215 20131003 42700    ,634.00,REDACTED PERSONAL DATA,539395,Social Community Care,HOME CARE SERVICES            
SPECIAL GUARDIANSHIP          ,9270,RESIDENCE ORDERS              ,04/10/2013,3527389,298645 20131003 42700    ,321.60,REDACTED PERSONAL DATA,538802,Social Community Care,ADOPTION & FOSTERING          
IN HOUSE FOSTER PLACEMENT     ,9270,IN-HOUSE FOSTERING            ,04/10/2013,3527390,299457 20131003 42700    ,408.00,REDACTED PERSONAL DATA,573239,Social Community Care,ADOPTION & FOSTERING          
IN HOUSE FOSTER PLACEMENT     ,9270,IN-HOUSE FOSTERING            ,04/10/2013,3527392,300505 20131003 42700    ,864.00,REDACTED PERSONAL DATA,542947,Social Community Care,ADOPTION & FOSTERING          
SPECIAL GUARDIANSHIP          ,9270,RESIDENCE ORDERS              ,04/10/2013,3527394,300699 20131003 42700    ,321.60,REDACTED PERSONAL DATA,527195,Social Community Care,ADOPTION & FOSTERING          
IN HOUSE FOSTER PLACEMENT     ,9270,IN-HOUSE FOSTERING            ,04/10/2013,3527397,300994 20131003 42700    ,434.00,REDACTED PERSONAL DATA,538414,Unclassified Non Trade,OUT OF SCOPE FOR SIC MONITORIN
RESIDENCE ORDERS              ,9270,RESIDENCE ORDERS              ,04/10/2013,3527399,301894 20131003 42700    ,636.90,REDACTED PERSONAL DATA,532329,Social Community Care,HOME CARE SERVICES            
IN HOUSE FOSTER PLACEMENT     ,9270,IN-HOUSE FOSTERING            ,04/10/2013,3527400,305267 20131003 42700    ,1006.00,REDACTED PERSONAL DATA,586142,Unclassified Non Trade,OUT OF SCOPE FOR SIC MONITORIN
RESIDENCE ORDERS              ,9270,RESIDENCE ORDERS              ,04/10/2013,3527402,306248 20131003 42700    ,429.20,REDACTED PERSONAL DATA,559051,Social Community Care,ADOPTION & FOSTERING          
IN HOUSE FOSTER PLACEMENT     ,9270,IN-HOUSE FOSTERING            ,04/10/2013,3527404,123178 20131003 42700    ,2610.00,REDACTED PERSONAL DATA,368216,Social Community Care,ADOPTION & FOSTERING          
SPECIAL GUARDIANSHIP          ,9270,RESIDENCE ORDERS              ,04/10/2013,3527408,314218 20131003 42700    ,274.92,REDACTED PERSONAL DATA,556873,Social Community Care,ADOPTION & FOSTERING          
RESIDENCE ORDERS              ,9270,RESIDENCE ORDERS              ,04/10/2013,3527410,315061 20131003 42700    ,335.40,REDACTED PERSONAL DATA,553535,Social Community Care,ADOPTION & FOSTERING          
ADOPTION ALLOWANCES           ,9270,ADOPTION ALLOWANCES           ,04/10/2013,3527412,316551 20131003 42700    ,274.92,REDACTED PERSONAL DATA,562761,Social Community Care,ADOPTION & FOSTERING          
IN HOUSE FOSTER PLACEMENT     ,9270,IN-HOUSE FOSTERING            ,04/10/2013,3527413,316839 20131003 42700    ,1042.00,REDACTED PERSONAL DATA,547793,Social Community Care,ADOPTION & FOSTERING          
RESIDENCE ORDERS              ,9270,RESIDENCE ORDERS              ,04/10/2013,3527415,124262 20131003 42700    ,321.60,REDACTED PERSONAL DATA,554211,Social Community Care,ADOPTION & FOSTERING          
SPECIAL GUARDIANSHIP          ,9270,RESIDENCE ORDERS              ,04/10/2013,3527416,319021 20131003 42700    ,593.61,REDACTED PERSONAL DATA,587954,Unclassified Non Trade,OUT OF SCOPE FOR SIC MONITORIN
IN HOUSE FOSTER PLACEMENT     ,9270,IN-HOUSE FOSTERING            ,04/10/2013,3527417,319658 20131003 42700    ,1546.28,REDACTED PERSONAL DATA,547113,Social Community Care,ADOPTION & FOSTERING          
IN HOUSE FOSTER PLACEMENT     ,9270,IN-HOUSE FOSTERING            ,04/10/2013,3527418,31985 20131003 42700     ,714.00,REDACTED PERSONAL DATA,379040,Social Community Care,ADOPTION & FOSTERING          
IN HOUSE FOSTER PLACEMENT     ,9270,IN-HOUSE FOSTERING            ,04/10/2013,3527420,325419 20131003 42700    ,472.00,REDACTED PERSONAL DATA,549674,Unclassified Non Trade,OUT OF SCOPE FOR SIC MONITORIN
SPECIAL GUARDIANSHIP          ,9270,RESIDENCE ORDERS              ,04/10/2013,3527421,327512 20131003 42700    ,335.40,REDACTED PERSONAL DATA,537882,Social Community Care,ADOPTION & FOSTERING          
IN HOUSE FOSTER PLACEMENT     ,9270,IN-HOUSE FOSTERING            ,04/10/2013,3527423,329424 20131003 42700    ,1380.00,REDACTED PERSONAL DATA,549814,Social Community Care,ADOPTION & FOSTERING          
SPECIAL GUARDIANSHIP          ,9270,RESIDENCE ORDERS              ,04/10/2013,3527425,332414 20131003 42700    ,465.96,REDACTED PERSONAL DATA,547157,Unclassified Non Trade,OUT OF SCOPE FOR SIC MONITORIN
IN HOUSE FOSTER PLACEMENT     ,9270,IN-HOUSE FOSTERING            ,04/10/2013,3527426,125668 20131003 42700    ,608.00,REDACTED PERSONAL DATA,545888,Social Community Care,ADOPTION & FOSTERING          
IN HOUSE FOSTER PLACEMENT     ,9270,IN-HOUSE FOSTERING            ,04/10/2013,3527427,332665 20131003 42700    ,1016.00,REDACTED PERSONAL DATA,556392,Social Community Care,ADOPTION & FOSTERING          
RESIDENCE ORDERS              ,9270,RESIDENCE ORDERS              ,04/10/2013,3527429,334411 20131003 42700    ,382.30,REDACTED PERSONAL DATA,551220,Social Community Care,ADOPTION & FOSTERING          
SECURE PLACEMENTS             ,9270,IN-HOUSE FOSTERING            ,04/10/2013,3527430,334536 20131003 42700    ,250.00,REDACTED PERSONAL DATA,583398,Social Community Care,ADOPTION & FOSTERING          
IN HOUSE FOSTER PLACEMENT     ,9270,IN-HOUSE FOSTERING            ,04/10/2013,3527431,334785 20131003 42700    ,786.00,REDACTED PERSONAL DATA,549575,Social Community Care,ADOPTION & FOSTERING          
IN HOUSE FOSTER PLACEMENT     ,9270,IN-HOUSE FOSTERING            ,04/10/2013,3527433,3369 20131003 42700      ,870.00,REDACTED PERSONAL DATA,332891,Social Community Care,ADOPTION & FOSTERING          
RESIDENCE ORDERS              ,9270,RESIDENCE ORDERS              ,04/10/2013,3527435,3403 20131003 42700      ,429.20,REDACTED PERSONAL DATA,333131,Social Community Care,ADOPTION & FOSTERING          
ADOPTION ALLOWANCES           ,9270,ADOPTION ALLOWANCES           ,04/10/2013,3527436,340620 20131003 42700    ,419.28,REDACTED PERSONAL DATA,547584,Unclassified Non Trade,OUT OF SCOPE FOR SIC MONITORIN
ADOPTION ALLOWANCES           ,9270,ADOPTION ALLOWANCES           ,04/10/2013,3527440,341579 20131003 42700    ,298.26,REDACTED PERSONAL DATA,568462,Social Community Care,ADOPTION & FOSTERING          
IN HOUSE FOSTER PLACEMENT     ,9270,IN-HOUSE FOSTERING            ,04/10/2013,3527444,345871 20131003 42700    ,608.00,REDACTED PERSONAL DATA,558413,Social Community Care,ADOPTION & FOSTERING          
SPECIAL GUARDIANSHIP          ,9270,RESIDENCE ORDERS              ,04/10/2013,3527446,346408 20131003 42700    ,321.60,REDACTED PERSONAL DATA,547388,Social Community Care,CAREFIRST DIRECT PAYMENTS     
IN HOUSE FOSTER PLACEMENT     ,9270,IN-HOUSE FOSTERING            ,04/10/2013,3527449,347962 20131003 42700    ,608.00,REDACTED PERSONAL DATA,481084,Unclassified Non Trade,OUT OF SCOPE FOR SIC MONITORIN
IN HOUSE FOSTER PLACEMENT     ,9270,IN-HOUSE FOSTERING            ,04/10/2013,3527450,348102 20131003 42700    ,1176.52,REDACTED PERSONAL DATA,565231,Unclassified Non Trade,OUT OF SCOPE FOR SIC MONITORIN
IN HOUSE FOSTER PLACEMENT     ,9270,IN-HOUSE FOSTERING            ,04/10/2013,3527451,350380 20131003 42700    ,408.00,REDACTED PERSONAL DATA,566213,Social Community Care,DO NOT USE* ADOPT & FOSTERING 
SPECIAL GUARDIANSHIP          ,9270,RESIDENCE ORDERS              ,04/10/2013,3527456,351763 20131003 42700    ,408.60,REDACTED PERSONAL DATA,549781,Social Community Care,ADOPTION & FOSTERING          
IN HOUSE FOSTER PLACEMENT     ,9270,IN-HOUSE FOSTERING            ,04/10/2013,3527457,352400 20131003 42700    ,1042.00,REDACTED PERSONAL DATA,555126,Social Community Care,ADOPTION & FOSTERING          
IN HOUSE FOSTER PLACEMENT     ,9270,IN-HOUSE FOSTERING            ,04/10/2013,3527458,352681 20131003 42700    ,590.00,REDACTED PERSONAL DATA,565043,Unclassified Non Trade,OUT OF SCOPE FOR SIC MONITORIN
IN HOUSE FOSTER PLACEMENT     ,9270,IN-HOUSE FOSTERING            ,04/10/2013,3527460,126452 20131003 42700    ,512.86,REDACTED PERSONAL DATA,471822,Social Community Care,ADOPTION & FOSTERING          
IN HOUSE FOSTER PLACEMENT     ,9270,IN-HOUSE FOSTERING            ,04/10/2013,3527461,353554 20131003 42700    ,876.00,REDACTED PERSONAL DATA,576661,Social Community Care,ADOPTION & FOSTERING          
IN HOUSE FOSTER PLACEMENT     ,9270,IN-HOUSE FOSTERING            ,04/10/2013,3527462,35508 20131003 42700     ,777.00,REDACTED PERSONAL DATA,562193,Social Community Care,ADOPTION & FOSTERING          
RESIDENCE ORDERS              ,9270,RESIDENCE ORDERS              ,04/10/2013,3527463,355552 20131003 42700    ,288.72,REDACTED PERSONAL DATA,557105,Social Community Care,ADOPTION & FOSTERING          
ADOPTION ALLOWANCES           ,9270,ADOPTION ALLOWANCES           ,04/10/2013,3527465,357667 20131003 42700    ,251.16,REDACTED PERSONAL DATA,583746,Unclassified Non Trade,OUT OF SCOPE FOR SIC MONITORIN
IN HOUSE FOSTER PLACEMENT     ,9270,IN-HOUSE FOSTERING            ,04/10/2013,3527466,358043 20131003 42700    ,408.00,REDACTED PERSONAL DATA,562188,Social Community Care,ADOPTION & FOSTERING          
IN HOUSE FOSTER PLACEMENT     ,9270,IN-HOUSE FOSTERING            ,04/10/2013,3527468,359560 20131003 42700    ,434.00,REDACTED PERSONAL DATA,573934,Social Community Care,ADOPTION & FOSTERING          
IN HOUSE FOSTER PLACEMENT     ,9270,IN-HOUSE FOSTERING            ,04/10/2013,3527470,361196 20131003 42700    ,523.10,REDACTED PERSONAL DATA,565114,Social Community Care,ADOPTION & FOSTERING          
RESIDENCE ORDERS              ,9270,RESIDENCE ORDERS              ,04/10/2013,3527471,127040 20131003 42700    ,415.40,REDACTED PERSONAL DATA,395096,Social Community Care,ADOPTION & FOSTERING          
IN HOUSE FOSTER PLACEMENT     ,9270,IN-HOUSE FOSTERING            ,04/10/2013,3527473,362387 20131003 42700    ,914.00,REDACTED PERSONAL DATA,565738,Unclassified Non Trade,OUT OF SCOPE FOR SIC MONITORIN
RESIDENCE ORDERS              ,9270,RESIDENCE ORDERS              ,04/10/2013,3527474,3633 20131003 42700      ,415.40,REDACTED PERSONAL DATA,528934,Social Community Care,ADOPTION & FOSTERING          
IN HOUSE FOSTER PLACEMENT     ,9270,IN-HOUSE FOSTERING            ,04/10/2013,3527475,36362 20131003 42700     ,588.29,REDACTED PERSONAL DATA,338824,Social Community Care,ADOPTION & FOSTERING          
RESIDENCE ORDERS              ,9270,RESIDENCE ORDERS              ,04/10/2013,3527478,37166 20131003 42700     ,254.60,REDACTED PERSONAL DATA,544764,Unclassified Non Trade,OUT OF SCOPE FOR SIC MONITORIN
IN HOUSE FOSTER PLACEMENT     ,9270,IN-HOUSE FOSTERING            ,04/10/2013,3527479,37330 20131003 42700     ,472.00,REDACTED PERSONAL DATA,553309,Social Community Care,ADOPTION & FOSTERING          
ADOPTION ALLOWANCES           ,9270,ADOPTION ALLOWANCES           ,04/10/2013,3527484,379003 20131003 42700    ,312.06,REDACTED PERSONAL DATA,555214,Social Community Care,ADOPTION & FOSTERING          
RESIDENCE ORDERS              ,9270,RESIDENCE ORDERS              ,04/10/2013,3527485,380080 20131003 42700    ,610.32,REDACTED PERSONAL DATA,577485,Social Community Care,ADOPTION & FOSTERING          
IN HOUSE FOSTER PLACEMENT     ,9270,IN-HOUSE FOSTERING            ,04/10/2013,3527488,38284 20131003 42700     ,577.72,REDACTED PERSONAL DATA,437897,Social Community Care,ADOPTION & FOSTERING          
IN HOUSE FOSTER PLACEMENT     ,9270,IN-HOUSE FOSTERING            ,04/10/2013,3527490,387087 20131003 42700    ,472.00,REDACTED PERSONAL DATA,562889,Unclassified Non Trade,OUT OF SCOPE FOR SIC MONITORIN
IN HOUSE FOSTER PLACEMENT     ,9270,IN-HOUSE FOSTERING            ,04/10/2013,3527491,387343 20131003 42700    ,408.00,REDACTED PERSONAL DATA,565260,Unclassified Non Trade,OUT OF SCOPE FOR SIC MONITORIN
IN HOUSE FOSTER PLACEMENT     ,9270,IN-HOUSE FOSTERING            ,04/10/2013,3527492,388616 20131003 42700    ,408.00,REDACTED PERSONAL DATA,566168,Social Community Care,ADOPTION & FOSTERING          
IN HOUSE FOSTER PLACEMENT     ,9270,IN-HOUSE FOSTERING            ,04/10/2013,3527493,12742 20131003 42700     ,520.00,REDACTED PERSONAL DATA,333561,Social Community Care,ADOPTION & FOSTERING          
ADOPTION ALLOWANCES           ,9270,ADOPTION ALLOWANCES           ,04/10/2013,3527495,38953 20131003 42700     ,469.20,REDACTED PERSONAL DATA,332995,Social Community Care,ADOPTION & FOSTERING          
IN HOUSE FOSTER PLACEMENT     ,9270,IN-HOUSE FOSTERING            ,04/10/2013,3527496,394220 20131003 42700    ,384.00,REDACTED PERSONAL DATA,566818,Social Community Care,ADOPTION & FOSTERING          
IN HOUSE FOSTER PLACEMENT     ,9270,IN-HOUSE FOSTERING            ,04/10/2013,3527499,39742 20131003 42700     ,720.00,REDACTED PERSONAL DATA,333115,Social Community Care,ADOPTION & FOSTERING          
RESIDENCE ORDERS              ,9270,RESIDENCE ORDERS              ,04/10/2013,3527501,400140 20131003 42700    ,321.60,REDACTED PERSONAL DATA,566433,Social Community Care,ADOPTION & FOSTERING          
SPECIAL GUARDIANSHIP          ,9270,RESIDENCE ORDERS              ,04/10/2013,3527502,401401 20131003 42700    ,360.24,REDACTED PERSONAL DATA,584574,Unclassified Non Trade,OUT OF SCOPE FOR SIC MONITORIN
IN HOUSE FOSTER PLACEMENT     ,9270,IN-HOUSE FOSTERING            ,04/10/2013,3527504,127476 20131003 42700    ,1224.00,REDACTED PERSONAL DATA,394621,Social Community Care,ADOPTION & FOSTERING          
ADOPTION ALLOWANCES           ,9270,ADOPTION ALLOWANCES           ,04/10/2013,3527505,40645 20131003 42700     ,368.50,REDACTED PERSONAL DATA,371954,Social Community Care,ADOPTION & FOSTERING          
SPECIAL GUARDIANSHIP          ,9270,RESIDENCE ORDERS              ,04/10/2013,3527506,407128 20131003 42700    ,298.26,REDACTED PERSONAL DATA,558349,Social Community Care,ADOPTION & FOSTERING          
SPECIAL GUARDIANSHIP          ,9270,RESIDENCE ORDERS              ,04/10/2013,3527508,409960 20131003 42700    ,465.96,REDACTED PERSONAL DATA,563376,Social Community Care,CHILDMINDERS                  
IN HOUSE FOSTER PLACEMENT     ,9270,IN-HOUSE FOSTERING            ,04/10/2013,3527512,427475 20131003 42700    ,838.00,REDACTED PERSONAL DATA,569417,Unclassified Non Trade,OUT OF SCOPE FOR SIC MONITORIN
RESIDENCE ORDERS              ,9270,RESIDENCE ORDERS              ,04/10/2013,3527513,42902 20131003 42700     ,646.90,REDACTED PERSONAL DATA,421999,Social Community Care,ADOPTION & FOSTERING          
IN HOUSE FOSTER PLACEMENT     ,9270,IN-HOUSE FOSTERING            ,04/10/2013,3527515,128440 20131003 42700    ,520.86,REDACTED PERSONAL DATA,545489,Social Community Care,ADOPTION & FOSTERING          
RESIDENCE ORDERS              ,9270,RESIDENCE ORDERS              ,04/10/2013,3527517,433792 20131003 42700    ,368.50,REDACTED PERSONAL DATA,585496,Social Community Care,ADOPTION & FOSTERING          
IN HOUSE FOSTER PLACEMENT     ,9270,IN-HOUSE FOSTERING            ,04/10/2013,3527518,4340 20131003 42700      ,1086.80,REDACTED PERSONAL DATA,338749,Social Community Care,ADOPTION & FOSTERING          
IN HOUSE FOSTER PLACEMENT     ,9270,IN-HOUSE FOSTERING            ,04/10/2013,3527519,434620 20131003 42700    ,826.00,REDACTED PERSONAL DATA,582979,Unclassified Non Trade,OUT OF SCOPE FOR SIC MONITORIN
SPECIAL GUARDIANSHIP          ,9270,RESIDENCE ORDERS              ,04/10/2013,3527520,436393 20131003 42700    ,536.20,REDACTED PERSONAL DATA,563363,Social Community Care,ADOPTION & FOSTERING          
RESIDENCE ORDERS              ,9270,RESIDENCE ORDERS              ,04/10/2013,3527522,437427 20131003 42700    ,559.76,REDACTED PERSONAL DATA,572826,Social Community Care,ADOPTION & FOSTERING          
IN HOUSE FOSTER PLACEMENT     ,9270,IN-HOUSE FOSTERING            ,04/10/2013,3527524,44274 20131003 42700     ,472.00,REDACTED PERSONAL DATA,394348,Social Community Care,ADOPTION & FOSTERING          
SPECIAL GUARDIANSHIP          ,9270,RESIDENCE ORDERS              ,04/10/2013,3527525,443087 20131003 42700    ,268.58,REDACTED PERSONAL DATA,584260,Unclassified Non Trade,OUT OF SCOPE FOR SIC MONITORIN
RESIDENCE ORDERS              ,9270,RESIDENCE ORDERS              ,04/10/2013,3527528,44562 20131003 42700     ,268.40,REDACTED PERSONAL DATA,451348,Social Community Care,ADOPTION & FOSTERING          
IN HOUSE FOSTER PLACEMENT     ,9270,IN-HOUSE FOSTERING            ,04/10/2013,3527529,446407 20131003 42700    ,408.00,REDACTED PERSONAL DATA,571373,Social Community Care,ADOPTION & FOSTERING          
IN HOUSE FOSTER PLACEMENT     ,9270,IN-HOUSE FOSTERING            ,04/10/2013,3527530,450550 20131003 42700    ,434.00,REDACTED PERSONAL DATA,576268,Social Community Care,ADOPTION & FOSTERING          
SPECIAL GUARDIANSHIP          ,9270,RESIDENCE ORDERS              ,04/10/2013,3527533,454875 20131003 42700    ,513.48,REDACTED PERSONAL DATA,567381,Unclassified Non Trade,OUT OF SCOPE FOR SIC MONITORIN
SECURE PLACEMENTS             ,9270,IN-HOUSE FOSTERING            ,04/10/2013,3527534,455027 20131003 42700    ,250.00,REDACTED PERSONAL DATA,574529,Social Community Care,ADOPTION & FOSTERING          
IN HOUSE FOSTER PLACEMENT     ,9270,IN-HOUSE FOSTERING            ,04/10/2013,3527535,455183 20131003 42700    ,408.00,REDACTED PERSONAL DATA,571978,Unclassified Non Trade,OUT OF SCOPE FOR SIC MONITORIN
IN HOUSE FOSTER PLACEMENT     ,9270,IN-HOUSE FOSTERING            ,04/10/2013,3527536,456709 20131003 42700    ,689.44,REDACTED PERSONAL DATA,576070,Unclassified Non Trade,OUT OF SCOPE FOR SIC MONITORIN
SPECIAL GUARDIANSHIP          ,9270,RESIDENCE ORDERS              ,04/10/2013,3527540,459275 20131003 42700    ,368.50,REDACTED PERSONAL DATA,566036,Unclassified Non Trade,OUT OF SCOPE FOR SIC MONITORIN
IN HOUSE FOSTER PLACEMENT     ,9270,IN-HOUSE FOSTERING            ,04/10/2013,3527541,459409 20131003 42700    ,434.00,REDACTED PERSONAL DATA,576176,Unclassified Non Trade,OUT OF SCOPE FOR SIC MONITORIN
IN HOUSE FOSTER PLACEMENT     ,9270,IN-HOUSE FOSTERING            ,04/10/2013,3527542,460252 20131003 42700    ,786.00,REDACTED PERSONAL DATA,576214,Social Community Care,ADOPTION & FOSTERING          
SPECIAL GUARDIANSHIP          ,9270,RESIDENCE ORDERS              ,04/10/2013,3527543,464651 20131003 42700    ,298.26,REDACTED PERSONAL DATA,571109,Unclassified Non Trade,OUT OF SCOPE FOR SIC MONITORIN
IN HOUSE FOSTER PLACEMENT     ,9270,IN-HOUSE FOSTERING            ,04/10/2013,3527544,467367 20131003 42700    ,408.00,REDACTED PERSONAL DATA,579723,Social Community Care,ADOPTION & FOSTERING          
IN HOUSE FOSTER PLACEMENT     ,9270,IN-HOUSE FOSTERING            ,04/10/2013,3527546,471074 20131003 42700    ,1318.00,REDACTED PERSONAL DATA,580302,Unclassified Non Trade,OUT OF SCOPE FOR SIC MONITORIN
IN HOUSE FOSTER PLACEMENT     ,9270,IN-HOUSE FOSTERING            ,04/10/2013,3527550,476648 20131003 42700    ,838.00,REDACTED PERSONAL DATA,576280,Unclassified Non Trade,OUT OF SCOPE FOR SIC MONITORIN
ADOPTION ALLOWANCES           ,9270,ADOPTION ALLOWANCES           ,04/10/2013,3527551,48065 20131003 42700     ,382.30,REDACTED PERSONAL DATA,395681,Social Community Care,ADOPTION & FOSTERING          
SPECIAL GUARDIANSHIP          ,9270,RESIDENCE ORDERS              ,04/10/2013,3527555,493927 20131003 42700    ,298.26,REDACTED PERSONAL DATA,576673,Unclassified Non Trade,OUT OF SCOPE FOR SIC MONITORIN
ADOPTION ALLOWANCES           ,9270,ADOPTION ALLOWANCES           ,04/10/2013,3527556,4942 20131003 42700      ,382.30,REDACTED PERSONAL DATA,333366,Social Community Care,ADOPTION & FOSTERING          
IN HOUSE FOSTER PLACEMENT     ,9270,IN-HOUSE FOSTERING            ,04/10/2013,3527557,496947 20131003 42700    ,408.00,REDACTED PERSONAL DATA,576269,Social Community Care,ADOPTION & FOSTERING          
ADOPTION ALLOWANCES           ,9270,ADOPTION ALLOWANCES           ,04/10/2013,3527559,13072 20131003 42700     ,446.15,REDACTED PERSONAL DATA,338873,Social Community Care,ADOPTION & FOSTERING          
IN HOUSE FOSTER PLACEMENT     ,9270,IN-HOUSE FOSTERING            ,04/10/2013,3527563,499747 20131003 42700    ,876.00,REDACTED PERSONAL DATA,581595,Social Community Care,ADOPTION & FOSTERING          
RESIDENCE ORDERS              ,9270,RESIDENCE ORDERS              ,04/10/2013,3527564,49985 20131003 42700     ,321.60,REDACTED PERSONAL DATA,542605,Social Community Care,ADOPTION & FOSTERING          
ADOPTION ALLOWANCES           ,9270,ADOPTION ALLOWANCES           ,04/10/2013,3527565,50094 20131003 42700     ,435.90,REDACTED PERSONAL DATA,458647,Social Community Care,ADOPTION & FOSTERING          
IN HOUSE FOSTER PLACEMENT     ,9270,IN-HOUSE FOSTERING            ,04/10/2013,3527567,508138 20131003 42700    ,336.75,REDACTED PERSONAL DATA,582417,Social Community Care,ADOPTION & FOSTERING          
SPECIAL GUARDIANSHIP          ,9270,RESIDENCE ORDERS              ,04/10/2013,3527568,511208 20131003 42700    ,298.26,REDACTED PERSONAL DATA,572170,Unclassified Non Trade,OUT OF SCOPE FOR SIC MONITORIN
ADOPTION ALLOWANCES           ,9270,ADOPTION ALLOWANCES           ,04/10/2013,3527569,511587 20131003 42700    ,1264.25,REDACTED PERSONAL DATA,573445,Social Community Care,ADOPTION & FOSTERING          
SPECIAL GUARDIANSHIP          ,9270,RESIDENCE ORDERS              ,04/10/2013,3527573,514147 20131003 42700    ,288.72,REDACTED PERSONAL DATA,571621,Unclassified Non Trade,OUT OF SCOPE FOR SIC MONITORIN
IN HOUSE FOSTER PLACEMENT     ,9270,IN-HOUSE FOSTERING            ,04/10/2013,3527574,52188 20131003 42700     ,1186.00,REDACTED PERSONAL DATA,395410,Social Community Care,ADOPTION & FOSTERING          
IN HOUSE FOSTER PLACEMENT     ,9270,IN-HOUSE FOSTERING            ,04/10/2013,3527575,5232 20131003 42700      ,1384.00,REDACTED PERSONAL DATA,333284,Social Community Care,ADOPTION & FOSTERING          
RESIDENCE ORDERS              ,9270,RESIDENCE ORDERS              ,04/10/2013,3527576,52390 20131003 42700     ,268.40,REDACTED PERSONAL DATA,403896,Social Community Care,ADOPTION & FOSTERING          
IN HOUSE FOSTER PLACEMENT     ,9270,IN-HOUSE FOSTERING            ,04/10/2013,3527577,524167 20131003 42700    ,838.00,REDACTED PERSONAL DATA,582508,Social Community Care,ADOPTION & FOSTERING          
ADOPTION ALLOWANCES           ,9270,ADOPTION ALLOWANCES           ,04/10/2013,3527580,53466 20131003 42700     ,368.50,REDACTED PERSONAL DATA,516788,Social Community Care,ADOPTION & FOSTERING          
SECURE PLACEMENTS             ,9270,IN-HOUSE FOSTERING            ,04/10/2013,3527581,535147 20131003 42700    ,250.00,REDACTED PERSONAL DATA,580833,Social Community Care,ADOPTION & FOSTERING          
SPECIAL GUARDIANSHIP          ,9270,RESIDENCE ORDERS              ,04/10/2013,3527583,538547 20131003 42700    ,298.26,REDACTED PERSONAL DATA,572240,Social Community Care,ADOPTION & FOSTERING          
IN HOUSE FOSTER PLACEMENT     ,9270,IN-HOUSE FOSTERING            ,04/10/2013,3527587,54948 20131003 42700     ,1502.00,REDACTED PERSONAL DATA,401257,Social Community Care,ADOPTION & FOSTERING          
IN HOUSE FOSTER PLACEMENT     ,9270,IN-HOUSE FOSTERING            ,04/10/2013,3527588,550471 20131003 42700    ,987.82,REDACTED PERSONAL DATA,580830,Social Community Care,ADOPTION & FOSTERING          
SPECIAL GUARDIANSHIP          ,9270,RESIDENCE ORDERS              ,04/10/2013,3527589,555067 20131003 42700    ,298.26,REDACTED PERSONAL DATA,582635,Unclassified Non Trade,OUT OF SCOPE FOR SIC MONITORIN
IN HOUSE FOSTER PLACEMENT     ,9270,IN-HOUSE FOSTERING            ,04/10/2013,3527590,55871 20131003 42700     ,608.00,REDACTED PERSONAL DATA,332982,Social Community Care,ADOPTION & FOSTERING          
SPECIAL GUARDIANSHIP          ,9270,RESIDENCE ORDERS              ,04/10/2013,3527592,562507 20131003 42700    ,368.50,REDACTED PERSONAL DATA,567453,Unclassified Non Trade,OUT OF SCOPE FOR SIC MONITORIN
IN HOUSE FOSTER PLACEMENT     ,9270,IN-HOUSE FOSTERING            ,04/10/2013,3527594,56472 20131003 42700     ,800.00,REDACTED PERSONAL DATA,332894,Social Community Care,ADOPTION & FOSTERING          
SPECIAL GUARDIANSHIP          ,9270,RESIDENCE ORDERS              ,04/10/2013,3527595,565867 20131003 42700    ,312.06,REDACTED PERSONAL DATA,576608,Unclassified Non Trade,OUT OF SCOPE FOR SIC MONITORIN
IN HOUSE FOSTER PLACEMENT     ,9270,IN-HOUSE FOSTERING            ,04/10/2013,3527603,584549 20131003 42700    ,786.00,REDACTED PERSONAL DATA,585719,Unclassified Non Trade,OUT OF SCOPE FOR SIC MONITORIN
IN HOUSE FOSTER PLACEMENT     ,9270,IN-HOUSE FOSTERING            ,04/10/2013,3527604,132001 20131003 42700    ,1959.00,REDACTED PERSONAL DATA,401464,Social Community Care,ADOPTION & FOSTERING          
ADOPTION SERVICE              ,9270,ADOPTION ALLOWANCES           ,04/10/2013,3527604,132001 20131003 42700    ,469.64,REDACTED PERSONAL DATA,401464,Social Community Care,ADOPTION & FOSTERING          
ADOPTION ALLOWANCES           ,9270,ADOPTION ALLOWANCES           ,04/10/2013,3527605,586526 20131003 42700    ,274.92,REDACTED PERSONAL DATA,576283,Unclassified Non Trade,OUT OF SCOPE FOR SIC MONITORIN
IN HOUSE FOSTER PLACEMENT     ,9270,IN-HOUSE FOSTERING            ,04/10/2013,3527606,587955 20131003 42700    ,1424.00,REDACTED PERSONAL DATA,583253,Social Community Care,ADOPTION & FOSTERING          
IN HOUSE FOSTER PLACEMENT     ,9270,IN-HOUSE FOSTERING            ,04/10/2013,3527607,5899 20131003 42700      ,1144.00,REDACTED PERSONAL DATA,332893,Social Community Care,ADOPTION & FOSTERING          
IN HOUSE FOSTER PLACEMENT     ,9270,IN-HOUSE FOSTERING            ,04/10/2013,3527608,59012 20131003 42700     ,1042.00,REDACTED PERSONAL DATA,333610,Social Community Care,ADOPTION & FOSTERING          
IN HOUSE FOSTER PLACEMENT     ,9270,IN-HOUSE FOSTERING            ,04/10/2013,3527610,59205 20131003 42700     ,1133.44,REDACTED PERSONAL DATA,368211,Social Community Care,ADOPTION & FOSTERING          
IN HOUSE FOSTER PLACEMENT     ,9270,IN-HOUSE FOSTERING            ,04/10/2013,3527612,60275 20131003 42700     ,1262.00,REDACTED PERSONAL DATA,429874,Social Community Care,ADOPTION & FOSTERING          
IN HOUSE FOSTER PLACEMENT     ,9270,IN-HOUSE FOSTERING            ,04/10/2013,3527613,60616 20131003 42700     ,2024.00,REDACTED PERSONAL DATA,333511,Social Community Care,ADOPTION & FOSTERING          
RESIDENCE ORDERS              ,9270,RESIDENCE ORDERS              ,04/10/2013,3527615,133205 20131003 42700    ,415.40,REDACTED PERSONAL DATA,338886,Social Community Care,ADOPTION & FOSTERING          
IN HOUSE FOSTER PLACEMENT     ,9270,IN-HOUSE FOSTERING            ,04/10/2013,3527617,6158 20131003 42700      ,1690.00,REDACTED PERSONAL DATA,540317,Social Community Care,ADOPTION & FOSTERING          
RESIDENCE ORDERS              ,9270,RESIDENCE ORDERS              ,04/10/2013,3527619,620127 20131003 42700    ,298.26,REDACTED PERSONAL DATA,582193,Unclassified Non Trade,OUT OF SCOPE FOR SIC MONITORIN
IN HOUSE FOSTER PLACEMENT     ,9270,IN-HOUSE FOSTERING            ,04/10/2013,3527620,62204 20131003 42700     ,634.00,REDACTED PERSONAL DATA,333618,Social Community Care,ADOPTION & FOSTERING          
RESIDENCE ORDERS              ,9270,RESIDENCE ORDERS              ,04/10/2013,3527622,62544 20131003 42700     ,643.80,REDACTED PERSONAL DATA,333037,Social Community Care,ADOPTION & FOSTERING          
IN HOUSE FOSTER PLACEMENT     ,9270,IN-HOUSE FOSTERING            ,04/10/2013,3527623,62842 20131003 42700     ,608.00,REDACTED PERSONAL DATA,333091,Social Community Care,ADOPTION & FOSTERING          
ADOPTION ALLOWANCES           ,9270,ADOPTION ALLOWANCES           ,04/10/2013,3527623,62842 20131003 42700     ,755.93,REDACTED PERSONAL DATA,333091,Social Community Care,ADOPTION & FOSTERING          
RESIDENCE ORDERS              ,9270,RESIDENCE ORDERS              ,04/10/2013,3527625,64357 20131003 42700     ,321.60,REDACTED PERSONAL DATA,537234,Social Community Care,ADOPTION & FOSTERING          
IN HOUSE FOSTER PLACEMENT     ,9270,IN-HOUSE FOSTERING            ,04/10/2013,3527626,133315 20131003 42700    ,362.85,REDACTED PERSONAL DATA,517411,Social Community Care,ADOPTION & FOSTERING          
IN HOUSE FOSTER PLACEMENT     ,9270,IN-HOUSE FOSTERING            ,04/10/2013,3527628,64992 20131003 42700     ,1304.00,REDACTED PERSONAL DATA,333282,Social Community Care,ADOPTION & FOSTERING          
ADOPTION ALLOWANCES           ,9270,ADOPTION ALLOWANCES           ,04/10/2013,3527629,65520 20131003 42700     ,268.40,REDACTED PERSONAL DATA,333005,Social Community Care,ADOPTION & FOSTERING          
IN HOUSE FOSTER PLACEMENT     ,9270,IN-HOUSE FOSTERING            ,04/10/2013,3527629,65520 20131003 42700     ,1450.00,REDACTED PERSONAL DATA,333005,Social Community Care,ADOPTION & FOSTERING          
IN HOUSE FOSTER PLACEMENT     ,9270,IN-HOUSE FOSTERING            ,04/10/2013,3527631,65854 20131003 42700     ,994.00,REDACTED PERSONAL DATA,338734,Social Community Care,ADOPTION & FOSTERING          
ADOPTION ALLOWANCES           ,9270,ADOPTION ALLOWANCES           ,04/10/2013,3527632,6608 20131003 42700      ,335.40,REDACTED PERSONAL DATA,454665,Social Community Care,ADOPTION & FOSTERING          
ADOPTION ALLOWANCES           ,9270,ADOPTION ALLOWANCES           ,04/10/2013,3527633,664 20131003 42700       ,415.40,REDACTED PERSONAL DATA,362565,Social Community Care,ADOPTION & FOSTERING          
ADOPTION ALLOWANCES           ,9270,ADOPTION ALLOWANCES           ,04/10/2013,3527634,68046 20131003 42700     ,287.56,REDACTED PERSONAL DATA,207768,Social Community Care,ADOPTION & FOSTERING          
IN HOUSE FOSTER PLACEMENT     ,9270,IN-HOUSE FOSTERING            ,04/10/2013,3527634,68046 20131003 42700     ,792.00,REDACTED PERSONAL DATA,207768,Social Community Care,ADOPTION & FOSTERING          
IN HOUSE FOSTER PLACEMENT     ,9270,IN-HOUSE FOSTERING            ,04/10/2013,3527636,69464 20131003 42700     ,362.85,REDACTED PERSONAL DATA,333438,Social Community Care,ADOPTION & FOSTERING          
IN HOUSE FOSTER PLACEMENT     ,9270,IN-HOUSE FOSTERING            ,04/10/2013,3527637,133705 20131003 42700    ,608.00,REDACTED PERSONAL DATA,419128,Social Community Care,ADOPTION & FOSTERING          
IN HOUSE FOSTER PLACEMENT     ,9270,IN-HOUSE FOSTERING            ,04/10/2013,3527638,69800 20131003 42700     ,860.43,REDACTED PERSONAL DATA,328162,Social Community Care,ADOPTION & FOSTERING          
IN HOUSE FOSTER PLACEMENT     ,9270,IN-HOUSE FOSTERING            ,04/10/2013,3527639,69844 20131003 42700     ,714.00,REDACTED PERSONAL DATA,333815,Social Community Care,ADOPTION & FOSTERING          
CARELEAVER IN HOUSE FOSTERING ,9270,IN-HOUSE FOSTERING            ,04/10/2013,3527643,713847 20131003 42700    ,746.68,REDACTED PERSONAL DATA,586797,Unclassified Non Trade,OUT OF SCOPE FOR SIC MONITORIN
IN HOUSE FOSTER PLACEMENT     ,9270,IN-HOUSE FOSTERING            ,04/10/2013,3527645,71652 20131003 42700     ,664.00,REDACTED PERSONAL DATA,333207,Social Community Care,ADOPTION & FOSTERING          
IN HOUSE FOSTER PLACEMENT     ,9270,IN-HOUSE FOSTERING            ,04/10/2013,3527647,72432 20131003 42700     ,1042.00,REDACTED PERSONAL DATA,398055,Social Community Care,ADOPTION & FOSTERING          
IN HOUSE FOSTER PLACEMENT     ,9270,IN-HOUSE FOSTERING            ,04/10/2013,3527648,133938 20131003 42700    ,408.00,REDACTED PERSONAL DATA,384614,Social Community Care,ADOPTION & FOSTERING          
IN HOUSE FOSTER PLACEMENT     ,9270,IN-HOUSE FOSTERING            ,04/10/2013,3527649,73971 20131003 42700     ,460.00,REDACTED PERSONAL DATA,332984,Social Community Care,ADOPTION & FOSTERING          
IN HOUSE FOSTER PLACEMENT     ,9270,IN-HOUSE FOSTERING            ,04/10/2013,3527650,74007 20131003 42700     ,360.00,REDACTED PERSONAL DATA,328019,Social Community Care,ADOPTION & FOSTERING          
IN HOUSE FOSTER PLACEMENT     ,9270,IN-HOUSE FOSTERING            ,04/10/2013,3527652,7644 20131003 42700      ,672.00,REDACTED PERSONAL DATA,527335,Social Community Care,ADOPTION & FOSTERING          
IN HOUSE FOSTER PLACEMENT     ,9270,IN-HOUSE FOSTERING            ,04/10/2013,3527653,77354 20131003 42700     ,1224.00,REDACTED PERSONAL DATA,333280,Social Community Care,ADOPTION & FOSTERING          
IN HOUSE FOSTER PLACEMENT     ,9270,IN-HOUSE FOSTERING            ,04/10/2013,3527654,774 20131003 42700       ,1016.00,REDACTED PERSONAL DATA,333661,Social Community Care,ADOPTION & FOSTERING          
IN HOUSE FOSTER PLACEMENT     ,9270,IN-HOUSE FOSTERING            ,04/10/2013,3527656,78545 20131003 42700     ,1106.00,REDACTED PERSONAL DATA,332919,Social Community Care,ADOPTION & FOSTERING          
IN HOUSE FOSTER PLACEMENT     ,9270,IN-HOUSE FOSTERING            ,04/10/2013,3527657,78553 20131003 42700     ,1344.00,REDACTED PERSONAL DATA,333703,Social Community Care,ADOPTION & FOSTERING          
ADOPTION SERVICE              ,9270,ADOPTION ALLOWANCES           ,04/10/2013,3527659,133942 20131003 42700    ,458.02,REDACTED PERSONAL DATA,391833,Social Community Care,ADOPTION & FOSTERING          
IN HOUSE FOSTER PLACEMENT     ,9270,IN-HOUSE FOSTERING            ,04/10/2013,3527659,133942 20131003 42700    ,608.00,REDACTED PERSONAL DATA,391833,Social Community Care,ADOPTION & FOSTERING          
SPECIAL GUARDIANSHIP          ,9270,RESIDENCE ORDERS              ,04/10/2013,3527660,80345 20131003 42700     ,288.72,REDACTED PERSONAL DATA,571149,Unclassified Non Trade,OUT OF SCOPE FOR SIC MONITORIN
RESIDENCE ORDERS              ,9270,RESIDENCE ORDERS              ,04/10/2013,3527661,80660 20131003 42700     ,268.40,REDACTED PERSONAL DATA,503096,Social Community Care,ADOPTION & FOSTERING          
ADOPTION SERVICE              ,9270,ADOPTION ALLOWANCES           ,04/10/2013,3527662,81896 20131003 42700     ,470.24,REDACTED PERSONAL DATA,338778,Social Community Care,ADOPTION & FOSTERING          
ADOPTION SERVICE              ,9270,ADOPTION ALLOWANCES           ,04/10/2013,3527664,82275 20131003 42700     ,342.40,REDACTED PERSONAL DATA,338910,Social Community Care,ADOPTION & FOSTERING          
IN HOUSE FOSTER PLACEMENT     ,9270,IN-HOUSE FOSTERING            ,04/10/2013,3527666,84339 20131003 42700     ,1282.00,REDACTED PERSONAL DATA,333060,Social Community Care,ADOPTION & FOSTERING          
